{"text_format":"1","workbook":"xlsx","n_sheets":21,"sheets":["Strona tytuł.","Powiaty","Gminy","Adres zam.Benef._Małż.","wykaz faktur","zest. rzecz-finans","Załączniki_6.1","Załączniki_6.2","Załączniki 6.3","Oświadczenia","Zał 1. Oświadczenie","RODO_klauzula_osoby fiz._pełnom","RODO_zgoda_beneficjenta","RODO_zgoda_pełnomocnika","RODO_zgoda małżonka","RODO_klauzula_beneficjenci","zał_1a_Sprawozdanie 6.1","zał_1b_Sprawozdanie 6.2","zał_1c_Sprawozdanie 6.3","zał_2_Parametry","zał_3_Oświadczenie przych_rozch"],"not_rendered":{"charts":0,"images":0,"macros":1,"external_links":21,"defined_names":769,"comments":0,"pivot_tables":0},"unopened":[],"bounds":{"document_bytes":16777216,"sheet_cells":100000,"rows_first":2000,"rows_last":500,"rows_between":2000,"halvings":0,"cell_chars":16384,"cell_head_chars":4096},"cells_cut":0,"cells_raw":0,"read":"whole","date_system":"1900"}

{"sheet":"Strona tytuł.","index":0,"n_rows":68,"n_cols":93,"rows_kept":68,"cut":false,"hidden":false,"merged":[[47,12,47,13],[47,15,47,16],[47,18,47,21],[45,3,45,14],[34,3,34,10],[34,11,35,21],[65,4,65,36],[67,4,67,36],[57,3,57,19],[61,4,61,36],[25,2,25,12],[25,15,25,36],[26,2,26,12],[26,15,26,36],[32,3,32,10],[54,3,54,16],[53,20,53,27],[51,20,51,27],[51,3,51,16],[63,4,63,36],[53,3,53,17],[32,12,32,21],[21,2,21,36],[22,2,22,12],[22,13,22,36],[23,2,23,12],[23,13,23,18],[23,19,23,36],[14,1,14,37],[16,2,16,36],[17,2,17,36],[18,2,18,36],[20,2,20,36],[0,6,3,34],[7,1,7,25],[7,26,8,37],[8,2,8,12],[8,13,8,22],[12,1,12,24],[12,26,12,37],[13,1,13,25],[13,26,13,37],[9,1,9,25],[10,1,10,25],[10,26,10,37],[11,26,11,37],[11,5,11,18]]}
[null,null,null,null,null,null,null,null,null,null,null,null,null,null,null,null,null,null,null,null,null,null,null,null,null,null,null,null,null,null,null,null,null,null,null,null,null,null,null,null,null,null,null,null,null,null,null,null,null,null,null,null,null,null,null,"wybierz z listy"]
[null,null,null,null,null,null,null,null,null,null,null,null,null,null,null,null,null,null,null,null,null,null,null,null,null,null,null,null,null,null,null,null,null,null,null,null,null,null,null,null,null,null,null,null,null,null,null,null,"wybierz z listy",null,null,null,null,null,null,"Rozwój przedsiębiorczości - rozwój usług rolniczych"]
[null,null,null,null,null,null,null,null,null,null,null,null,null,null,null,null,null,null,null,null,null,null,null,null,null,null,null,null,null,null,null,null,null,null,null,null,null,null,null,null,null,null,null,null,null,null,null,null,"wniosek o płatność",null,null,null,null,null,null,"wybierz z listy"]
[null,null,null,null,null,null,null,null,null,null,null,null,null,null,null,null,null,null,null,null,null,null,null,null,null,null,null,null,null,null,null,null,null,null,null,null,null,null,null,null,null,null,null,null,null,null,null,null,"korekta wniosku o płatność",null,null,null,null,null,null,"Modernizacja gospodarstw rolnych"]
[null,null,null,null,null,null,null,null,null,null,null,null,null,null,null,null,null,null,null,null,null,null,null,null,null,null,null,null,null,null,null,null,null,null,null,null,null,null,null,null,null,null,null,null,null,null,null,null,"wycofanie wniosku",null,null,null,null,null,null,"Inwestycje w gospodarstwach położonych na obszarach Natura 2000"]
[null,null,null,null,null,null,null,null,null,null,null,null,null,null,null,null,null,null,null,null,null,null,null,null,null,null,null,null,null,null,null,null,null,null,null,null,null,null,null,null,null,null,null,null,null,null,null,null,null,null,null,null,null,null,null,"Inwestycje mające na celu ochronę wód przed zanieczyszczeniem azotanami pochodzącymi ze źródeł rolniczych"]
[null,null,null,null,null,null,null,null,null,null,null,null,null,null,null,null,null,null,null,null,null,null,null,null,null,null,null,null,null,null,null,null,null,null,null,null,null,null,null,null,null,null,null,null,null,null,null,null,null,null,null,null,null,null,null,"Nawodnienia"]
[null,null,null,null,null,null,null,null,null,null,null,null,null,null,null,null,null,null,null,null,null,null,null,null,null,null,"Potwierdzenie przyjęcia \nwniosku\n/pieczęć/",null,null,null,null,null,null,null,null,null,null,null,null,null,null,null,null,null,null,null,null,null,null,null,null,null,null,null,null,"Rozwój przedsiębiorczości - rozwój usług rolniczych"]
[null,null,"Symbol formularza",null,null,null,null,null,null,null,null,null,null,"W-1/PROW 2014-2020",null,null,null,null,null,null,null,null,null,null,null,null,null,null,null,null,null,null,null,null,null,null,null,null,null,null,null,null,null,null,null,null,null,null,null,null,null,null,null,null,null,"wybierz z listy","wybierz z listy"]
[null,null,null,null,null,null,null,null,null,null,null,null,null,null,null,null,null,null,null,null,null,null,null,null,null,null,null,null,null,null,null,null,null,null,null,null,null,null,null,null,null,null,null,null,null,null,null,null,null,null,null,null,null,null,null,"Inwestycje odtwarzające potencjał produkcji rolnej","Inwestycje zapobiegające zniszczeniu potencjału produkcji rolnej"]
[]
[null,null,null,null,null,null,null,null,null,null,null,null,null,null,null,null,null,null,null,null,null,null,null,null,null,null,null,null,null,null,null,null,null,null,null,null,null,null,null,null,null,null,null,null,null,null,null,null,null,null,null,null,null,null,"wybierz z listy"]
[null,"…………………………………………………………………………",null,null,null,null,null,null,null,null,null,null,null,null,null,null,null,null,null,null,null,null,null,null,null,null,"………………………………………..",null,null,null,null,null,null,null,null,null,null,null,null,null,null,null,null,null,null,null,null,null,null,null,null,null,null,null,"4.1 Wsparcie inwestycji w gospodarstwach rolnych"]
[null,"Znak sprawy",null,null,null,null,null,null,null,null,null,null,null,null,null,null,null,null,null,null,null,null,null,null,null,null,"Data przyjęcia i podpis",null,null,null,null,null,null,null,null,null,null,null,null,null,null,null,null,null,null,null,null,null,null,null,null,null,null,null,"4.2 Wsparcie inwestycji w przetwarzanie produktów rolnych, obrót nimi lub ich rozwój"]
[null,"Formularz należy wypełnić zgodnie z instrukcją do Wniosku o Płatność ",null,null,null,null,null,null,null,null,null,null,null,null,null,null,null,null,null,null,null,null,null,null,null,null,null,null,null,null,null,null,null,null,null,null,null,null,null,null,null,null,null,"wybierz z listy",null,null,null,null,null,null,null,null,null,null,"5.1 Wsparcie inwestycji w środki zapobiegawcze, których celem jest ograniczanie skutków prawdopodobnych klęsk żywiołowych, niekorzystnych zjawisk klimatycznych i katastrof"]
[null,null,null,null,null,null,null,null,null,null,null,null,null,null,null,null,null,null,null,null,null,null,null,null,null,null,null,null,null,null,null,null,null,null,null,null,null,null,null,null,null,null,null,"Modernizacja gospodarstw rolnych (obszar a - d)",null,null,null,null,null,null,null,null,null,null,"5.2 Wsparcie inwestycji w odtwarzanie gruntów rolnych i przywracanie potencjału produkcji rolnej zniszczonego w wyniku klęsk żywiołowych, niekorzystnych zjawisk klimatycznych i katastrof"]
[null,null,"I. CZĘŚĆ OGÓLNA",null,null,null,null,null,null,null,null,null,null,null,null,null,null,null,null,null,null,null,null,null,null,null,null,null,null,null,null,null,null,null,null,null,null,null,null,null,null,null,null,"Modernizacja gospodarstw rolnych w obszarze nawadniania w gospodarstwie",null,null,null,null,null,null,null,null,null,null,"6.4 Wsparcie inwestycji w tworzenie i rozwój działalności pozarolniczej"]
[null,null,"1. Cel złożenia wniosku",null,null,null,null,null,null,null,null,null,null,null,null,null,null,null,null,null,null,null,null,null,null,null,null,null,null,null,null,null,null,null,null,null,null,null,null,null,null,null,null,"Inwestycje w gospodarstwach położonych na obszarach Natura 2000"]
[null,null,"wybierz z listy",null,null,null,null,null,null,null,null,null,null,null,null,null,null,null,null,null,null,null,null,null,null,null,null,null,null,null,null,null,null,null,null,null,null,null,null,null,null,null,null,"Inwestycje mające na celu ochronę wód przed zanieczyszczeniem azotanami pochodzącymi ze źródeł rolniczych"]
[]
[" ",null,"2. Nazwa Poddziałania",null,null,null,null,null,null,null,null,null,null,null,null,null,null,null,null,null,null,null,null,null,null,null,null,null,null,null,null,null,null,null,null,null,null,null,null,null,null,"Typ dla 4.2(nie chcę grzebać w tej formule):",null,"wybierz z listy",null,null,null,null,null,null,null,null,null,null,"wybierz z listy",null,"wybierz z listy"]
[null,null,"wybierz z listy",null,null,null,null,null,null,null,null,null,null,null,null,null,null,null,null,null,null,null,null,null,null,null,null,null,null,null,null,null,null,null,null,null,null,null,null,null,null,null,null,"Przetwórstwo i marketing produktów rolnych",null,null,null,null,null,null,null,null,null,null,"płatność pośrednia",null,"płatność pierwszej raty"]
[null,null,"2.1 Typ operacji",null,null,null,null,null,null,null,null,null,null,"wybierz z listy ",null,null,null,null,null,null,null,null,null,null,null,null,null,null,null,null,null,null,null,null,null,null,null,null,null,null,null,null,null,null,null,null,null,null,null,null,null,null,null,null,"płatność końcowa",null,"płatność drugiej raty"]
[null,null,null,null,null,null,null,null,null,null,null,null,null,null,null,null,null,null,null,null,null,null,null,null,null,null,null,null,null,null,null,null,null,null,null,null,null,null,null,null,null,null,null,null,null,null,null,null,null,null,null,null,null,null,"wybierz"]
[null,null,null,null,null,null,null,null,null,null,null,null,null,null,null,null,null,null,null,null,null,null,null,null,null,null,null,null,null,null,null,null,null,null,null,null,null,null,null,null,null,null,null,null,null,null,null,null,null,null,null,null,null,null,"TAK"]
[null,null,"3. Rodzaj płatności",null,null,null,null,null,null,null,null,null,null,null,null,null,null,null,null,null,null,null,null,null,null,null,null,null,null,null,null,null,null,null,null,null,null,null,null,null,null,null,null,null,"wybierz z listy ",null,null,null,null,null,null,null,null,null,"NIE"]
[null,null,"wybierz z listy",null,null,null,null,null,null,null,null,null,null,null,null,null,null,null,null,null,null,null,null,null,null,null,null,null,null,null,null,null,null,null,null,null,null,null,null,null,"wybierz z listy",null,null,null,null,"Premie dla młodych rolników","Premie na rozpoczęcie działalności pozarolniczej (bez ASF),","Restrukturyzacja małych gospodarstw (bez ASF)",null,null,null,null,null,null,"wybierz"]
[null,null,null,null,null,null,null,null,null,null,null,null,null,null,null,null,null,null,null,null,null,null,null,null,null,null,null,null,null,null,null,null,null,null,null,null,null,null,null,null,"6.1 Pomoc w rozpoczęciu działalności gospodarczej na rzecz młodych rolników",null,null,null,null,null,"Premie na rozpoczęcie działalności pozarolniczej (objęte ASF)","Restrukturyzacja małych gospodarstw (objęte ASF)",null,null,null,null,null,null,"wybierz","wybierz z listy"]
[null,null,null,null,null,null,null,null,null,null,null,null,null,null,null,null,null,null,null,null,null,null,null,null,null,null,null,null,null,null,null,null,null,null,null,null,null,null,null,null,"6.2 Pomoc na rozpoczęcie pozarolniczej działalności gospodarczej na obszarach wiejskich",null,null,null,null,null,null,null,null,null,null,null,null,null,null,"6.1 Pomoc w rozpoczęciu działalności gospodarczej na rzecz młodych rolników"]
[null,null,null,null,null,null,null,null,null,null,null,null,null,null,null,null,null,null,null,null,null,null,null,null,null,null,null,null,null,null,null,null,null,null,null,null,null,null,null,null,"6.3 Pomoc na rozpoczęcie działalności gospodarczej na rzecz rozwoju małych gospodarstw",null,null,null,null,null,null,null,null,null,null,null,null,null,null,"6.2 Pomoc na rozpoczęcie pozarolniczej działalności gospodarczej na obszarach wiejskich"]
[null,null,"II. IDENTYFIKACJA BENEFICJENTA ",null,null,null,null,null,null,null,null,null,null,null,null,null,null,null,null,null,null,null,null,null,null,null,null,null,null,null,null,null,null,null,null,null,null,null,null,null,null,null,null,null,null,null,null,null,null,null,null,null,null,null,null,"6.3 Pomoc na rozpoczęcie działalności gospodarczej na rzecz rozwoju małych gospodarstw"]
[]
[null,null,"1.","Numer identyfikacyjny",null,null,null,null,null,null,null,null,null,null,null,null,null,null,null,null,null,null,null,null,null,null,null,null,null,null,null,null,null,null,null,null,null,null,null,null,{"$f":"IF(AND(M33>0,AP33<>8),\"Błąd!Nr beneficjenta powinien zawierać 9 cyfr bez spacji, w tym cyfrę 0 na początku\",\"\")","v":""},{"$f":"LEN(M33)","v":0}]
[]
[null,null,"2.","PESEL",null,null,null,null,null,null,null,null,null,null,null,null,null,null,null,null,null,null,null,null,null,null,null,null,null,null,null,null,null,null,null,null,null,null,null,null,null,{"$f":"(MID($L$35,1,1)*1)+(MID($L$35,2,1)*3)+(MID($L$35,3,1)*7)+(MID($L$35,4,1)*9)+(MID($L$35,5,1)*1)+(MID($L$35,6,1)*3)+(MID($L$35,7,1)*7)+(MID($L$35,8,1)*9)+(MID($L$35,9,1)*1)+(MID($L$35,10,1)*3)","v":{"$error":"#VALUE!"}},{"$f":" IF(OR(10-RIGHT(L35)- RIGHT(AP35)=0,10-RIGHT(L35)- RIGHT(AP35)=10),1,2)","v":{"$error":"#VALUE!"}},null,null,null,null,null,null,null,null,null,null,null,null,null,null,null,null,null,null,null,null,null,{"$f":"IF(V35-RIGHT(BQ35)<>0,\"BŁĄD! NIEPOPRAWNY NR PESEL!\",IF(OR(BR35=11,BR35=22),\"\",\"BŁĄD! NIEPOPRAWNY NR PESEL!\"))","v":""},null,null,null,{"$f":"L35*9+M35*7+N35*3+O35*1+P35*9+Q35*7+R35*3+S35*1+T35*9+U35*7","v":0},{"$f":"COUNTBLANK(L35:V36)","v":22},null,null,null,null,null,null,null,null,null,null,null,null,null,"TAK",null,null,null,null,null,null,null,{"$f":"AI35*9+AJ35*7+AK35*3+AL35*1+AM35*9+AN35*7+AO35*3+AP35*1+AQ35*9+AR35*7","v":{"$error":"#VALUE!"}},{"$f":"COUNTBLANK(AI35:AS36)","v":20}]
[]
[null,null,null,null,null,null,null,null,null,null,null,null,null,null,null,null,null,null,null,null,null,null,null,null,null,null,null,null,null,null,null,null,null,null,null,null,null,null,null,null,null,null,null,null,null,null,null,null,null,null,null,null,null,null,null,null,null,null,null,null,"NIE"]
[null,null,null,null,null,null,null,null,null,null,null,null,null,null,null,null,null,null,null,null,null,null,null,null,null,null,null,null,null,null,null,null,null,null,null,null,null,null,null,null,null,null,null,null,null,null,null,null,null,null,null,null,null,null,"ŚWIĘTOKRZYSKIE"]
[null,null,"III. DANE Z DECYZJI O PRZYZNAWANIU POMOCY",null,null,null,null,null,null,null,null,null,null,null,null,null,null,null,null,null,null,null,null,null,null,null,null,null,null,null,null,null,null,null,null,null,null,null,null,null,null,null,null,null,null,null,null,null,null,null,null,null,null,null,"ŚLĄSKIE"]
[null,null,null,null,null,null,null,null,null,null,null,null,null,null,null,null,null,null,null,null,null,null,null,null,null,null,null,null,null,null,null,null,null,null,null,null,null,null,null,null,null,null,null,null,null,null,null,null,null,null,null,null,null,null,null,"wybierz z listy "]
[null,null,null,null,null,null,null,null,null,null,null,null,null,null,null,null,null,null,null,null,null,null,null,null,null,null,null,null,null,null,null,null,null,null,null,null,null,null,null,null,null,null,null,null,null,null,null,null,null,null,null,null,null,null,null,"Premie dla młodych rolników"]
[null,null,"1.","Nazwa Funduszu:  Europejski Fundusz Rolny na rzecz Rozwoju Obszarów Wiejskich",null,null,null,null,null,null,null,null,null,null,null,null,null,null,null,null,null,null,null,null,null,null,null,null,null,null,null,null,null,null,null,null,null,null,null,null,null,null,null,null,null,null,null,null,null,null,null,null,null,null,null,"Premie na rozpoczęcie działalności pozarolniczej (bez ASF),"]
[null,null,null,null,null,null,null,null,null,null,null,null,null,null,null,null,null,null,null,null,null,null,null,null,null,null,null,null,null,null,null,null,null,null,null,null,null,null,null,null,null,null,null,null,null,null,null,null,null,null,null,null,null,null,null,"Premie na rozpoczęcie działalności pozarolniczej (objęte ASF)"]
[null,null,"2.","Nazwa Programu: Program Rozwoju Obszarów Wiejskich na lata 2014-2020",null,null,null,null,null,null,null,null,null,null,null,null,null,null,null,null,null,null,null,null,null,null,null,null,null,null,null,null,null,null,null,null,null,null,null,null,null,null,null,null,null,null,null,null,null,null,null,null,null,null,null,"Restrukturyzacja małych gospodarstw (bez ASF)"]
[null,null,null,null,null,null,null,null,null,null,null,null,null,null,null,null,null,null,null,null,null,null,null,null,null,null,null,null,null,null,null,null,null,null,null,null,null,null,null,null,null,null,null,null,null,null,null,null,null,null,null,null,null,null,null,"Restrukturyzacja małych gospodarstw (objęte ASF)"]
[null,null,"3.","Numer decyzji o przyznaniu pomocy",null,null,null,null,null,null,null,null,null,null,null,null,null,null,null,null,null,"/",null,null,"/","O","R"]
[]
[]
[]
[null,null,"IV.","DANE DOTYCZĄCE WNIOSKU O PŁATNOŚĆ "]
[]
[null,null,"1.","Kwota pomocy przyznana dla operacji w zł",null,null,null,null,null,null,null,null,null,null,null,null,null,null,null,null,null,null,null,null,null,null,null,null,null,null,null,null,null,null,null,null,null,null,null,null,{"$f":"IF($U$54>$U$52,\"Błąd! Kwota wnioskowana nie może być większa od kwoty pomocy przyznanej dla operacji\",\"\")","v":""}]
[]
[null,null,"2.","Wnioskowana kwota pomocy dla danego etapu"]
[null,null,null,null,null,null,null,null,null,null,null,null,null,null,null,null,null,null,null,null,null,null,null,null,null,null,null,null,null,null,null,null,null,null,null,null,null,null,null,null,null,null,"(wybierz z listy)"]
[null,null,null,null,null,null,null,null,null,null,null,null,null,null,null,null,null,null,null,null,null,null,null,null,null,null,null,null,null,null,null,null,null,null,null,null,null,null,null,null,null,null,"karta podatkowa "]
[]
[null,null,"V.","Numer rachunku bankowego Beneficjenta",null,null,null,null,null,null,null,null,null,null,null,null,null,null,null,null,null,null,null,null,null,null,null,null,null,null,null,null,null,null,null,null,null,null,null,null,null,null,"rachunkowość w gospodarstwie rolnych w ramach systemu Polski FADN"]
[null,null,null,null,null,null,null,null,null,null,null,null,null,null,null,null,null,null,null,null,null,null,null,null,null,null,null,null,null,null,null,null,null,null,null,null,null,null,null,null,null,null,"uproszczona ewidencja przychodów i rozchodów (rolnicy) "]
[null,null,null,null,null,null,null,null,null,null,null,null,null,null,null,null,null,null,null,null,null,null,null,null,null,null,null,null,null,null,null,null,null,null,null,null,null,null,null,null,null,null,"ewidencja VAT"]
[null,null,null,null,null,null,null,null,null,null,null,null,null,null,null,null,null,null,null,null,null,null,null,null,null,null,null,null,null,null,null,null,null,null,null,null,null,null,null,null,null,null,"nie dotyczy "]
[]
[]
[null,null,null," "]
[]
[null,null,null," "]
[]
[null,null,null," "]

{"sheet":"Powiaty","index":1,"n_rows":145,"n_cols":17,"rows_kept":145,"cut":false,"hidden":true,"merged":[]}
["wybierz z listy","DOLNOŚLĄSKIE","KUJAWSKO_POMORSKIE","LUBELSKIE","LUBUSKIE","ŁÓDZKIE","MAŁOPOLSKIE","MAZOWIECKIE","OPOLSKIE","PODKARPACKIE","PODLASKIE","POMORSKIE","ŚLĄSKIE","ŚWIĘTOKRZYSKIE","WARMIŃSKO_MAZURSKIE","WIELKOPOLSKIE","ZACHODNIOPOMORSKIE"]
["wybierz z listy","DOLNOŚLĄSKIE","KUJAWSKO_POMORSKIE","LUBELSKIE","LUBUSKIE","ŁÓDZKIE","MAŁOPOLSKIE","MAZOWIECKIE","OPOLSKIE","PODKARPACKIE","PODLASKIE","POMORSKIE","ŚLĄSKIE","ŚWIĘTOKRZYSKIE","WARMIŃSKO_MAZURSKIE","WIELKOPOLSKIE","ZACHODNIOPOMORSKIE"]
[null,"BOLESŁAWIECKI","ALEKSANDROWSKI","BIALSKI","GORZOWSKI","BEŁCHATOWSKI","BOCHEŃSKI","BIAŁOBRZESKI","BRZESKI","BIESZCZADZKI","AUGUSTOWSKI","BYTOWSKI","BĘDZIŃSKI","BUSKI","BARTOSZYCKI","CHODZIESKI","BIAŁOGARDZKI"]
[null,"DZIERŻONIOWSKI","BRODNICKI","BIŁGORAJSKI","KROŚNIEŃSKI.","KUTNOWSKI","BRZESKI.","CIECHANOWSKI","GŁUBCZYCKI","BRZOZOWSKI","BIAŁOSTOCKI","CHOJNICKI","BIELSKI","JĘDRZEJOWSKI","BRANIEWSKI","CZARNKOWSKO_TRZCIANECKI","CHOSZCZEŃSKI"]
[null,"GŁOGOWSKI","BYDGOSKI","CHEŁMSKI","MIĘDZYRZECKI","ŁASKI","CHRZANOWSKI","GARWOLIŃSKI","KĘDZIERZYŃSKO_KOZIELSKI","DĘBICKI","BIELSKI.","CZŁUCHOWSKI","CIESZYŃSKI","KAZIMIERSKI","DZIAŁDOWSKI","GNIEŹNIEŃSKI","DRAWSKI"]
[null,"GÓROWSKI","CHEŁMIŃSKI","HRUBIESZOWSKI","NOWOSOLSKI","ŁĘCZYCKI","DĄBROWSKI","GOSTYNIŃSKI","KLUCZBORSKI","JAROSŁAWSKI","GRAJEWSKI","GDAŃSKI","CZĘSTOCHOWSKI","KIELECKI","ELBLĄSKI","GOSTYŃSKI","GOLENIOWSKI"]
[null,"JAWORSKI","GOLUBSKO_DOBRZYŃSKI","JANOWSKI","SŁUBICKI","ŁOWICKI","GORLICKI","GRODZISKI","KRAPKOWICKI","JASIELSKI","HAJNOWSKI","KARTUSKI","GLIWICKI","KONECKI","EŁCKI","GRODZISKI.","GRYFICKI"]
[null,"JELENIOGÓRSKI","GRUDZIĄDZKI","KRASNOSTAWSKI","STRZELECKO_DREZDENECKI","ŁÓDZKI_WSCHODNI","KRAKOWSKI","GRÓJECKI","NAMYSŁOWSKI","KOLBUSZOWSKI","KOLNEŃSKI","KOŚCIERSKI","KŁOBUCKI","OPATOWSKI","GIŻYCKI","JAROCIŃSKI","GRYFIŃSKI"]
[null,"KAMIENNOGÓRSKI","INOWROCŁAWSKI","KRAŚNICKI","SULĘCIŃSKI","OPOCZYŃSKI","LIMANOWSKI","KOZIENICKI","NYSKI","KROŚNIEŃSKI","ŁOMŻYŃSKI","KWIDZYŃSKI","LUBLINIECKI","OSTROWIECKI","IŁAWSKI","KALISKI","KAMIEŃSKI"]
[null,"KŁODZKI","LIPNOWSKI","LUBARTOWSKI","ŚWIEBODZIŃSKI","PABIANICKI","MIECHOWSKI","LEGIONOWSKI","OLESKI","LEŻAJSKI","MONIECKI","LĘBORSKI","MIKOŁOWSKI","PIŃCZOWSKI","KĘTRZYŃSKI","KĘPIŃSKI","KOŁOBRZESKI"]
[null,"LEGNICKI","MOGILEŃSKI","LUBELSKI","ZIELONOGÓRSKI","PAJĘCZAŃSKI","MYŚLENICKI","LIPSKI","OPOLSKI","LUBACZOWSKI","SEJNEŃSKI","MALBORSKI","MYSZKOWSKI","SANDOMIERSKI","LIDZBARSKI","KOLSKI","KOSZALIŃSKI"]
[null,"LUBAŃSKI","NAKIELSKI","ŁĘCZYŃSKI","ŻAGAŃSKI","PIOTRKOWSKI","NOWOSĄDECKI","ŁOSICKI","PRUDNICKI","ŁAŃCUCKI","SIEMIATYCKI","NOWODWORSKI","PSZCZYŃSKI","SKARŻYSKI","MRĄGOWSKI","KONIŃSKI","MYŚLIBORSKI"]
[null,"LUBIŃSKI","RADZIEJOWSKI","ŁUKOWSKI","ŻARSKI","PODDĘBICKI","NOWOTARSKI","MAKOWSKI","STRZELECKI","MIELECKI","SOKÓLSKI","PUCKI","RACIBORSKI","STARACHOWICKI","NIDZICKI","KOŚCIAŃSKI","POLICKI"]
[null,"LWÓWECKI","RYPIŃSKI","OPOLSKI.","WSCHOWSKI","RADOMSZCZAŃSKI","OLKUSKI","MIŃSKI","OPOLE","NIŻAŃSKI","SUWALSKI","SŁUPSKI","RYBNICKI","STASZOWSKI","NOWOMIEJSKI","KROTOSZYŃSKI","PYRZYCKI"]
[null,"MILICKI","SĘPOLEŃSKI","PARCZEWSKI","GORZÓW_WIELKOPOLSKI","RAWSKI","OŚWIĘCIMSKI","MŁAWSKI",null,"PRZEMYSKI","WYSOKOMAZOWIECKI","STAROGARDZKI","TARNOGÓRSKI","WŁOSZCZOWSKI","OLECKI","LESZCZYŃSKI","SŁAWIEŃSKI"]
[null,"OLEŚNICKI","ŚWIECKI","PUŁAWSKI","ZIELONA GÓRA","SIERADZKI","PROSZOWICKI","NOWODWORSKI.",null,"PRZEWORSKI","ZAMBROWSKI","TCZEWSKI","BIERUŃSKO_LĘDZIŃSKI","KIELCE","OLSZTYŃSKI","MIĘDZYCHODZKI","STARGARDZKI"]
[null,"OŁAWSKI","TORUŃSKI","RADZYŃSKI",null,"SKIERNIEWICKI","SUSKI","OSTROŁĘCKI",null,"ROPCZYCKO_SĘDZISZOWSKI","BIAŁYSTOK","WEJHEROWSKI","WODZISŁAWSKI",null,"OSTRÓDZKI","NOWOTOMYSKI","SZCZECINECKI"]
[null,"POLKOWICKI","TUCHOLSKI","RYCKI",null,"TOMASZOWSKI","TARNOWSKI","OSTROWSKI.",null,"RZESZOWSKI","ŁOMŻA","SZTUMSKI","ZAWIERCIAŃSKI",null,"PISKI","OBORNICKI","ŚWIDWIŃSKI"]
[null,"STRZELIŃSKI","WĄBRZESKI","ŚWIDNICKI",null,"WIELUŃSKI","TATRZAŃSKI","OTWOCKI",null,"SANOCKI","SUWAŁKI","GDAŃSK","ŻYWIECKI",null,"SZCZYCIEŃSKI","OSTROWSKI","WAŁECKI"]
[null,"ŚREDZKI.","WŁOCŁAWSKI","TOMASZOWSKI.",null,"WIERUSZOWSKI","WADOWICKI","PIASECZYŃSKI",null,"STALOWOWOLSKI",null,"GDYNIA","BIELSKO_BIAŁA",null,"GOŁDAPSKI","OSTRZESZOWSKI","ŁOBESKI"]
[null,"ŚWIDNICKI.","ŻNIŃSKI","WŁODAWSKI",null,"ZDUŃSKOWOLSKI","WIELICKI","PŁOCKI",null,"STRZYŻOWSKI",null,"SŁUPSK","BYTOM",null,"WĘGORZEWSKI","PILSKI","KOSZALIN"]
[null,"TRZEBNICKI","BYDGOSZCZ","ZAMOJSKI",null,"ZGIERSKI","KRAKÓW","PŁOŃSKI",null,"TARNOBRZESKI",null,"SOPOT","CHORZÓW",null,"ELBLĄG","PLESZEWSKI","SZCZECIN"]
[null,"WAŁBRZYSKI","GRUDZIĄDZ","BIAŁA_PODLASKA",null,"BRZEZIŃSKI","NOWY SĄCZ","PRUSZKOWSKI",null,"LESKI",null,null,"CZĘSTOCHOWA",null,"OLSZTYN","POZNAŃSKI","ŚWINOUJŚCIE"]
[null,"WOŁOWSKI","TORUŃ","CHEŁM",null,"ŁÓDŹ","TARNÓW","PRZASNYSKI",null,"KROSNO",null,null,"DĄBROWA_GÓRNICZA",null,null,"RAWICKI"]
[null,"WROCŁAWSKI","WŁOCŁAWEK","LUBLIN",null,"PIOTRKÓW_TRYBUNALSKI",null,"PRZYSUSKI",null,"PRZEMYŚL",null,null,"GLIWICE",null,null,"SŁUPECKI"]
[null,"ZĄBKOWICKI",null,"ZAMOŚĆ",null,"SKIERNIEWICE",null,"PUŁTUSKI",null,"RZESZÓW",null,null,"JASTRZĘBIE_ZDRÓJ",null,null,"SZAMOTULSKI"]
[null,"ZGORZELECKI",null,null,null,null,null,"RADOMSKI",null,"TARNOBRZEG",null,null,"JAWORZNO",null,null,"ŚREDZKI"]
[null,"ZŁOTORYJSKI",null,null,null,null,null,"SIEDLECKI",null,null,null,null,"KATOWICE",null,null,"ŚREMSKI"]
[null,"JELENIA_GÓRA",null,null,null,null,null,"SIERPECKI",null,null,null,null,"MYSŁOWICE",null,null,"TURECKI"]
[null,"LEGNICA",null,null,null,null,null,"SOCHACZEWSKI",null,null,null,null,"PIEKARY_ŚLĄSKIE",null,null,"WĄGROWIECKI"]
[null,"WROCŁAW",null,null,null,null,null,"SOKOŁOWSKI",null,null,null,null,"RUDA_ŚLĄSKA",null,null,"WOLSZTYŃSKI"]
[null,"WAŁBRZYCH",null,null,null,null,null,"SZYDŁOWIECKI",null,null,null,null,"RYBNIK",null,null,"WRZESIŃSKI"]
[null,null,null,null,null,null,null,"WARSZAWSKI_ZACHODNI",null,null,null,null,"SIEMIANOWICE_ŚLĄSKIE",null,null,"ZŁOTOWSKI"]
[null,null,null,null,null,null,null,"WĘGROWSKI",null,null,null,null,"SOSNOWIEC",null,null,"KALISZ"]
[null,null,null,null,null,null,null,"WOŁOMIŃSKI",null,null,null,null,"ŚWIĘTOCHŁOWICE",null,null,"KONIN"]
[null,null,null,null,null,null,null,"WYSZKOWSKI",null,null,null,null,"TYCHY",null,null,"LESZNO"]
[null,null,null,null,null,null,null,"ZWOLEŃSKI",null,null,null,null,"ZABRZE",null,null,"POZNAŃ"]
[null,null,null,null,null,null,null,"ŻUROMIŃSKI",null,null,null,null,"ŻORY"]
[null,null,null,null,null,null,null,"ŻYRARDOWSKI"]
[null,null,null,null,null,null,null,"WARSZAWA"]
[null,null,null,null,null,null,null,"OSTROŁĘKA"]
[null,null,null,null,null,null,null,"PŁOCK"]
[null,null,null,null,null,null,null,"RADOM"]
[null,null,null,null,null,null,null,"SIEDLCE"]
[]
[]
[]
[]
[]
[]
[]
[]
[]
[]
[]
[]
[{"$f":"UPPER(B84)","v":""}]
[{"$f":"UPPER(B85)","v":""}]
[{"$f":"UPPER(B86)","v":""}]
[{"$f":"UPPER(B87)","v":""},null,null,{"$f":"UPPER(C60)","v":""}]
[]
[]
[]
[]
[null,null,null,{"$f":"UPPER(C65)","v":""}]
[]
[]
[]
[]
[null,null,null,{"$f":"UPPER(C70)","v":""}]
[]
[]
[null,null,null,{"$f":"UPPER(C73)","v":""}]
[]
[]
[]
[null,null,null,{"$f":"UPPER(C77)","v":""}]
[]
[]
[]
[null,null,null,{"$f":"UPPER(C81)","v":""}]
[]
[]
[]
[]
[null,null,null,{"$f":"UPPER(C86)","v":""}]
[]
[null,null,null,{"$f":"UPPER(C88)","v":""}]
[]
[]
[]
[]
[null,null,null,{"$f":"UPPER(C93)","v":""}]
[]
[]
[]
[null,null,null,{"$f":"UPPER(C97)","v":""}]
[]
[]
[]
[]
[null,null,null,{"$f":"UPPER(C102)","v":""}]
[]
[]
[]
[]
[]
[]
[]
[]
[]
[]
[]
[]
[]
[]
[]
[]
[]
[]
[]
[null,null,null,{"$f":"UPPER(C122)","v":""}]
[]
[null,null,null,{"$f":"UPPER(C124)","v":""}]
[]
[]
[null,null,null,{"$f":"UPPER(C127)","v":""}]
[]
[]
[]
[]
[null,null,null,{"$f":"UPPER(C132)","v":""}]
[]
[]
[]
[]
[]
[]
[]
[]
[]
[]
[]
[]
[null,null,{"$f":"UPPER(D172)","v":""}]

{"sheet":"Gminy","index":2,"n_rows":380,"n_cols":21,"rows_kept":380,"cut":false,"hidden":true,"merged":[]}
[null,"BOLESŁAWIECKI","BOLESŁAWIEC","BOLESŁAWIEC","GROMADKA","NOWOGRODZIEC","OSIECZNICA","WARTA BOLESŁAWIECKA"]
[null,"DZIERŻONIOWSKI","BIELAWA","DZIERŻONIÓW","PIESZYCE","PIŁAWA GÓRNA","DZIERŻONIÓW","ŁAGIEWNIKI","NIEMCZA"]
[null,"GŁOGOWSKI","GŁOGÓW","GŁOGÓW","JERZMANOWA","KOTLA","PĘCŁAW","ŻUKOWICE"]
[null,"GÓROWSKI","GÓRA","JEMIELNO","NIECHLÓW","WĄSOSZ"]
[null,"JAWORSKI","JAWOR","BOLKÓW","MĘCINKA","MŚCIWOJÓW","PASZOWICE","WĄDROŻE WIELKIE"]
[null,"JELENIOGÓRSKI","KARPACZ","KOWARY","PIECHOWICE","SZKLARSKA PORĘBA","JANOWICE WIELKIE","JEŻÓW SUDECKI","MYSŁAKOWICE","PODGÓRZYN","STARA KAMIENICA"]
[null,"KAMIENNOGÓRSKI","KAMIENNA GÓRA","KAMIENNA GÓRA","LUBAWKA","MARCISZÓW"]
[null,"KŁODZKI","DUSZNIKI-ZDRÓJ","KŁODZKO","KUDOWA-ZDRÓJ","NOWA RUDA","POLANICA-ZDRÓJ","BYSTRZYCA KŁODZKA","KŁODZKO","LĄDEK-ZDRÓJ","LEWIN KŁODZKI","MIĘDZYLESIE","NOWA RUDA","RADKÓW","STRONIE ŚLĄSKIE","SZCZYTNA"]
[null,"LEGNICKI","CHOJNÓW","CHOJNÓW","KROTOSZYCE","KUNICE","LEGNICKIE POLE","MIŁKOWICE","PROCHOWICE","RUJA"]
[null,"LUBAŃSKI","LUBAŃ","ŚWIERADÓW-ZDRÓJ","LEŚNA","LUBAŃ","OLSZYNA","PLATERÓWKA","SIEKIERCZYN"]
[null,"LUBIŃSKI","LUBIN","LUBIN","RUDNA","ŚCINAWA"]
[null,"LWÓWECKI","GRYFÓW ŚLĄSKI","LUBOMIERZ","LWÓWEK ŚLĄSKI","MIRSK","WLEŃ"]
[null,"MILICKI","CIESZKÓW","KROŚNICE","MILICZ"]
[null,"OLEŚNICKI","OLEŚNICA","BIERUTÓW","DOBROSZYCE","DZIADOWA KŁODA","MIĘDZYBÓRZ","OLEŚNICA","SYCÓW","TWARDOGÓRA"]
[null,"OŁAWSKI","OŁAWA","DOMANIÓW","JELCZ-LASKOWICE","OŁAWA"]
[null,"POLKOWICKI","CHOCIANÓW","GAWORZYCE","GRĘBOCICE","POLKOWICE","PRZEMKÓW","RADWANICE"]
[null,"STRZELIŃSKI","BORÓW","KONDRATOWICE","PRZEWORNO","STRZELIN","WIĄZÓW"]
[null,"ŚREDZKI","KOSTOMŁOTY","MALCZYCE","MIĘKINIA","ŚRODA ŚLĄSKA","UDANIN"]
[null,"ŚWIDNICKI","ŚWIDNICA","ŚWIEBODZICE","DOBROMIERZ","JAWORZYNA ŚLĄSKA","MARCINOWICE","STRZEGOM","ŚWIDNICA","ŻARÓW"]
[null,"TRZEBNICKI","OBORNIKI ŚLĄSKIE","PRUSICE","TRZEBNICA","WISZNIA MAŁA","ZAWONIA","ŻMIGRÓD"]
[null,"WAŁBRZYSKI","BOGUSZÓW-GORCE","JEDLINA-ZDRÓJ","SZCZAWNO-ZDRÓJ","CZARNY BÓR","GŁUSZYCA","MIEROSZÓW","STARE BOGACZOWICE","WALIM"]
[null,"WOŁOWSKI","BRZEG DOLNY","WIŃSKO","WOŁÓW"]
[null,"WROCŁAWSKI","CZERNICA","DŁUGOŁĘKA","JORDANÓW ŚLĄSKI","KĄTY WROCŁAWSKIE","KOBIERZYCE","MIETKÓW","SOBÓTKA","SIECHNICE","ŻÓRAWINA"]
[null,"ZĄBKOWICKI","BARDO","CIEPŁOWODY","KAMIENIEC ZĄBKOWICKI","STOSZOWICE","ZĄBKOWICE ŚLĄSKIE","ZIĘBICE","ZŁOTY STOK"]
[null,"ZGORZELECKI","ZAWIDÓW","ZGORZELEC","BOGATYNIA","PIEŃSK","SULIKÓW","WĘGLINIEC","ZGORZELEC"]
[null,"ZŁOTORYJSKI","WOJCIESZÓW","ZŁOTORYJA","PIELGRZYMKA","ŚWIERZAWA","ZAGRODNO","ZŁOTORYJA"]
[null,"JELENIA_GÓRA","JELENIA GÓRA"]
[null,"LEGNICA","LEGNICA"]
[null,"WROCŁAW","WROCŁAW"]
[null,"WAŁBRZYCH","WAŁBRZYCH"]
[null,"ALEKSANDROWSKI","ALEKSANDRÓW KUJAWSKI","CIECHOCINEK","NIESZAWA","ALEKSANDRÓW KUJAWSKI","BĄDKOWO","KONECK","RACIĄŻEK","WAGANIEC","ZAKRZEWO"]
[null,"BRODNICKI","BRODNICA","BOBROWO","BRODNICA","BRZOZIE","GÓRZNO","BARTNICZKA","JABŁONOWO POMORSKIE","OSIEK","ŚWIEDZIEBNIA","ZBICZNO"]
[null,"BYDGOSKI","BIAŁE BŁOTA","DĄBROWA CHEŁMIŃSKA","DOBRCZ","KORONOWO","NOWA WIEŚ WIELKA","OSIELSKO","SICIENKO","SOLEC KUJAWSKI"]
[null,"CHEŁMIŃSKI","CHEŁMNO","CHEŁMNO","KIJEWO KRÓLEWSKIE","LISEWO","PAPOWO BISKUPIE","STOLNO","UNISŁAW"]
[null,"GOLUBSKO_DOBRZYŃSKI","GOLUB-DOBRZYŃ","CIECHOCIN","GOLUB-DOBRZYŃ","KOWALEWO POMORSKIE","RADOMIN","ZBÓJNO"]
[null,"GRUDZIĄDZKI","GRUDZIĄDZ","GRUTA","ŁASIN","RADZYŃ CHEŁMIŃSKI","ROGÓŹNO","ŚWIECIE NAD OSĄ"]
[null,"INOWROCŁAWSKI","INOWROCŁAW","DĄBROWA BISKUPIA","GNIEWKOWO","INOWROCŁAW","JANIKOWO","KRUSZWICA","PAKOŚĆ","ROJEWO","ZŁOTNIKI KUJAWSKIE"]
[null,"LIPNOWSKI","LIPNO","BOBROWNIKI","CHROSTKOWO","DOBRZYŃ NAD WISŁĄ","KIKÓŁ","LIPNO","SKĘPE","TŁUCHOWO","WIELGIE"]
[null,"MOGILEŃSKI","DĄBROWA","JEZIORA WIELKIE","MOGILNO","STRZELNO"]
[null,"NAKIELSKI","KCYNIA","MROCZA","NAKŁO NAD NOTECIĄ","SADKI","SZUBIN"]
[null,"RADZIEJOWSKI","RADZIEJÓW","BYTOŃ","DOBRE","OSIĘCINY","PIOTRKÓW KUJAWSKI","RADZIEJÓW","TOPÓLKA"]
[null,"RYPIŃSKI","RYPIN","BRZUZE","ROGOWO","RYPIN","SKRWILNO","WĄPIELSK"]
[null,"SĘPOLEŃSKI","KAMIEŃ KRAJEŃSKI","SĘPÓLNO KRAJEŃSKIE","SOŚNO","WIĘCBORK"]
[null,"ŚWIECKI","BUKOWIEC","DRAGACZ","DRZYCIM","JEŻEWO","LNIANO","NOWE","OSIE","PRUSZCZ","ŚWIECIE","ŚWIEKATOWO","WARLUBIE"]
[null,"TORUŃSKI","CHEŁMŻA","CHEŁMŻA","CZERNIKOWO","LUBICZ","ŁUBIANKA","ŁYSOMICE","OBROWO","WIELKA NIESZAWKA","ZŁAWIEŚ WIELKA"]
[null,"TUCHOLSKI","CEKCYN","GOSTYCYN","KĘSOWO","LUBIEWO","ŚLIWICE","TUCHOLA"]
[null,"WĄBRZESKI","WĄBRZEŹNO","DĘBOWA ŁĄKA","KSIĄŻKI","PŁUŻNICA","RYŃSK"]
[null,"WŁOCŁAWSKI","KOWAL","BARUCHOWO","BONIEWO","BRZEŚĆ KUJAWSKI","CHOCEŃ","CHODECZ","FABIANKI","IZBICA KUJAWSKA","KOWAL","LUBANIE","LUBIEŃ KUJAWSKI","LUBRANIEC","WŁOCŁAWEK"]
[null,"ŻNIŃSKI","BARCIN","GĄSAWA","JANOWIEC WIELKOPOLSKI","ŁABISZYN","ROGOWO","ŻNIN"]
[null,"BYDGOSZCZ","BYDGOSZCZ"]
[null,"GRUDZIĄDZ","GRUDZIĄDZ"]
[null,"TORUŃ","TORUŃ"]
[null,"WŁOCŁAWEK","WŁOCŁAWEK"]
[null,"BIALSKI","MIĘDZYRZEC PODLASKI","TERESPOL","BIAŁA PODLASKA","DRELÓW","JANÓW PODLASKI","KODEŃ","KONSTANTYNÓW","LEŚNA PODLASKA","ŁOMAZY","MIĘDZYRZEC PODLASKI","PISZCZAC","ROKITNO","ROSSOSZ","SŁAWATYCZE","SOSNÓWKA","TERESPOL","TUCZNA","WISZNICE","ZALESIE"]
[null,"BIŁGORAJSKI","BIŁGORAJ","ALEKSANDRÓW","BIŁGORAJ","BISZCZA","FRAMPOL","GORAJ","JÓZEFÓW","KSIĘŻPOL","ŁUKOWA","OBSZA","POTOK GÓRNY","TARNOGRÓD","TERESZPOL","TUROBIN"]
[null,"CHEŁMSKI","REJOWIEC FABRYCZNY","BIAŁOPOLE","CHEŁM","DOROHUSK","DUBIENKA","KAMIEŃ","LEŚNIOWICE","REJOWIEC FABRYCZNY","RUDA-HUTA","SAWIN","SIEDLISZCZE","WIERZBICA","WOJSŁAWICE","ŻMUDŹ","REJOWIEC"]
[null,"HRUBIESZOWSKI","HRUBIESZÓW","DOŁHOBYCZÓW","HORODŁO","HRUBIESZÓW","MIRCZE","TRZESZCZANY","UCHANIE","WERBKOWICE"]
[null,"JANOWSKI","BATORZ","CHRZANÓW","DZWOLA","GODZISZÓW","JANÓW LUBELSKI","MODLIBORZYCE","POTOK WIELKI"]
[null,"KRASNOSTAWSKI","KRASNYSTAW","FAJSŁAWICE","GORZKÓW","IZBICA","KRASNYSTAW","KRAŚNICZYN","ŁOPIENNIK GÓRNY","RUDNIK","SIENNICA RÓŻANA","ŻÓŁKIEWKA"]
[null,"KRAŚNICKI","KRAŚNIK","ANNOPOL","DZIERZKOWICE","GOŚCIERADÓW","KRAŚNIK","SZASTARKA","TRZYDNIK DUŻY","URZĘDÓW","WILKOŁAZ","ZAKRZÓWEK"]
[null,"LUBARTOWSKI","LUBARTÓW","ABRAMÓW","FIRLEJ","JEZIORZANY","KAMIONKA","KOCK","LUBARTÓW","MICHÓW","NIEDŹWIADA","OSTRÓW LUBELSKI","OSTRÓWEK","SERNIKI","UŚCIMÓW"]
[null,"LUBELSKI","BEŁŻYCE","BORZECHÓW","BYCHAWA","GARBÓW","GŁUSK","JABŁONNA","JASTKÓW","KONOPNICA","KRZCZONÓW","NIEDRZWICA DUŻA","NIEMCE","STRZYŻEWICE","WOJCIECHÓW","WÓLKA","WYSOKIE","ZAKRZEW"]
[null,"ŁĘCZYŃSKI","CYCÓW","LUDWIN","ŁĘCZNA","MILEJÓW","PUCHACZÓW","SPICZYN"]
[null,"ŁUKOWSKI","ŁUKÓW","STOCZEK ŁUKOWSKI","ADAMÓW","KRZYWDA","ŁUKÓW","SEROKOMLA","STANIN","STOCZEK ŁUKOWSKI","TRZEBIESZÓW","WOJCIESZKÓW","WOLA MYSŁOWSKA"]
[null,"OPOLSKI","CHODEL","JÓZEFÓW NAD WISŁĄ","KARCZMISKA","ŁAZISKA","OPOLE LUBELSKIE","PONIATOWA","WILKÓW"]
[null,"PARCZEWSKI","DĘBOWA KŁODA","JABŁOŃ","MILANÓW","PARCZEW","PODEDWÓRZE","SIEMIEŃ","SOSNOWICA"]
[null,"PUŁAWSKI","PUŁAWY","BARANÓW","JANOWIEC","KAZIMIERZ DOLNY","KOŃSKOWOLA","KURÓW","MARKUSZÓW","NAŁĘCZÓW","PUŁAWY","WĄWOLNICA","ŻYRZYN"]
[null,"RADZYŃSKI","RADZYŃ PODLASKI","BORKI","CZEMIERNIKI","KĄKOLEWNICA","KOMARÓWKA PODLASKA","RADZYŃ PODLASKI","ULAN-MAJORAT","WOHYŃ"]
[null,"RYCKI","DĘBLIN","KŁOCZEW","NOWODWÓR","RYKI","STĘŻYCA","UŁĘŻ"]
[null,"ŚWIDNICKI","ŚWIDNIK","MEŁGIEW","PIASKI","RYBCZEWICE","TRAWNIKI"]
[null,"TOMASZOWSKI","TOMASZÓW LUBELSKI","BEŁŻEC","JARCZÓW","KRYNICE","LUBYCZA KRÓLEWSKA","ŁASZCZÓW","RACHANIE","SUSIEC","TARNAWATKA","TELATYN","TOMASZÓW LUBELSKI","TYSZOWCE","ULHÓWEK"]
[null,"WŁODAWSKI","WŁODAWA","HANNA","HAŃSK","STARY BRUS","URSZULIN","WŁODAWA","WOLA UHRUSKA","WYRYKI"]
[null,"ZAMOJSKI","ADAMÓW","GRABOWIEC","KOMARÓW-OSADA","KRASNOBRÓD","ŁABUNIE","MIĄCZYN","NIELISZ","RADECZNICA","SITNO","SKIERBIESZÓW","STARY ZAMOŚĆ","SUŁÓW","SZCZEBRZESZYN","ZAMOŚĆ","ZWIERZYNIEC"]
[null,"BIAŁA_PODLASKA","BIAŁA PODLASKA"]
[null,"CHEŁM","CHEŁM"]
[null,"LUBLIN","LUBLIN"]
[null,"ZAMOŚĆ","ZAMOŚĆ"]
[null,"GORZOWSKI","KOSTRZYN NAD ODRĄ","BOGDANIEC","DESZCZNO","KŁODAWA","LUBISZYN","SANTOK","WITNICA"]
[null,"KROŚNIEŃSKI","GUBIN","BOBROWICE","BYTNICA","DĄBIE","GUBIN","KROSNO ODRZAŃSKIE","MASZEWO"]
[null,"MIĘDZYRZECKI","BLEDZEW","MIĘDZYRZECZ","PRZYTOCZNA","PSZCZEW","SKWIERZYNA","TRZCIEL"]
[null,"NOWOSOLSKI","NOWA SÓL","BYTOM ODRZAŃSKI","KOLSKO","KOŻUCHÓW","NOWA SÓL","NOWE MIASTECZKO","OTYŃ","SIEDLISKO"]
[null,"SŁUBICKI","CYBINKA","GÓRZYCA","OŚNO LUBUSKIE","RZEPIN","SŁUBICE"]
[null,"STRZELECKO_DREZDENECKI","DOBIEGNIEW","DREZDENKO","STARE KUROWO","STRZELCE KRAJEŃSKIE","ZWIERZYN"]
[null,"SULĘCIŃSKI","KRZESZYCE","LUBNIEWICE","SŁOŃSK","SULĘCIN","TORZYM"]
[null,"ŚWIEBODZIŃSKI","LUBRZA","ŁAGÓW","SKĄPE","SZCZANIEC","ŚWIEBODZIN","ZBĄSZYNEK"]
[null,"ZIELONOGÓRSKI","BABIMOST","BOJADŁA","CZERWIEŃSK","KARGOWA","NOWOGRÓD BOBRZAŃSKI","SULECHÓW","ŚWIDNICA","TRZEBIECHÓW","ZABÓR"]
[null,"ŻAGAŃSKI","GOZDNICA","ŻAGAŃ","BRZEŹNICA","IŁOWA","MAŁOMICE","NIEGOSŁAWICE","SZPROTAWA","WYMIARKI","ŻAGAŃ"]
[null,"ŻARSKI","ŁĘKNICA","ŻARY","BRODY","JASIEŃ","LIPINKI ŁUŻYCKIE","LUBSKO","PRZEWÓZ","TRZEBIEL","TUPLICE","ŻARY"]
[null,"WSCHOWSKI","SŁAWA","SZLICHTYNGOWA","WSCHOWA"]
[null,"GORZÓW_WIELKOPOLSKI","GORZÓW WIELKOPOLSKI"]
[null,"ZIELONA_GÓRA","ZIELONA GÓRA"]
[null,"BEŁCHATOWSKI","BEŁCHATÓW","BEŁCHATÓW","DRUŻBICE","KLESZCZÓW","KLUKI","RUSIEC","SZCZERCÓW","ZELÓW"]
[null,"KUTNOWSKI","KUTNO","BEDLNO","DĄBROWICE","KROŚNIEWICE","KRZYŻANÓW","KUTNO","ŁANIĘTA","NOWE OSTROWY","OPORÓW","STRZELCE","ŻYCHLIN"]
[null,"ŁASKI","BUCZEK","ŁASK","SĘDZIEJOWICE","WIDAWA","WODZIERADY"]
[null,"ŁĘCZYCKI","ŁĘCZYCA","DASZYNA","GÓRA ŚWIĘTEJ MAŁGORZATY","GRABÓW","ŁĘCZYCA","PIĄTEK","ŚWINICE WARCKIE","WITONIA"]
[null,"ŁOWICKI","ŁOWICZ","BIELAWY","CHĄŚNO","DOMANIEWICE","KIERNOZIA","KOCIERZEW POŁUDNIOWY","ŁOWICZ","ŁYSZKOWICE","NIEBORÓW","ZDUNY"]
[null,"ŁÓDZKI_WSCHODNI","ANDRESPOL","BRÓJCE","KOLUSZKI","NOWOSOLNA","RZGÓW","TUSZYN"]
[null,"OPOCZYŃSKI","BIAŁACZÓW","DRZEWICA","MNISZKÓW","OPOCZNO","PARADYŻ","POŚWIĘTNE","SŁAWNO","ŻARNÓW"]
[null,"PABIANICKI","KONSTANTYNÓW ŁÓDZKI","PABIANICE","DŁUTÓW","DOBROŃ","KSAWERÓW","LUTOMIERSK","PABIANICE"]
[null,"PAJĘCZAŃSKI","DZIAŁOSZYN","KIEŁCZYGŁÓW","NOWA BRZEŹNICA","PAJĘCZNO","RZĄŚNIA","SIEMKOWICE","STRZELCE WIELKIE","SULMIERZYCE"]
[null,"PIOTRKOWSKI","ALEKSANDRÓW","CZARNOCIN","GORZKOWICE","GRABICA","ŁĘKI SZLACHECKIE","MOSZCZENICA","RĘCZNO","ROZPRZA","SULEJÓW","WOLA KRZYSZTOPORSKA","WOLBÓRZ"]
[null,"PODDĘBICKI","DALIKÓW","PĘCZNIEW","PODDĘBICE","UNIEJÓW","WARTKOWICE","ZADZIM"]
[null,"RADOMSZCZAŃSKI","RADOMSKO","DOBRYSZYCE","GIDLE","GOMUNICE","KAMIEŃSK","KOBIELE WIELKIE","KODRĄB","LGOTA WIELKA","ŁADZICE","MASŁOWICE","PRZEDBÓRZ","RADOMSKO","WIELGOMŁYNY","ŻYTNO"]
[null,"RAWSKI","RAWA MAZOWIECKA","BIAŁA RAWSKA","CIELĄDZ","RAWA MAZOWIECKA","REGNÓW","SADKOWICE"]
[null,"SIERADZKI","SIERADZ","BŁASZKI","BRĄSZEWICE","BRZEŹNIO","BURZENIN","GOSZCZANÓW","KLONOWA","SIERADZ","WARTA","WRÓBLEW","ZŁOCZEW"]
[null,"SKIERNIEWICKI","BOLIMÓW","GŁUCHÓW","GODZIANÓW","KOWIESY","LIPCE REYMONTOWSKIE","MAKÓW","NOWY KAWĘCZYN","SKIERNIEWICE","SŁUPIA"]
[null,"TOMASZOWSKI","TOMASZÓW MAZOWIECKI","BĘDKÓW","BUDZISZEWICE","CZERNIEWICE","INOWŁÓDZ","LUBOCHNIA","ROKICINY","RZECZYCA","TOMASZÓW MAZOWIECKI","UJAZD","ŻELECHLINEK"]
[null,"WIELUŃSKI","BIAŁA","CZARNOŻYŁY","KONOPNICA","MOKRSKO","OSJAKÓW","OSTRÓWEK","PĄTNÓW","SKOMLIN","WIELUŃ","WIERZCHLAS"]
[null,"WIERUSZOWSKI","BOLESŁAWIEC","CZASTARY","GALEWICE","LUTUTÓW","ŁUBNICE","SOKOLNIKI","WIERUSZÓW"]
[null,"ZDUŃSKOWOLSKI","ZDUŃSKA WOLA","SZADEK","ZAPOLICE","ZDUŃSKA WOLA"]
[null,"ZGIERSKI","GŁOWNO","OZORKÓW","ZGIERZ","ALEKSANDRÓW ŁÓDZKI","GŁOWNO","OZORKÓW","PARZĘCZEW","STRYKÓW","ZGIERZ"]
[null,"BRZEZIŃSKI","BRZEZINY","BRZEZINY","DMOSIN","JEŻÓW","ROGÓW"]
[null,"ŁÓDŹ","ŁÓDŹ"]
[null,"PIOTRKÓW_TRYBUNALSKI","PIOTRKÓW TRYBUNALSKI"]
[null,"SKIERNIEWICE","SKIERNIEWICE"]
[null,"BOCHEŃSKI","BOCHNIA","BOCHNIA","DRWINIA","LIPNICA MUROWANA","ŁAPANÓW","NOWY WIŚNICZ","RZEZAWA","TRZCIANA","ŻEGOCINA"]
[null,"BRZESKI","BORZĘCIN","BRZESKO","CZCHÓW","DĘBNO","GNOJNIK","IWKOWA","SZCZUROWA"]
[null,"CHRZANOWSKI","ALWERNIA","BABICE","CHRZANÓW","LIBIĄŻ","TRZEBINIA"]
[null,"DĄBROWSKI","BOLESŁAW","DĄBROWA TARNOWSKA","GRĘBOSZÓW","MĘDRZECHÓW","OLESNO","RADGOSZCZ","SZCZUCIN"]
[null,"GORLICKI","GORLICE","BIECZ","BOBOWA","GORLICE","LIPINKI","ŁUŻNA","MOSZCZENICA","ROPA","SĘKOWA","UŚCIE GORLICKIE"]
[null,"KRAKOWSKI","CZERNICHÓW","IGOŁOMIA-WAWRZEŃCZYCE","IWANOWICE","JERZMANOWICE-PRZEGINIA","KOCMYRZÓW-LUBORZYCA","KRZESZOWICE","LISZKI","MICHAŁOWICE","MOGILANY","SKAŁA","SKAWINA","SŁOMNIKI","SUŁOSZOWA","ŚWIĄTNIKI GÓRNE","WIELKA WIEŚ","ZABIERZÓW","ZIELONKI"]
[null,"LIMANOWSKI","LIMANOWA","MSZANA DOLNA","DOBRA","JODŁOWNIK","KAMIENICA","LASKOWA","LIMANOWA","ŁUKOWICA","MSZANA DOLNA","NIEDŹWIEDŹ","SŁOPNICE","TYMBARK"]
[null,"MIECHOWSKI","CHARSZNICA","GOŁCZA","KOZŁÓW","KSIĄŻ WIELKI","MIECHÓW","RACŁAWICE","SŁABOSZÓW"]
[null,"MYŚLENICKI","DOBCZYCE","LUBIEŃ","MYŚLENICE","PCIM","RACIECHOWICE","SIEPRAW","SUŁKOWICE","TOKARNIA","WIŚNIOWA"]
[null,"NOWOSĄDECKI","GRYBÓW","CHEŁMIEC","GRÓDEK NAD DUNAJCEM","GRYBÓW","KAMIONKA WIELKA","KORZENNA","KRYNICA-ZDRÓJ","ŁABOWA","ŁĄCKO","ŁOSOSINA DOLNA","MUSZYNA","NAWOJOWA","PIWNICZNA-ZDRÓJ","PODEGRODZIE","RYTRO","STARY SĄCZ"]
[null,"NOWOTARSKI","NOWY TARG","SZCZAWNICA","CZARNY DUNAJEC","CZORSZTYN","JABŁONKA","KROŚCIENKO NAD DUNAJCEM","LIPNICA WIELKA","ŁAPSZE NIŻNE","NOWY TARG","OCHOTNICA DOLNA","RABA WYŻNA","RABKA-ZDRÓJ","SPYTKOWICE","SZAFLARY"]
[null,"OLKUSKI","BUKOWNO","BOLESŁAW","KLUCZE","OLKUSZ","TRZYCIĄŻ","WOLBROM"]
[null,"OŚWIĘCIMSKI","OŚWIĘCIM","BRZESZCZE","CHEŁMEK","KĘTY","OSIEK","OŚWIĘCIM","POLANKA WIELKA","PRZECISZÓW","ZATOR"]
[null,"PROSZOWICKI","KONIUSZA","KOSZYCE","NOWE BRZESKO","PAŁECZNICA","PROSZOWICE","RADZIEMICE"]
[null,"SUSKI","JORDANÓW","SUCHA BESKIDZKA","BUDZÓW","BYSTRA-SIDZINA","JORDANÓW","MAKÓW PODHALAŃSKI","STRYSZAWA","ZAWOJA","ZEMBRZYCE"]
[null,"TARNOWSKI","CIĘŻKOWICE","GROMNIK","LISIA GÓRA","PLEŚNA","RADŁÓW","RYGLICE","RZEPIENNIK STRZYŻEWSKI","SKRZYSZÓW","TARNÓW","TUCHÓW","WIERZCHOSŁAWICE","WIETRZYCHOWICE","WOJNICZ","ZAKLICZYN","ŻABNO","SZERZYNY"]
[null,"TATRZAŃSKI","ZAKOPANE","BIAŁY DUNAJEC","BUKOWINA TATRZAŃSKA","KOŚCIELISKO","PORONIN"]
[null,"WADOWICKI","ANDRYCHÓW","BRZEŹNICA","KALWARIA ZEBRZYDOWSKA","LANCKORONA","MUCHARZ","SPYTKOWICE","STRYSZÓW","TOMICE","WADOWICE","WIEPRZ"]
[null,"WIELICKI","BISKUPICE","GDÓW","KŁAJ","NIEPOŁOMICE","WIELICZKA"]
[null,"KRAKÓW","KRAKÓW"]
[null,"NOWY SĄCZ","NOWY SĄCZ"]
[null,"TARNÓW","TARNÓW"]
[null,"BIAŁOBRZESKI","BIAŁOBRZEGI","PROMNA","RADZANÓW","STARA BŁOTNICA","STROMIEC","WYŚMIERZYCE"]
[null,"CIECHANOWSKI","CIECHANÓW","CIECHANÓW","GLINOJECK","GOŁYMIN-OŚRODEK","GRUDUSK","OJRZEŃ","OPINOGÓRA GÓRNA","REGIMIN","SOŃSK"]
[null,"GARWOLIŃSKI","GARWOLIN","ŁASKARZEW","BOROWIE","GARWOLIN","GÓRZNO","ŁASKARZEW","MACIEJOWICE","MIASTKÓW KOŚCIELNY","PARYSÓW","PILAWA","SOBOLEW","TROJANÓW","WILGA","ŻELECHÓW"]
[null,"GOSTYNIŃSKI","GOSTYNIN","GOSTYNIN","PACYNA","SANNIKI","SZCZAWIN KOŚCIELNY"]
[null,"GRODZISKI","MILANÓWEK","PODKOWA LEŚNA","BARANÓW","GRODZISK MAZOWIECKI","JAKTORÓW","ŻABIA WOLA"]
[null,"GRÓJECKI","BELSK DUŻY","BŁĘDÓW","CHYNÓW","GOSZCZYN","GRÓJEC","JASIENIEC","MOGIELNICA","NOWE MIASTO NAD PILICĄ","PNIEWY","WARKA"]
[null,"KOZIENICKI","GARBATKA-LETNISKO","GŁOWACZÓW","GNIEWOSZÓW","GRABÓW NAD PILICĄ","KOZIENICE","MAGNUSZEW","SIECIECHÓW"]
[null,"LEGIONOWSKI","LEGIONOWO","JABŁONNA","NIEPORĘT","SEROCK","WIELISZEW"]
[null,"LIPSKI","CHOTCZA","CIEPIELÓW","LIPSKO","RZECZNIÓW","SIENNO","SOLEC NAD WISŁĄ"]
[null,"ŁOSICKI","HUSZLEW","ŁOSICE","OLSZANKA","PLATERÓW","SARNAKI","STARA KORNICA"]
[null,"MAKOWSKI","MAKÓW MAZOWIECKI","CZERWONKA","KARNIEWO","KRASNOSIELC","MŁYNARZE","PŁONIAWY-BRAMURA","RÓŻAN","RZEWNIE","SYPNIEWO","SZELKÓW"]
[null,"MIŃSKI","MIŃSK MAZOWIECKI","CEGŁÓW","DĘBE WIELKIE","DOBRE","HALINÓW","JAKUBÓW","KAŁUSZYN","LATOWICZ","MIŃSK MAZOWIECKI","MROZY","SIENNICA","STANISŁAWÓW","SULEJÓWEK"]
[null,"MŁAWSKI","MŁAWA","DZIERZGOWO","LIPOWIEC KOŚCIELNY","RADZANÓW","STRZEGOWO","STUPSK","SZREŃSK","SZYDŁOWO","WIECZFNIA KOŚCIELNA","WIŚNIEWO"]
[null,"NOWODWORSKI","NOWY DWÓR MAZOWIECKI","CZOSNÓW","LEONCIN","NASIELSK","POMIECHÓWEK","ZAKROCZYM"]
[null,"OSTROŁĘCKI","BARANOWO","CZARNIA","CZERWIN","GOWOROWO","KADZIDŁO","LELIS","ŁYSE","MYSZYNIEC","OLSZEWO-BORKI","RZEKUŃ","TROSZYN"]
[null,"OSTROWSKI","OSTRÓW MAZOWIECKA","ANDRZEJEWO","BOGUTY-PIANKI","BROK","MAŁKINIA GÓRNA","NUR","OSTRÓW MAZOWIECKA","STARY LUBOTYŃ","SZULBORZE WIELKIE","WĄSEWO","ZARĘBY KOŚCIELNE"]
[null,"OTWOCKI","JÓZEFÓW","OTWOCK","CELESTYNÓW","KARCZEW","KOŁBIEL","OSIECK","SOBIENIE-JEZIORY","WIĄZOWNA"]
[null,"PIASECZYŃSKI","GÓRA KALWARIA","KONSTANCIN-JEZIORNA","LESZNOWOLA","PIASECZNO","PRAŻMÓW","TARCZYN"]
[null,"PŁOCKI","BIELSK","BODZANÓW","BRUDZEŃ DUŻY","BULKOWO","DROBIN","GĄBIN","ŁĄCK","MAŁA WIEŚ","NOWY DUNINÓW","RADZANOWO","SŁUBICE","SŁUPNO","STARA BIAŁA","STAROŹREBY","WYSZOGRÓD"]
[null,"PŁOŃSKI","PŁOŃSK","RACIĄŻ","BABOSZEWO","CZERWIŃSK NAD WISŁĄ","DZIERZĄŻNIA","JONIEC","NARUSZEWO","NOWE MIASTO","PŁOŃSK","RACIĄŻ","SOCHOCIN","ZAŁUSKI"]
[null,"PRUSZKOWSKI","PIASTÓW","PRUSZKÓW","BRWINÓW","MICHAŁOWICE","NADARZYN","RASZYN"]
[null,"PRZASNYSKI","PRZASNYSZ","CHORZELE","CZERNICE BOROWE","JEDNOROŻEC","KRASNE","KRZYNOWŁOGA MAŁA","PRZASNYSZ"]
[null,"PRZYSUSKI","BORKOWICE","GIELNIÓW","KLWÓW","ODRZYWÓŁ","POTWORÓW","PRZYSUCHA","RUSINÓW","WIENIAWA"]
[null,"PUŁTUSKI","GZY","OBRYTE","POKRZYWNICA","PUŁTUSK","ŚWIERCZE","WINNICA","ZATORY"]
[null,"RADOMSKI","PIONKI","GÓZD","IŁŻA","JASTRZĘBIA","JEDLIŃSK","JEDLNIA-LETNISKO","KOWALA","PIONKI","PRZYTYK","SKARYSZEW","WIERZBICA","WOLANÓW","ZAKRZEW"]
[null,"SIEDLECKI","DOMANICE","KORCZEW","KOTUŃ","MOKOBODY","MORDY","PAPROTNIA","PRZESMYKI","SIEDLCE","SKÓRZEC","SUCHOŻEBRY","WIŚNIEW","WODYNIE","ZBUCZYN"]
[null,"SIERPECKI","SIERPC","GOZDOWO","MOCHOWO","ROŚCISZEWO","SIERPC","SZCZUTOWO","ZAWIDZ"]
[null,"SOCHACZEWSKI","SOCHACZEW","BROCHÓW","IŁÓW","MŁODZIESZYN","NOWA SUCHA","RYBNO","SOCHACZEW","TERESIN"]
[null,"SOKOŁOWSKI","SOKOŁÓW PODLASKI","BIELANY","CERANÓW","JABŁONNA LACKA","KOSÓW LACKI","REPKI","SABNIE","SOKOŁÓW PODLASKI","STERDYŃ"]
[null,"SZYDŁOWIECKI","CHLEWISKA","JASTRZĄB","MIRÓW","OROŃSKO","SZYDŁOWIEC"]
[null,"WARSZAWSKI ZACHODNI","BŁONIE","IZABELIN","KAMPINOS","LESZNO","ŁOMIANKI","OŻARÓW MAZOWIECKI","STARE BABICE"]
[null,"WĘGROWSKI","WĘGRÓW","GRĘBKÓW","KORYTNICA","LIW","ŁOCHÓW","MIEDZNA","SADOWNE","STOCZEK","WIERZBNO"]
[null,"WOŁOMIŃSKI","KOBYŁKA","MARKI","ZĄBKI","ZIELONKA","DĄBRÓWKA","JADÓW","KLEMBÓW","POŚWIĘTNE","RADZYMIN","STRACHÓWKA","TŁUSZCZ","WOŁOMIN"]
[null,"WYSZKOWSKI","BRAŃSZCZYK","DŁUGOSIODŁO","RZĄŚNIK","SOMIANKA","WYSZKÓW","ZABRODZIE"]
[null,"ZWOLEŃSKI","KAZANÓW","POLICZNA","PRZYŁĘK","TCZÓW","ZWOLEŃ"]
[null,"ŻUROMIŃSKI","BIEŻUŃ","KUCZBORK-OSADA","LUBOWIDZ","LUTOCIN","SIEMIĄTKOWO","ŻUROMIN"]
[null,"ŻYRARDOWSKI","ŻYRARDÓW","MSZCZONÓW","PUSZCZA MARIAŃSKA","RADZIEJOWICE","WISKITKI"]
[null,"WARSZAWA","WARSZAWA"]
[null,"OSTROŁĘKA","OSTROŁĘKA"]
[null,"PŁOCK","PŁOCK"]
[null,"RADOM","RADOM"]
[null,"SIEDLCE","SIEDLCE"]
[null,"BRZESKI","BRZEG","SKARBIMIERZ","GRODKÓW","LEWIN BRZESKI","LUBSZA","OLSZANKA"]
[null,"GŁUBCZYCKI","BABORÓW","BRANICE","GŁUBCZYCE","KIETRZ"]
[null,"KĘDZIERZYŃSKO_KOZIELSKI","KĘDZIERZYN-KOŹLE","BIERAWA","CISEK","PAWŁOWICZKI","POLSKA CEREKIEW","REŃSKA WIEŚ"]
[null,"KLUCZBORSKI","BYCZYNA","KLUCZBORK","LASOWICE WIELKIE","WOŁCZYN"]
[null,"KRAPKOWICKI","GOGOLIN","KRAPKOWICE","STRZELECZKI","WALCE","ZDZIESZOWICE"]
[null,"NAMYSŁOWSKI","DOMASZOWICE","NAMYSŁÓW","POKÓJ","ŚWIERCZÓW","WILKÓW"]
[null,"NYSKI","GŁUCHOŁAZY","KAMIENNIK","KORFANTÓW","ŁAMBINOWICE","NYSA","OTMUCHÓW","PACZKÓW","PAKOSŁAWICE","SKOROSZYCE"]
[null,"OLESKI","DOBRODZIEŃ","GORZÓW ŚLĄSKI","OLESNO","PRASZKA","RADŁÓW","RUDNIKI","ZĘBOWICE"]
[null,"OPOLSKI","CHRZĄSTOWICE","DĄBROWA","DOBRZEŃ WIELKI","KOMPRACHCICE","ŁUBNIANY","MURÓW","NIEMODLIN","OZIMEK","POPIELÓW","PRÓSZKÓW","TARNÓW OPOLSKI","TUŁOWICE","TURAWA"]
[null,"PRUDNICKI","BIAŁA","GŁOGÓWEK","LUBRZA","PRUDNIK"]
[null,"STRZELECKI","IZBICKO","JEMIELNICA","KOLONOWSKIE","LEŚNICA","STRZELCE OPOLSKIE","UJAZD","ZAWADZKIE"]
[null,"OPOLE","OPOLE"]
[null,"BIESZCZADZKI","CZARNA","LUTOWISKA","USTRZYKI DOLNE"]
[null,"BRZOZOWSKI","BRZOZÓW","DOMARADZ","DYDNIA","HACZÓW","JASIENICA ROSIELNA","NOZDRZEC"]
[null,"DĘBICKI","DĘBICA","BRZOSTEK","CZARNA","DĘBICA","JODŁOWA","PILZNO","ŻYRAKÓW"]
[null,"JAROSŁAWSKI","JAROSŁAW","RADYMNO","CHŁOPICE","JAROSŁAW","LASZKI","PAWŁOSIÓW","PRUCHNIK","RADYMNO","ROKIETNICA","ROŹWIENICA","WIĄZOWNICA"]
[null,"JASIELSKI","JASŁO","BRZYSKA","DĘBOWIEC","JASŁO","KOŁACZYCE","KREMPNA","NOWY ŻMIGRÓD","OSIEK JASIELSKI","SKOŁYSZYN","TARNOWIEC"]
[null,"KOLBUSZOWSKI","CMOLAS","KOLBUSZOWA","MAJDAN KRÓLEWSKI","NIWISKA","RANIŻÓW","DZIKOWIEC"]
[null,"KROŚNIEŃSKI","CHORKÓWKA","DUKLA","IWONICZ-ZDRÓJ","JEDLICZE","KORCZYNA","KROŚCIENKO WYŻNE","MIEJSCE PIASTOWE","RYMANÓW","WOJASZÓWKA","JAŚLISKA"]
[null,"LEŻAJSKI","LEŻAJSK","GRODZISKO DOLNE","KURYŁÓWKA","LEŻAJSK","NOWA SARZYNA"]
[null,"LUBACZOWSKI","LUBACZÓW","CIESZANÓW","HORYNIEC-ZDRÓJ","LUBACZÓW","NAROL","OLESZYCE","STARY DZIKÓW","WIELKIE OCZY"]
[null,"ŁAŃCUCKI","ŁAŃCUT","BIAŁOBRZEGI","CZARNA","ŁAŃCUT","MARKOWA","RAKSZAWA","ŻOŁYNIA"]
[null,"MIELECKI","MIELEC","BOROWA","CZERMIN","GAWŁUSZOWICE","MIELEC","PADEW NARODOWA","PRZECŁAW","RADOMYŚL WIELKI","TUSZÓW NARODOWY","WADOWICE GÓRNE"]
[null,"NIŻAŃSKI","HARASIUKI","JAROCIN","JEŻOWE","KRZESZÓW","NISKO","RUDNIK NAD SANEM","ULANÓW"]
[null,"PRZEMYSKI","BIRCZA","DUBIECKO","FREDROPOL","KRASICZYN","KRZYWCZA","MEDYKA","ORŁY","PRZEMYŚL","STUBNO","ŻURAWICA"]
[null,"PRZEWORSKI","PRZEWORSK","ADAMÓWKA","GAĆ","JAWORNIK POLSKI","KAŃCZUGA","PRZEWORSK","SIENIAWA","TRYŃCZA","ZARZECZE"]
[null,"ROPCZYCKO_SĘDZISZOWSKI","IWIERZYCE","OSTRÓW","ROPCZYCE","SĘDZISZÓW MAŁOPOLSKI","WIELOPOLE SKRZYŃSKIE"]
[null,"RZESZOWSKI","DYNÓW","BŁAŻOWA","BOGUCHWAŁA","CHMIELNIK","DYNÓW","GŁOGÓW MAŁOPOLSKI","HYŻNE","KAMIEŃ","KRASNE","LUBENIA","SOKOŁÓW MAŁOPOLSKI","ŚWILCZA","TRZEBOWNISKO","TYCZYN"]
[null,"SANOCKI","SANOK","BESKO","BUKOWSKO","KOMAŃCZA","SANOK","TYRAWA WOŁOSKA","ZAGÓRZ","ZARSZYN"]
[null,"STALOWOWOLSKI","STALOWA WOLA","BOJANÓW","PYSZNICA","RADOMYŚL NAD SANEM","ZAKLIKÓW","ZALESZANY"]
[null,"STRZYŻOWSKI","CZUDEC","FRYSZTAK","NIEBYLEC","STRZYŻÓW","WIŚNIOWA"]
[null,"TARNOBRZESKI","BARANÓW SANDOMIERSKI","GORZYCE","GRĘBÓW","NOWA DĘBA"]
[null,"LESKI","BALIGRÓD","CISNA","LESKO","OLSZANICA","SOLINA"]
[null,"KROSNO","KROSNO"]
[null,"PRZEMYŚL","PRZEMYŚL"]
[null,"RZESZÓW","RZESZÓW"]
[null,"TARNOBRZEG","TARNOBRZEG"]
[null,"AUGUSTOWSKI","AUGUSTÓW","AUGUSTÓW","BARGŁÓW KOŚCIELNY","LIPSK","NOWINKA","PŁASKA","SZTABIN"]
[null,"BIAŁOSTOCKI","CHOROSZCZ","CZARNA BIAŁOSTOCKA","DOBRZYNIEWO DUŻE","GRÓDEK","JUCHNOWIEC KOŚCIELNY","ŁAPY","MICHAŁOWO","POŚWIĘTNE","SUPRAŚL","SURAŻ","TUROŚŃ KOŚCIELNA","TYKOCIN","WASILKÓW","ZABŁUDÓW","ZAWADY"]
[null,"BIELSKI","BIELSK PODLASKI","BRAŃSK","BIELSK PODLASKI","BOĆKI","BRAŃSK","ORLA","RUDKA","WYSZKI"]
[null,"GRAJEWSKI","GRAJEWO","GRAJEWO","RADZIŁÓW","RAJGRÓD","SZCZUCZYN","WĄSOSZ"]
[null,"HAJNOWSKI","HAJNÓWKA","BIAŁOWIEŻA","CZEREMCHA","CZYŻE","DUBICZE CERKIEWNE","HAJNÓWKA","KLESZCZELE","NAREW","NAREWKA"]
[null,"KOLNEŃSKI","KOLNO","GRABOWO","KOLNO","MAŁY PŁOCK","STAWISKI","TUROŚL"]
[null,"ŁOMŻYŃSKI","JEDWABNE","ŁOMŻA","MIASTKOWO","NOWOGRÓD","PIĄTNICA","PRZYTUŁY","ŚNIADOWO","WIZNA","ZBÓJNA"]
[null,"MONIECKI","GONIĄDZ","JASIONÓWKA","JAŚWIŁY","KNYSZYN","KRYPNO","MOŃKI","TRZCIANNE"]
[null,"SEJNEŃSKI","SEJNY","GIBY","KRASNOPOL","PUŃSK","SEJNY"]
[null,"SIEMIATYCKI","SIEMIATYCZE","DROHICZYN","DZIADKOWICE","GRODZISK","MIELNIK","MILEJCZYCE","NURZEC-STACJA","PERLEJEWO","SIEMIATYCZE"]
[null,"SOKÓLSKI","DĄBROWA BIAŁOSTOCKA","JANÓW","KORYCIN","KRYNKI","KUŹNICA","NOWY DWÓR","SIDRA","SOKÓŁKA","SUCHOWOLA","SZUDZIAŁOWO"]
[null,"SUWALSKI","BAKAŁARZEWO","FILIPÓW","JELENIEWO","PRZEROŚL","RACZKI","RUTKA-TARTAK","SUWAŁKI","SZYPLISZKI","WIŻAJNY"]
[null,"WYSOKOMAZOWIECKI","WYSOKIE MAZOWIECKIE","CIECHANOWIEC","CZYŻEW","KLUKOWO","KOBYLIN-BORZYMY","KULESZE KOŚCIELNE","NOWE PIEKUTY","SOKOŁY","SZEPIETOWO","WYSOKIE MAZOWIECKIE"]
[null,"ZAMBROWSKI","ZAMBRÓW","KOŁAKI KOŚCIELNE","RUTKI","SZUMOWO","ZAMBRÓW"]
[null,"BIAŁYSTOK","BIAŁYSTOK"]
[null,"ŁOMŻA","ŁOMŻA"]
[null,"SUWAŁKI","SUWAŁKI"]
[null,"BYTOWSKI","BORZYTUCHOM","BYTÓW","CZARNA DĄBRÓWKA","KOŁCZYGŁOWY","LIPNICA","MIASTKO","PARCHOWO","STUDZIENICE","TRZEBIELINO","TUCHOMIE"]
[null,"CHOJNICKI","CHOJNICE","BRUSY","CHOJNICE","CZERSK","KONARZYNY"]
[null,"CZŁUCHOWSKI","CZŁUCHÓW","CZARNE","CZŁUCHÓW","DEBRZNO","KOCZAŁA","PRZECHLEWO","RZECZENICA"]
[null,"GDAŃSKI","PRUSZCZ GDAŃSKI","CEDRY WIELKIE","KOLBUDY","PRUSZCZ GDAŃSKI","PRZYWIDZ","PSZCZÓŁKI","SUCHY DĄB","TRĄBKI WIELKIE"]
[null,"KARTUSKI","CHMIELNO","KARTUZY","PRZODKOWO","SIERAKOWICE","SOMONINO","STĘŻYCA","SULĘCZYNO","ŻUKOWO"]
[null,"KOŚCIERSKI","KOŚCIERZYNA","DZIEMIANY","KARSIN","KOŚCIERZYNA","LINIEWO","LIPUSZ","NOWA KARCZMA","STARA KISZEWA"]
[null,"KWIDZYŃSKI","KWIDZYN","GARDEJA","KWIDZYN","PRABUTY","RYJEWO","SADLINKI"]
[null,"LĘBORSKI","LĘBORK","ŁEBA","CEWICE","NOWA WIEŚ LĘBORSKA","WICKO"]
[null,"MALBORSKI","MALBORK","LICHNOWY","MALBORK","MIŁORADZ","NOWY STAW","STARE POLE"]
[null,"NOWODWORSKI","KRYNICA MORSKA","NOWY DWÓR GDAŃSKI","OSTASZEWO","STEGNA","SZTUTOWO"]
[null,"PUCKI","HEL","JASTARNIA","PUCK","WŁADYSŁAWOWO","KOSAKOWO","KROKOWA","PUCK"]
[null,"SŁUPSKI","USTKA","DAMNICA","DĘBNICA KASZUBSKA","GŁÓWCZYCE","KĘPICE","KOBYLNICA","POTĘGOWO","SŁUPSK","SMOŁDZINO","USTKA"]
[null,"STAROGARDZKI","CZARNA WODA","SKÓRCZ","STAROGARD GDAŃSKI","BOBOWO","KALISKA","LUBICHOWO","OSIECZNA","OSIEK","SKARSZEWY","SKÓRCZ","SMĘTOWO GRANICZNE","STAROGARD GDAŃSKI","ZBLEWO"]
[null,"TCZEWSKI","TCZEW","GNIEW","MORZESZCZYN","PELPLIN","SUBKOWY","TCZEW"]
[null,"WEJHEROWSKI","REDA","RUMIA","WEJHEROWO","CHOCZEWO","GNIEWINO","LINIA","LUZINO","ŁĘCZYCE","SZEMUD","WEJHEROWO"]
[null,"SZTUMSKI","DZIERZGOŃ","MIKOŁAJKI POMORSKIE","STARY DZIERZGOŃ","STARY TARG","SZTUM"]
[null,"GDAŃSK","GDAŃSK"]
[null,"GDYNIA","GDYNIA"]
[null,"SŁUPSK","SŁUPSK"]
[null,"SOPOT","SOPOT"]
[null,"BĘDZIŃSKI","BĘDZIN","CZELADŹ","WOJKOWICE","BOBROWNIKI","MIERZĘCICE","PSARY","SIEWIERZ","SŁAWKÓW"]
[null,"BIELSKI","SZCZYRK","BESTWINA","BUCZKOWICE","CZECHOWICE-DZIEDZICE","JASIENICA","JAWORZE","KOZY","PORĄBKA","WILAMOWICE","WILKOWICE"]
[null,"CIESZYŃSKI","CIESZYN","USTROŃ","WISŁA","BRENNA","CHYBIE","DĘBOWIEC","GOLESZÓW","HAŻLACH","ISTEBNA","SKOCZÓW","STRUMIEŃ","ZEBRZYDOWICE"]
[null,"CZĘSTOCHOWSKI","BLACHOWNIA","DĄBROWA ZIELONA","JANÓW","KAMIENICA POLSKA","KŁOMNICE","KONIECPOL","KONOPISKA","KRUSZYNA","LELÓW","MSTÓW","MYKANÓW","OLSZTYN","POCZESNA","PRZYRÓW","RĘDZINY","STARCZA"]
[null,"GLIWICKI","KNURÓW","PYSKOWICE","GIERAŁTOWICE","PILCHOWICE","RUDZINIEC","SOŚNICOWICE","TOSZEK","WIELOWIEŚ"]
[null,"KŁOBUCKI","KŁOBUCK","KRZEPICE","LIPIE","MIEDŹNO","OPATÓW","PANKI","POPÓW","PRZYSTAJŃ","WRĘCZYCA WIELKA"]
[null,"LUBLINIECKI","LUBLINIEC","BORONÓW","CIASNA","HERBY","KOCHANOWICE","KOSZĘCIN","PAWONKÓW","WOŹNIKI"]
[null,"MIKOŁOWSKI","ŁAZISKA GÓRNE","MIKOŁÓW","ORZESZE","ORNONTOWICE","WYRY"]
[null,"MYSZKOWSKI","MYSZKÓW","KOZIEGŁOWY","NIEGOWA","PORAJ","ŻARKI"]
[null,"PSZCZYŃSKI","GOCZAŁKOWICE-ZDRÓJ","KOBIÓR","MIEDŹNA","PAWŁOWICE","PSZCZYNA","SUSZEC"]
[null,"RACIBORSKI","RACIBÓRZ","KORNOWAC","KRZANOWICE","KRZYŻANOWICE","KUŹNIA RACIBORSKA","NĘDZA","PIETROWICE WIELKIE","RUDNIK"]
[null,"RYBNICKI","CZERWIONKA-LESZCZYNY","GASZOWICE","JEJKOWICE","LYSKI","ŚWIERKLANY"]
[null,"TARNOGÓRSKI","KALETY","MIASTECZKO ŚLĄSKIE","RADZIONKÓW","TARNOWSKIE GÓRY","KRUPSKI MŁYN","OŻAROWICE","ŚWIERKLANIEC","TWORÓG","ZBROSŁAWICE"]
[null,"BIERUŃSKO_LĘDZIŃSKI","BIERUŃ","IMIELIN","LĘDZINY","BOJSZOWY","CHEŁM ŚLĄSKI"]
[null,"WODZISŁAWSKI","PSZÓW","RADLIN","RYDUŁTOWY","WODZISŁAW ŚLĄSKI","GODÓW","GORZYCE","LUBOMIA","MARKLOWICE","MSZANA"]
[null,"ZAWIERCIAŃSKI","PORĘBA","ZAWIERCIE","IRZĄDZE","KROCZYCE","ŁAZY","OGRODZIENIEC","PILICA","SZCZEKOCINY","WŁODOWICE","ŻARNOWIEC"]
[null,"ŻYWIECKI","ŻYWIEC","CZERNICHÓW","GILOWICE","JELEŚNIA","KOSZARAWA","LIPOWA","ŁĘKAWICA","ŁODYGOWICE","MILÓWKA","RADZIECHOWY-WIEPRZ","RAJCZA","ŚLEMIEŃ","ŚWINNA","UJSOŁY","WĘGIERSKA GÓRKA"]
[null,"BIELSKO_BIAŁA","BIELSKO-BIAŁA"]
[null,"BYTOM","BYTOM"]
[null,"CHORZÓW","CHORZÓW"]
[null,"CZĘSTOCHOWA","CZĘSTOCHOWA"]
[null,"DĄBROWA GÓRNICZA","DĄBROWA GÓRNICZA"]
[null,"GLIWICE","GLIWICE"]
[null,"JASTRZĘBIE_ZDRÓJ","JASTRZĘBIE-ZDRÓJ"]
[null,"JAWORZNO","JAWORZNO"]
[null,"KATOWICE","KATOWICE"]
[null,"MYSŁOWICE","MYSŁOWICE"]
[null,"PIEKARY_ŚLĄSKIE","PIEKARY ŚLĄSKIE"]
[null,"RUDA_ŚLĄSKA","RUDA ŚLĄSKA"]
[null,"RYBNIK","RYBNIK"]
[null,"SIEMIANOWICE_ŚLĄSKIE","SIEMIANOWICE ŚLĄSKIE"]
[null,"SOSNOWIEC","SOSNOWIEC"]
[null,"ŚWIĘTOCHŁOWICE","ŚWIĘTOCHŁOWICE"]
[null,"TYCHY","TYCHY"]
[null,"ZABRZE","ZABRZE"]
[null,"ŻORY","ŻORY"]
[null,"BUSKI","BUSKO-ZDRÓJ","GNOJNO","NOWY KORCZYN","PACANÓW","SOLEC-ZDRÓJ","STOPNICA","TUCZĘPY","WIŚLICA"]
[null,"JĘDRZEJOWSKI","IMIELNO","JĘDRZEJÓW","MAŁOGOSZCZ","NAGŁOWICE","OKSA","SĘDZISZÓW","SŁUPIA","SOBKÓW","WODZISŁAW"]
[null,"KAZIMIERSKI","BEJSCE","CZARNOCIN","KAZIMIERZA WIELKA","OPATOWIEC","SKALBMIERZ"]
[null,"KIELECKI","BIELINY","BODZENTYN","CHĘCINY","CHMIELNIK","DALESZYCE","GÓRNO","ŁAGÓW","ŁOPUSZNO","MASŁÓW","MIEDZIANA GÓRA","MNIÓW","MORAWICA","NOWA SŁUPIA","PIEKOSZÓW","PIERZCHNICA","RAKÓW","SITKÓWKA-NOWINY","STRAWCZYN","ZAGNAŃSK"]
[null,"KONECKI","FAŁKÓW","GOWARCZÓW","KOŃSKIE","RADOSZYCE","RUDA MALENIECKA","SŁUPIA KONECKA","SMYKÓW","STĄPORKÓW"]
[null,"OPATOWSKI","BAĆKOWICE","IWANISKA","LIPNIK","OPATÓW","OŻARÓW","SADOWIE","TARŁÓW","WOJCIECHOWICE"]
[null,"OSTROWIECKI","OSTROWIEC ŚWIĘTOKRZYSKI","BAŁTÓW","BODZECHÓW","ĆMIELÓW","KUNÓW","WAŚNIÓW"]
[null,"PIŃCZOWSKI","DZIAŁOSZYCE","KIJE","MICHAŁÓW","PIŃCZÓW","ZŁOTA"]
[null,"SANDOMIERSKI","SANDOMIERZ","DWIKOZY","KLIMONTÓW","KOPRZYWNICA","ŁONIÓW","OBRAZÓW","SAMBORZEC","WILCZYCE","ZAWICHOST"]
[null,"SKARŻYSKI","SKARŻYSKO-KAMIENNA","BLIŻYN","ŁĄCZNA","SKARŻYSKO KOŚCIELNE","SUCHEDNIÓW"]
[null,"STARACHOWICKI","STARACHOWICE","BRODY","MIRZEC","PAWŁÓW","WĄCHOCK"]
[null,"STASZOWSKI","BOGORIA","ŁUBNICE","OLEŚNICA","OSIEK","POŁANIEC","RYTWIANY","STASZÓW","SZYDŁÓW"]
[null,"WŁOSZCZOWSKI","KLUCZEWSKO","KRASOCIN","MOSKORZEW","RADKÓW","SECEMIN","WŁOSZCZOWA"]
[null,"KIELCE","KIELCE"]
[null,"BARTOSZYCKI","BARTOSZYCE","GÓROWO IŁAWECKIE","BARTOSZYCE","BISZTYNEK","GÓROWO IŁAWECKIE","SĘPOPOL"]
[null,"BRANIEWSKI","BRANIEWO","BRANIEWO","FROMBORK","LELKOWO","PIENIĘŻNO","PŁOSKINIA","WILCZĘTA"]
[null,"DZIAŁDOWSKI","DZIAŁDOWO","DZIAŁDOWO","IŁOWO-OSADA","LIDZBARK","PŁOŚNICA","RYBNO"]
[null,"ELBLĄSKI","ELBLĄG","GODKOWO","GRONOWO ELBLĄSKIE","MARKUSY","MILEJEWO","MŁYNARY","PASŁĘK","RYCHLIKI","TOLKMICKO"]
[null,"EŁCKI","EŁK","EŁK","KALINOWO","PROSTKI","STARE JUCHY"]
[null,"GIŻYCKI","GIŻYCKO","GIŻYCKO","KRUKLANKI","MIŁKI","RYN","WYDMINY"]
[null,"IŁAWSKI","IŁAWA","LUBAWA","IŁAWA","KISIELICE","LUBAWA","SUSZ","ZALEWO"]
[null,"KĘTRZYŃSKI","KĘTRZYN","BARCIANY","KĘTRZYN","KORSZE","RESZEL","SROKOWO"]
[null,"LIDZBARSKI","LIDZBARK WARMIŃSKI","KIWITY","LIDZBARK WARMIŃSKI","LUBOMINO","ORNETA"]
[null,"MRĄGOWSKI","MRĄGOWO","MIKOŁAJKI","MRĄGOWO","PIECKI","SORKWITY"]
[null,"NIDZICKI","JANOWIEC KOŚCIELNY","JANOWO","KOZŁOWO","NIDZICA"]
[null,"NOWOMIEJSKI","NOWE MIASTO LUBAWSKIE","BISKUPIEC","GRODZICZNO","KURZĘTNIK","NOWE MIASTO LUBAWSKIE"]
[null,"OLECKI","KOWALE OLECKIE","OLECKO","ŚWIĘTAJNO","WIELICZKI"]
[null,"OLSZTYŃSKI","BARCZEWO","BISKUPIEC","DOBRE MIASTO","DYWITY","GIETRZWAŁD","JEZIORANY","JONKOWO","KOLNO","OLSZTYNEK","PURDA","STAWIGUDA","ŚWIĄTKI"]
[null,"OSTRÓDZKI","OSTRÓDA","DĄBRÓWNO","GRUNWALD","ŁUKTA","MAŁDYTY","MIŁAKOWO","MIŁOMŁYN","MORĄG","OSTRÓDA"]
[null,"PISKI","BIAŁA PISKA","ORZYSZ","PISZ","RUCIANE-NIDA"]
[null,"SZCZYCIEŃSKI","SZCZYTNO","DŹWIERZUTY","JEDWABNO","PASYM","ROZOGI","SZCZYTNO","ŚWIĘTAJNO","WIELBARK"]
[null,"GOŁDAPSKI","BANIE MAZURSKIE","DUBENINKI","GOŁDAP"]
[null,"WĘGORZEWSKI","BUDRY","POZEZDRZE","WĘGORZEWO"]
[null,"ELBLĄG","ELBLĄG"]
[null,"OLSZTYN","OLSZTYN"]
[null,"CHODZIESKI","CHODZIEŻ","BUDZYŃ","CHODZIEŻ","MARGONIN","SZAMOCIN"]
[null,"CZARNKOWSKO_TRZCIANECKI","CZARNKÓW","CZARNKÓW","DRAWSKO","KRZYŻ WIELKOPOLSKI","LUBASZ","POŁAJEWO","TRZCIANKA","WIELEŃ"]
[null,"GNIEŹNIEŃSKI","GNIEZNO","CZERNIEJEWO","GNIEZNO","KISZKOWO","KŁECKO","ŁUBOWO","MIELESZYN","NIECHANOWO","TRZEMESZNO","WITKOWO"]
[null,"GOSTYŃSKI","BOREK WIELKOPOLSKI","GOSTYŃ","KROBIA","PĘPOWO","PIASKI","POGORZELA","PONIEC"]
[null,"GRODZISKI.","GRANOWO","GRODZISK WIELKOPOLSKI","KAMIENIEC","RAKONIEWICE","WIELICHOWO"]
[null,"JAROCIŃSKI","JARACZEWO","JAROCIN","KOTLIN","ŻERKÓW"]
[null,"KALISKI","BLIZANÓW","BRZEZINY","CEKÓW-KOLONIA","GODZIESZE WIELKIE","KOŹMINEK","LISKÓW","MYCIELIN","OPATÓWEK","STAWISZYN","SZCZYTNIKI","ŻELAZKÓW"]
[null,"KĘPIŃSKI","BARANÓW","BRALIN","KĘPNO","ŁĘKA OPATOWSKA","PERZÓW","RYCHTAL","TRZCINICA"]
[null,"KOLSKI","KOŁO","BABIAK","CHODÓW","DĄBIE","GRZEGORZEW","KŁODAWA","KOŁO","KOŚCIELEC","OLSZÓWKA","OSIEK MAŁY","PRZEDECZ"]
[null,"KONIŃSKI","GOLINA","GRODZIEC","KAZIMIERZ BISKUPI","KLECZEW","KRAMSK","KRZYMÓW","RYCHWAŁ","RZGÓW","SKULSK","SOMPOLNO","STARE MIASTO","ŚLESIN","WIERZBINEK","WILCZYN"]
[null,"KOŚCIAŃSKI","KOŚCIAN","CZEMPIŃ","KOŚCIAN","KRZYWIŃ","ŚMIGIEL"]
[null,"KROTOSZYŃSKI","SULMIERZYCE","KOBYLIN","KOŹMIN WIELKOPOLSKI","KROTOSZYN","ROZDRAŻEW","ZDUNY"]
[null,"LESZCZYŃSKI","KRZEMIENIEWO","LIPNO","OSIECZNA","RYDZYNA","ŚWIĘCIECHOWA","WIJEWO","WŁOSZAKOWICE"]
[null,"MIĘDZYCHODZKI","CHRZYPSKO WIELKIE","KWILCZ","MIĘDZYCHÓD","SIERAKÓW"]
[null,"NOWOTOMYSKI","KUŚLIN","LWÓWEK","MIEDZICHOWO","NOWY TOMYŚL","OPALENICA","ZBĄSZYŃ"]
[null,"OBORNICKI","OBORNIKI","ROGOŹNO","RYCZYWÓŁ"]
[null,"OSTROWSKI","OSTRÓW WIELKOPOLSKI","NOWE SKALMIERZYCE","ODOLANÓW","OSTRÓW WIELKOPOLSKI","PRZYGODZICE","RASZKÓW","SIEROSZEWICE","SOŚNIE"]
[null,"OSTRZESZOWSKI","CZAJKÓW","DORUCHÓW","GRABÓW NAD PROSNĄ","KOBYLA GÓRA","KRASZEWICE","MIKSTAT","OSTRZESZÓW"]
[null,"PILSKI","PIŁA","BIAŁOŚLIWIE","KACZORY","ŁOBŻENICA","MIASTECZKO KRAJEŃSKIE","SZYDŁOWO","UJŚCIE","WYRZYSK","WYSOKA"]
[null,"PLESZEWSKI","CHOCZ","CZERMIN","DOBRZYCA","GIZAŁKI","GOŁUCHÓW","PLESZEW"]
[null,"POZNAŃSKI","LUBOŃ","PUSZCZYKOWO","BUK","CZERWONAK","DOPIEWO","KLESZCZEWO","KOMORNIKI","KOSTRZYN","KÓRNIK","MOSINA","MUROWANA GOŚLINA","POBIEDZISKA","ROKIETNICA","STĘSZEW","SUCHY LAS","SWARZĘDZ","TARNOWO PODGÓRNE"]
[null,"RAWICKI","BOJANOWO","JUTROSIN","MIEJSKA GÓRKA","PAKOSŁAW","RAWICZ"]
[null,"SŁUPECKI","SŁUPCA","LĄDEK","ORCHOWO","OSTROWITE","POWIDZ","SŁUPCA","STRZAŁKOWO","ZAGÓRÓW"]
[null,"SZAMOTULSKI","OBRZYCKO","DUSZNIKI","KAŹMIERZ","OBRZYCKO","OSTRORÓG","PNIEWY","SZAMOTUŁY","WRONKI"]
[null,"ŚREDZKI","DOMINOWO","KRZYKOSY","NOWE MIASTO NAD WARTĄ","ŚRODA WIELKOPOLSKA","ZANIEMYŚL"]
[null,"ŚREMSKI","BRODNICA","DOLSK","KSIĄŻ WIELKOPOLSKI","ŚREM"]
[null,"TURECKI","TUREK","BRUDZEW","DOBRA","KAWĘCZYN","MALANÓW","PRZYKONA","TULISZKÓW","TUREK","WŁADYSŁAWÓW"]
[null,"WĄGROWIECKI","WĄGROWIEC","DAMASŁAWEK","GOŁAŃCZ","MIEŚCISKO","SKOKI","WAPNO","WĄGROWIEC"]
[null,"WOLSZTYŃSKI","PRZEMĘT","SIEDLEC","WOLSZTYN"]
[null,"WRZESIŃSKI","KOŁACZKOWO","MIŁOSŁAW","NEKLA","PYZDRY","WRZEŚNIA"]
[null,"ZŁOTOWSKI","ZŁOTÓW","JASTROWIE","KRAJENKA","LIPKA","OKONEK","TARNÓWKA","ZAKRZEWO","ZŁOTÓW"]
[null,"KALISZ","KALISZ"]
[null,"KONIN","KONIN"]
[null,"LESZNO","LESZNO"]
[null,"POZNAŃ","POZNAŃ"]
[null,"BIAŁOGARDZKI","BIAŁOGARD","BIAŁOGARD","KARLINO","TYCHOWO"]
[null,"CHOSZCZEŃSKI","BIERZWNIK","CHOSZCZNO","DRAWNO","KRZĘCIN","PEŁCZYCE","RECZ"]
[null,"DRAWSKI","CZAPLINEK","DRAWSKO POMORSKIE","KALISZ POMORSKI","WIERZCHOWO","ZŁOCIENIEC"]
[null,"GOLENIOWSKI","GOLENIÓW","MASZEWO","NOWOGARD","OSINA","PRZYBIERNÓW","STEPNICA"]
[null,"GRYFICKI","BROJCE","GRYFICE","KARNICE","PŁOTY","REWAL","TRZEBIATÓW"]
[null,"GRYFIŃSKI","BANIE","CEDYNIA","CHOJNA","GRYFINO","MIESZKOWICE","MORYŃ","STARE CZARNOWO","TRZCIŃSKO-ZDRÓJ","WIDUCHOWA"]
[null,"KAMIEŃSKI","DZIWNÓW","GOLCZEWO","KAMIEŃ POMORSKI","MIĘDZYZDROJE","ŚWIERZNO","WOLIN"]
[null,"KOŁOBRZESKI","KOŁOBRZEG","DYGOWO","GOŚCINO","KOŁOBRZEG","RYMAŃ","SIEMYŚL","USTRONIE MORSKIE"]
[null,"KOSZALIŃSKI","BĘDZINO","BIESIEKIERZ","BOBOLICE","MANOWO","MIELNO","POLANÓW","SIANÓW","ŚWIESZYNO"]
[null,"MYŚLIBORSKI","BARLINEK","BOLESZKOWICE","DĘBNO","MYŚLIBÓRZ","NOWOGRÓDEK POMORSKI"]
[null,"POLICKI","DOBRA (SZCZECIŃSKA)","KOŁBASKOWO","NOWE WARPNO","POLICE"]
[null,"PYRZYCKI","BIELICE","KOZIELICE","LIPIANY","PRZELEWICE","PYRZYCE","WARNICE"]
[null,"SŁAWIEŃSKI","DARŁOWO","SŁAWNO","DARŁOWO","MALECHOWO","POSTOMINO","SŁAWNO"]
[null,"STARGARDZKI","STARGARD","CHOCIWEL","DOBRZANY","DOLICE","IŃSKO","KOBYLANKA","MARIANOWO","STARA DĄBROWA","STARGARD","SUCHAŃ"]
[null,"SZCZECINECKI","SZCZECINEK","BARWICE","BIAŁY BÓR","BORNE SULINOWO","GRZMIĄCA","SZCZECINEK"]
[null,"ŚWIDWIŃSKI","ŚWIDWIN","BRZEŻNO","POŁCZYN-ZDRÓJ","RĄBINO","SŁAWOBORZE","ŚWIDWIN"]
[null,"WAŁECKI","WAŁCZ","CZŁOPA","MIROSŁAWIEC","TUCZNO","WAŁCZ"]
[null,"ŁOBESKI","DOBRA","ŁOBEZ","RADOWO MAŁE","RESKO","WĘGORZYNO"]
[null,"KOSZALIN","KOSZALIN"]
[null,"SZCZECIN","SZCZECIN"]
[null,"ŚWINOUJŚCIE","ŚWINOUJŚCIE"]

{"sheet":"Adres zam.Benef._Małż.","index":3,"n_rows":111,"n_cols":68,"rows_kept":111,"cut":false,"hidden":false,"merged":[[78,46,79,48],[75,46,75,48],[76,46,77,48],[70,3,70,36],[71,3,71,31],[71,32,71,36],[63,3,63,9],[63,10,63,17],[63,18,63,26],[63,27,63,36],[64,3,64,9],[64,10,64,17],[64,18,64,26],[64,27,64,36],[72,3,72,36],[65,3,65,9],[65,10,65,17],[65,18,65,36],[66,3,66,9],[66,18,66,36],[67,3,67,17],[67,18,68,36],[68,3,68,17],[3,4,3,26],[34,3,34,9],[34,10,34,17],[34,18,34,36],[40,4,40,36],[42,3,42,23],[42,24,42,36],[43,3,43,23],[43,24,43,36],[19,18,19,26],[19,27,19,36],[20,18,20,26],[21,18,21,26],[20,27,20,36],[20,10,20,17],[20,3,20,9],[28,3,28,36],[30,3,30,9],[30,10,30,17],[16,23,16,36],[18,3,18,9],[18,10,18,17],[18,18,18,26],[18,27,18,36],[19,3,19,9],[19,10,19,17],[21,10,21,17],[33,10,33,17],[21,3,21,9],[30,18,30,26],[30,27,30,36],[33,3,33,9],[33,27,33,36],[21,27,21,36],[22,18,22,36],[23,18,23,36],[22,10,22,17],[22,3,22,9],[23,3,23,9],[24,3,24,17],[25,3,25,17],[24,18,25,36],[31,3,31,9],[31,10,31,17],[31,18,31,26],[31,27,31,36],[32,3,32,9],[32,10,32,17],[5,3,5,20],[11,14,11,22],[11,24,11,36],[13,3,13,8],[13,10,13,22],[14,3,14,8],[14,10,14,22],[6,3,8,20],[7,21,7,36],[8,21,8,36],[10,3,10,12],[10,14,10,22],[10,24,10,36],[6,21,6,36],[5,21,5,36],[11,3,11,12],[61,3,61,9],[61,10,61,17],[61,18,61,26],[61,27,61,36],[48,13,48,27],[56,3,56,12],[56,14,56,22],[56,24,56,36],[49,4,49,18],[52,21,52,36],[51,21,51,36],[48,3,48,11],[48,42,49,42],[35,10,35,17],[23,10,23,17],[66,10,66,17],[51,3,51,20],[73,4,73,36],[52,3,54,20],[53,21,53,36],[54,21,54,36],[32,18,32,26],[32,27,32,36],[33,18,33,26],[62,3,62,9],[62,10,62,17],[62,18,62,26],[62,27,62,36],[35,3,35,9],[35,18,35,36],[36,3,36,17],[36,18,37,36],[37,3,37,17],[57,14,57,22],[57,24,57,36],[59,4,59,36]]}
[]
[]
[null,null,"VI. IDENTYFIKACJA BENEFICJENTA ",null,null,null,null,null,null,null,null,null,null,null,null,null,null,null,null,null,null,null,null,null,null,null,null,null,null,null,null,null,null,null,null,null,null,null,null,null,null,null,null,null,null,null,null,null,null,null,null,null,null,null,null,null,"wybierz z listy"]
[null,null,null,"1.","Dane identyfikacyjne Beneficjenta",null,null,null,null,null,null,null,null,null,null,null,null,null,null,null,null,null,null,null,null,null,null,null,null,null,null,null,null,null,null,null,null,null,null,null,null,null,null,null,null,null,null,null,null,null,null,null,null,null,null,null,"pierwszy"]
[null,null,null,null,null,null,null,null,null,null,null,null,null,null,null,null,null,null,null,null,null,null,null,null,null,null,null,null,null,null,null,null,null,null,null,null,null,null,null,null,null,null,null,null,null,null,null,null,null,null,null,null,null,null,null,null,"szósty"]
[null,null,null,"1.1. Nazwisko: ",null,null,null,null,null,null,null,null,null,null,null,null,null,null,null,null,null,"1.2. Pierwsze imię",null,null,null,null,null,null,null,null,null,null,null,null,null,null,null,null,null,null,null,null,null,null,null,null,"wybierz z listy",null,null,null,null,null,null,null,null,null,"siódmy"]
[null,null,null,null,null,null,null,null,null,null,null,null,null,null,null,null,null,null,null,null,null,null,null,null,null,null,null,null,null,null,null,null,null,null,null,null,null,null,null,null,null,null,null,null,null,null,"dolnośląskie",null,null,null,null,null,null,null,null,null,"ósmy"]
[null,null,null,null,null,null,null,null,null,null,null,null,null,null,null,null,null,null,null,null,null,"1.3. Data urodzenia",null,null,null,null,null,null,null,null,null,null,null,null,null,null,null,null,null,null,null,null,null,null,null,null,"kujawsko - pomorskie",null,null,null,null,null,null,null,null,null,"dziewiąty"]
[null,null,null,null,null,null,null,null,null,null,null,null,null,null,null,null,null,null,null,null,null,null,null,null,null,null,null,null,null,null,null,null,null,null,null,null,null,null,null,null,null,null,null,null,null,null,"lubelskie"]
[null,null,null,null,null,null,null,null,null,null,null,null,null,null,null,null,null,null,null,null,null,null,null,null,null,null,null,null,null,null,null,null,null,null,null,null,null,null,null,null,null,null,null,null,null,null,"lubuskie"]
[null,null,null,"1.4. NIP1)",null,null,null,null,null,null,null,null,null,null,"1.5. Kod kraju (wypełnia osoba nieposiadająca obywatelstwa polskiego)",null,null,null,null,null,null,null,null,null,"1.6. Seria i numer  paszportu lub innego dokumenu tożsamości (wypełnia osoba nieposiadająca obywatelstwa polskiego)",null,null,null,null,null,null,null,null,null,null,null,null,null,null,null,null,null,null,null,null,null,"łódzkie",null,null,null,null,null,null,null,null,null,null,null,null,null,null,null,null,null,null,null,null,"(wybierz z listy)"]
[null,null,null,null,null,null,null,null,null,null,null,null,null,null,"(wybierz z listy)",null,null,null,null,null,null,null,null,null,null,null,null,null,null,null,null,null,null,null,null,null,null,null,null,null,null,null,null,null,null,null,null,null,null,null,null,null,null,null,null,null,null,null,null,null,null,null,null,null,null,null,null,"AT - Austria"]
[null,null,null,null,null,null,null,null,null,null,null,null,null,null,null,null,null,null,null,null,null,null,null,null,null,null,null,null,null,null,null,null,null,null,null,null,null,null,null,null,null,null,null,null,null,null,null,null,null,null,null,null,null,null,null,null,"dziesiąty",null,null,null,null,null,null,null,null,null,null,"BE - Belgia"]
[null,null,null,"1.7 Płeć*",null,null,null,null,null,null,"1.8. Stan cywilny",null,null,null,null,null,null,null,null,null,null,null,null,null,null,null,null,null,null,null,null,null,null,null,null,null,null,null,null,null,null,null,null,null,null,null,null,null,null,null,null,null,null,null,null,null,null,null,null,null,null,null,null,null,null,null,null,"BG - Bułgaria"]
[null,null,null,"(wybierz z listy)",null,null,null,null,null,null,"(wybierz z listy)",null,null,null,null,null,null,null,null,null,null,null,null,null,null,null,null,null,null,null,null,null,null,null,null,null,null,null,null,null,null,null,null,null,null,null,null,null,null,null,null,null,null,null,null,null,null,null,null,null,null,null,null,null,null,null,null,"HR - Chorwacja"]
[null,null,null,null,null,null,null,null,null,null,null,null,null,null,null,null,null,null,null,null,null,null,null,null,null,null,null,null,null,null,null,null,null,null,null,null,null,null,null,null,null,null,null,null,null,null,null,null,null,null,null,null,null,null,null,null,null,null,null,null,null,null,null,null,null,null,null,"CY - Cypr"]
[null,null,null,"2. "," Adres Beneficjenta (miejsce zamieszkania i adres)",null,null,null,null,null,null,null,null,null,null,null,null,null,null,null,null,null,null,null,null,null,null,null,null,null,null,null,null,null,null,null,null,null,null,null,null,null,null,null,null,null,null,null,null,null,null,null,null,null,null,null,null,null,null,null,null,null,null,null,null,null,null,"CZ - Czechy"]
[null,null,null,null,null,null,null,null,null,null,null,null,null,null,null,null,null,null,null,null,null,null,null,null,null,null,null,null,null,null,null,null,null,null,null,null,null,null,null,null,null,null,null,null,null,null,null,null,null,null,null,null,null,null,null,null,null,null,null,null,null,null,null,null,null,null,null,"DK - Dania"]
[null,null,null,"2.1. Kraj",null,null,null,null,null,null,"2.2. Województwo",null,null,null,null,null,null,null,"2.3. Powiat",null,null,null,null,null,null,null,null,"2.4. Gmina",null,null,null,null,null,null,null,null,null,null,null,null,null,null,null,null,null,null,null,null,null,null,null,null,null,null,null,null,null,null,null,null,null,null,null,null,null,null,null,"EE - Estonia"]
[null,null,null,null,null,null,null,null,null,null,"(wybierz z listy)",null,null,null,null,null,null,null,null,null,null,null,null,null,null,null,null,null,null,null,null,null,null,null,null,null,null,null,null,null,null,null,null,null,null,null,null,null,null,null,null,null,null,null,null,null,null,null,null,null,null,null,null,null,null,null,null,"FI - Finlandia "]
[null,null,null,"2.5. Kod pocztowy",null,null,null,null,null,null,"2.6. Poczta",null,null,null,null,null,null,null,"2.7. Miejscowość",null,null,null,null,null,null,null,null,"2.8 Ulica",null,null,null,null,null,null,null,null,null,null,null,null,null,null,null,null,null,null,null,null,null,null,null,null,null,null,null,null,null,null,null,null,null,null,null,null,null,null,null,"FR - Francja"]
[null,null,null,null,null,null,null,null,null,null,null,null,null,null,null,null,null,null,null,null,null,null,null,null,null,null,null,null,null,null,null,null,null,null,null,null,null,null,null,null,null,null,null,null,null,null,null,null,null,null,null,null,null,null,null,null,null,null,null,null,null,null,null,null,null,null,null,"GR - Grecja"]
[null,null,null,"2.9. Nr domu",null,null,null,null,null,null,"2.10. Nr lokalu",null,null,null,null,null,null,null,"2.11. Telefon komórkowy/stacjonarny*",null,null,null,null,null,null,null,null,null,null,null,null,null,null,null,null,null,null,null,null,null,null,null,null,null,null,null,null,null,null,null,null,null,null,null,null,null,null,null,null,null,null,null,null,null,null,null,null,"ES - Hiszpania"]
[null,null,null,null,null,null,null,null,null,null,null,null,null,null,null,null,null,null,null,null,null,null,null,null,null,null,null,null,null,null,null,null,null,null,null,null,null,null,null,null,null,null,null,null,null,null,null,null,null,null,null,null,null,null,null,null,null,null,null,null,null,null,null,null,null,null,null,"NL - Niderlandy"]
[null,null,null,"2.13. E-mail*",null,null,null,null,null,null,null,null,null,null,null,null,null,null,null,null,null,null,null,null,null,null,null,null,null,null,null,null,null,null,null,null,null,null,null,null,null,null,null,null,null,null,null,null,null,null,null,null,null,null,null,null,null,null,null,null,null,null,null,null,null,null,null,"IE - Irlandia"]
[null,null,null,null,null,null,null,null,null,null,null,null,null,null,null,null,null,null,null,null,null,null,null,null,null,null,null,null,null,null,null,null,null,null,null,null,null,null,null,null,null,null,null,null,null,null,null,null,null,null,null,null,null,null,null,null,null,null,null,null,null,null,null,null,null,null,null,"LT - Litwa"]
[null,null,null,null,null,null,null,null,null,null,null,null,null,null,null,null,null,null,null,null,null,null,null,null,null,null,null,null,null,null,null,null,null,null,null,null,null,null,null,null,null,null,null,null,null,null,null,null,null,null,null,null,null,null,null,null,null,null,null,null,null,null,null,null,null,null,null,"LU - Luksmeburg"]
[null,null,null,null,null,null,null,null,null,null,null,null,null,null,null,null,null,null,null,null,null,null,null,null,null,null,null,null,null,null,null,null,null,null,null,null,null,null,null,null,null,null,null,null,null,null,null,null,null,null,null,null,null,null,null,null,null,null,null,null,null,null,null,null,null,null,null,"LV - Łotwa"]
[null,null,null,"3. Adres do korespondencji (wypełnić, jeśli jest inny niż w pkt. 2 lub jeśli ustanowiono pełnomocnika)",null,null,null,null,null,null,null,null,null,null,null,null,null,null,null,null,null,null,null,null,null,null,null,null,null,null,null,null,null,null,null,null,null,null,null,null,null,null,null,null,null,null,null,null,null,null,null,null,null,null,null,null,null,null,null,null,null,null,null,null,null,null,null,"MT - Malta"]
[null,null,null,null,null,null,null,null,null,null,null,null,null,null,null,null,null,null,null,null,null,null,null,null,null,null,null,null,null,null,null,null,null,null,null,null,null,null,null,null,null,null,null,null,null,null,null,null,null,null,null,null,null,null,null,null,null,null,null,null,null,null,null,null,null,null,null,"DE - Niemcy"]
[null,null,null,"3.1. Kraj",null,null,null,null,null,null,"3.2. Województwo",null,null,null,null,null,null,null,"3.3. Powiat",null,null,null,null,null,null,null,null,"3.4. Gmina",null,null,null,null,null,null,null,null,null,null,null,null,null,null,null,null,null,null,null,null,null,null,null,null,null,null,null,null,null,null,null,null,null,null,null,null,null,null,null,"PT - Portugalia"]
[null,null,null,null,null,null,null,null,null,null,"(wybierz z listy)",null,null,null,null,null,null,null,null,null,null,null,null,null,null,null,null,null,null,null,null,null,null,null,null,null,null,null,null,null,null,null,null,null,null,null,null,null,null,null,null,null,null,null,null,null,null,null,null,null,null,null,null,null,null,null,null,"RO - Rumunia"]
[null,null,null,"3.5. Kod pocztowy",null,null,null,null,null,null,"3.6. Poczta",null,null,null,null,null,null,null,"3.7. Miejscowość",null,null,null,null,null,null,null,null,"3.8 Ulica",null,null,null,null,null,null,null,null,null,null,null,null,null,null,null,null,null,null,null,null,null,null,null,null,null,null,null,null,null,null,null,null,null,null,null,null,null,null,null,"SK - Słowacja"]
[null,null,null,null,null,null,null,null,null,null,null,null,null,null,null,null,null,null,null,null,null,null,null,null,null,null,null,null,null,null,null,null,null,null,null,null,null,null,null,null,null,null,null,null,null,null,null,null,null,null,null,null,null,null,null,null,null,null,null,null,null,null,null,null,null,null,null,"SI - Słowenia"]
[null,null,null,"3.9. Nr domu",null,null,null,null,null,null,"3.10 Nr lokalu",null,null,null,null,null,null,null,"3.11. Telefon komórkowy/stacjonarny*",null,null,null,null,null,null,null,null,null,null,null,null,null,null,null,null,null,null,null,null,null,null,null,null,{"$f":" IF(OR(10-RIGHT(L35)- RIGHT(AQ35)=0,10-RIGHT(L35)- RIGHT(AQ35)=10),1,2)","v":{"$error":"#VALUE!"}},null,null,null,null,null,null,null,null,null,null,null,null,null,null,null,null,null,null,null,null,null,null,null,"SE - Szwecja "]
[null,null,null,null,null,null,null,null,null,null,null,null,null,null,null,null,null,null,null,null,null,null,null,null,null,null,null,null,null,null,null,null,null,null,null,null,null,null,null,null,null,null,null,null,null,null,null,null,null,null,null,null,"WYBIERZ",null,null,null,null,null,null,null,null,null,null,null,null,null,null,"HU - Węgry"]
[null,null,null,"3.13. E-mail*",null,null,null,null,null,null,null,null,null,null,null,null,null,null,null,null,null,null,null,null,null,null,null,null,null,null,null,null,null,null,null,null,null,null,null,null,null,null,null,null,null,null,null,null,null,null,null,null,"TAK",null,null,null,null,null,null,null,null,null,null,null,null,null,null,"IT - Włochy"]
[null,null,null,null,null,null,null,null,null,null,null,null,null,null,null,null,null,null,null,null,null,null,null,null,null,null,null,null,null,null,null,null,null,null,null,null,null,null,null,null,null,null,null,null,null,null,null,null,null,null,null,null,"NIE"]
[]
[]
[null,null,null,"4.","Dane pełnomocnika Beneficjenta"]
[]
[null,null,null,"4.1 Nazwisko",null,null,null,null,null,null,null,null,null,null,null,null,null,null,null,null,null,null,null,null,"4.2 Pierwsze Imię "]
[]
[]
[]
[null,null,"VI.A IDENTYFIKACJA MAŁŻONKA BENEFICJENTA (jeżeli dotyczy)"]
[null,null,null,"1. Numer identyfikacyjny Małżonka Beneficjenta (jeśli został nadany)"]
[null,null,null,null,null,null,null,null,null,null,null,null,null,null,null,null,null,null,null,null,null,null,null,null,null,null,null,null,null,null,null,null,null,null,null,null,null,null,null,null,null,null,{"$f":"IF(AND(D49>0,AR49<>8),\"Błąd!Nr beneficjenta powinien zawierać 9 cyfr bez spacji, w tym cyfrę 0 na początku\",\"\")","v":""},{"$f":"LEN(D49)","v":0}]
[null,null,null,"2. ","Dane identyfikacyjne Małżonka Beneficjenta"]
[]
[null,null,null,"2.1. Nazwisko: ",null,null,null,null,null,null,null,null,null,null,null,null,null,null,null,null,null,"2.2. Pierwsze imię"]
[]
[null,null,null,null,null,null,null,null,null,null,null,null,null,null,null,null,null,null,null,null,null,"2.3. PESEL"]
[null,null,null,null,null,null,null,null,null,null,null,null,null,null,null,null,null,null,null,null,null,null,null,null,null,null,null,null,null,null,null,null,null,null,null,null,null,null,null,null,null,{"$f":"(MID($V$55,1,1)*1)+(MID($V$55,2,1)*3)+(MID($V$55,3,1)*7)+(MID($V$55,4,1)*9)+(MID($V$55,5,1)*1)+(MID($V$55,6,1)*3)+(MID($V$55,7,1)*7)+(MID($V$55,8,1)*9)+(MID($V$55,9,1)*1)+(MID($V$55,10,1)*3)","v":{"$error":"#VALUE!"}},{"$f":" IF(OR(10-RIGHT(V55)- RIGHT(AP55)=0,10-RIGHT(V55)- RIGHT(AP55)=10),1,2)","v":{"$error":"#VALUE!"}},null,{"$f":" IF(OR(10-RIGHT(E41V55)- RIGHT(AQ55)=0,10-RIGHT(V55)- RIGHT(AQ55)=10),1,2)","v":{"$error":"#NAME?"}}]
[]
[null,null,null,null,null,null,null,null,null,null,null,null,null,null,"2.4. Kod kraju (wypełnia osoba nieposiadająca obywatelstwa polskiego)",null,null,null,null,null,null,null,null,null,"2.5. Seria i numer  paszportu lub innego dokumenu tożsamości (wypełnia osoba nieposiadająca obywatelstwa polskiego)"]
[null,null,null,null,null,null,null,null,null,null,null,null,null,null,"(wybierz z listy)"]
[]
[null,null,null,"3. "," Adres Małżonka Beneficjenta (miejsce zamieszkania i adres)"]
[]
[null,null,null,"3.1. Kraj",null,null,null,null,null,null,"3.2. Województwo",null,null,null,null,null,null,null,"3.3. Powiat",null,null,null,null,null,null,null,null,"3.4. Gmina"]
[null,null,null,null,null,null,null,null,null,null,"(wybierz z listy)"]
[null,null,null,"3.5. Kod pocztowy",null,null,null,null,null,null,"3.6. Poczta",null,null,null,null,null,null,null,"3.7. Miejscowość",null,null,null,null,null,null,null,null,"3.8 Ulica"]
[]
[null,null,null,"3.9. Nr domu",null,null,null,null,null,null,"3.10. Nr lokalu",null,null,null,null,null,null,null,"3.11. Telefon komórkowy/stacjonarny*"]
[]
[null,null,null,"3.13. E-mail*"]
[]
[]
[null,null,null,"4. Rozdzielność majątkowa małżonków 1)"]
[null,null,null,"4.1. Ustanowiono rozdzielność majątkową z podmiotem wskazanym w części II wniosku",null,null,null,null,null,null,null,null,null,null,null,null,null,null,null,null,null,null,null,null,null,null,null,null,null,null,null,null,"(wybierz z listy)"]
[null,null,null,"1) dotyczy tylko Beneficjentów poddziałania 6.2"]
[null,null,null,"*","Dane nieobowiązkowe"]
[]
[null,null,null,null,null,null,null,null,null,null,null,null,null,null,null,null,null,null,null,null,null,null,null,null,null,null,null,null,null,null,null,null,null,null,null,null,null,null,null,null,null,null,null,null,null,null,"(wybierz z listy)"]
[null,null,null,null,null,null,null,null,null,null,null,null,null,null,null,null,null,null,null,null,null,null,null,null,null,null,null,null,null,null,null,null,null,null,null,null,null,null,null,null,null,null,null,null,null,null,"operacja związana z zaprzestaniem chowu i hodowli świń realizowana na obszarze wyznaczonych w związku ze zwalczaniem afrykańskiego pomoru świń(ASF)"]
[]
[null,null,null,null,null,null,null,null,null,null,null,null,null,null,null,null,null,null,null,null,null,null,null,null,null,null,null,null,null,null,null,null,null,null,null,null,null,null,null,null,null,null,null,null,null,null,"operacja związana z zaprzestaniem chowu i hodowli świń realizowana na obszarze wyznaczonych w związku ze zwalczaniem afrykańskiego pomoru świń (nie ASF)"]
[]
[]
[null,null,null,null,null,null,null,null,null,null,null,null,null,null,null,null,null,null,null,null,null,null,null,null,null,null,null,null,null,null,null,null,null,null,null,null,null,null,null,null,null,null,null,null,null,null,"(wybierz z listy)"]
[null,null,null,null,null,null,null,null,null,null,null,null,null,null,null,null,null,null,null,null,null,null,null,null,null,null,null,null,null,null,null,null,null,null,null,null,null,null,null,null,null,null,null,null,null,null,"opodatkowanie na zasadach ogólnych (pełna księgowość prowadzona wg ustawy o rachunkowości)"]
[null,null,null,null,null,null,null,null,null,null,null,null,null,null,null,null,null,null,null,null,null,null,null,null,null,null,null,null,null,null,null,null,null,null,null,null,null,null,null,null,null,null,null,null,null,null,"uproszczona ewidencja przychodów i rozchodów (rolnicy)"]
[null,null,null,null,null,null,null,null,null,null,null,null,null,null,null,null,null,null,null,null,null,null,null,null,null,null,null,null,null,null,null,null,null,null,null,null,null,null,null,null,null,null,null,null,null,null,"(wybierz z listy)"]
[null,null,null,null,null,null,null,null,null,null,null,null,null,null,null,null,null,null,null,null,null,null,null,null,null,null,null,null,null,null,null,null,null,null,null,null,null,null,null,null,null,null,null,null,null,null,"dolnośląskie"]
[null,null,null,null,null,null,null,null,null,null,null,null,null,null,null,null,null,null,null,null,null,null,null,null,null,null,null,null,null,null,null,null,null,null,null,null,null,null,null,null,null,null,null,null,null,null,"kujawsko - pomorskie"]
[null,null,null,null,null,null,null,null,null,null,null,null,null,null,null,null,null,null,null,null,null,null,null,null,null,null,null,null,null,null,null,null,null,null,null,null,null,null,null,null,null,null,null,null,null,null,"lubelskie"]
[null,null,null,null,null,null,null,null,null,null,null,null,null,null,null,null,null,null,null,null,null,null,null,null,null,null,null,null,null,null,null,null,null,null,null,null,null,null,null,null,null,null,null,null,null,null,"lubuskie"]
[null,null,null,null,null,null,null,null,null,null,null,null,null,null,null,null,null,null,null,null,null,null,null,null,null,null,null,null,null,null,null,null,null,null,null,null,null,null,null,null,null,null,null,null,null,null,"łódzkie"]
[null,null,null,null,null,null,null,null,null,null,null,null,null,null,null,null,null,null,null,null,null,null,null,null,null,null,null,null,null,null,null,null,null,null,null,null,null,null,null,null,null,null,null,null,null,null,"opolskie"]
[null,null,null,null,null,null,null,null,null,null,null,null,null,null,null,null,null,null,null,null,null,null,null,null,null,null,null,null,null,null,null,null,null,null,null,null,null,null,null,null,null,null,null,null,null,null,"podlaskie"]
[null,null,null,null,null,null,null,null,null,null,null,null,null,null,null,null,null,null,null,null,null,null,null,null,null,null,null,null,null,null,null,null,null,null,null,null,null,null,null,null,null,null,null,null,null,null,"podkarpackie"]
[null,null,null,null,null,null,null,null,null,null,null,null,null,null,null,null,null,null,null,null,null,null,null,null,null,null,null,null,null,null,null,null,null,null,null,null,null,null,null,null,null,null,null,null,null,null,"pomorskie"]
[null,null,null,null,null,null,null,null,null,null,null,null,null,null,null,null,null,null,null,null,null,null,null,null,null,null,null,null,null,null,null,null,null,null,null,null,null,null,null,null,null,null,null,null,null,null,"małopolskie"]
[null,null,null,null,null,null,null,null,null,null,null,null,null,null,null,null,null,null,null,null,null,null,null,null,null,null,null,null,null,null,null,null,null,null,null,null,null,null,null,null,null,null,null,null,null,null,"mazowieckie"]
[null,null,null,null,null,null,null,null,null,null,null,null,null,null,null,null,null,null,null,null,null,null,null,null,null,null,null,null,null,null,null,null,null,null,null,null,null,null,null,null,null,null,null,null,null,null,"śląskie"]
[null,null,null,null,null,null,null,null,null,null,null,null,null,null,null,null,null,null,null,null,null,null,null,null,null,null,null,null,null,null,null,null,null,null,null,null,null,null,null,null,null,null,null,null,null,null,"świętokrzyskie"]
[null,null,null,null,null,null,null,null,null,null,null,null,null,null,null,null,null,null,null,null,null,null,null,null,null,null,null,null,null,null,null,null,null,null,null,null,null,null,null,null,null,null,null,null,null,null,"warmińsko - mazurskie"]
[null,null,null,null,null,null,null,null,null,null,null,null,null,null,null,null,null,null,null,null,null,null,null,null,null,null,null,null,null,null,null,null,null,null,null,null,null,null,null,null,null,null,null,null,null,null,"wielkopolskie"]
[null,null,null,null,null,null,null,null,null,null,null,null,null,null,null,null,null,null,null,null,null,null,null,null,null,null,null,null,null,null,null,null,null,null,null,null,null,null,null,null,null,null,null,null,null,null,"zachodniopomorskie"]
[]
[null,null,null,null,null,null,null,null,null,null,null,null,null,null,null,null,null,null,null,null,null,null,null,null,null,null,null,null,null,null,null,null,null,null,null,null,null,null,null,null,null,null,null,null,null,null,"(wybierz z listy)"]
[null,null,null,null,null,null,null,null,null,null,null,null,null,null,null,null,null,null,null,null,null,null,null,null,null,null,null,null,null,null,null,null,null,null,null,null,null,null,null,null,null,null,null,null,null,null,"Kobieta "]
[null,null,null,null,null,null,null,null,null,null,null,null,null,null,null,null,null,null,null,null,null,null,null,null,null,null,null,null,null,null,null,null,null,null,null,null,null,null,null,null,null,null,null,null,null,null,"Mężczyzna"]
[null,null,null,null,null,null,null,null,null,null,null,null,null,null,null,null,null,null,null,null,null,null,null,null,null,null,null,null,null,null,null,null,null,null,null,null,null,null,null,null,null,null,null,null,null,null,"(wybierz z listy)"]
[null,null,null,null,null,null,null,null,null,null,null,null,null,null,null,null,null,null,null,null,null,null,null,null,null,null,null,null,null,null,null,null,null,null,null,null,null,null,null,null,null,null,null,null,null,null,"jestem w związku małżeńskim"]
[null,null,null,null,null,null,null,null,null,null,null,null,null,null,null,null,null,null,null,null,null,null,null,null,null,null,null,null,null,null,null,null,null,null,null,null,null,null,null,null,null,null,null,null,null,null,"nie jestem w związku małżeńskim"]
[null,null,null,null,null,null,null,null,null,null,null,null,null,null,null,null,null,null,null,null,null,null,null,null,null,null,null,null,null,null,null,null,null,null,null,null,null,null,null,null,null,null,null,null,null,null,"(wybierz z listy)"]
[null,null,null,null,null,null,null,null,null,null,null,null,null,null,null,null,null,null,null,null,null,null,null,null,null,null,null,null,null,null,null,null,null,null,null,null,null,null,null,null,null,null,null,null,null,null,"Tak"]
[null,null,null,null,null,null,null,null,null,null,null,null,null,null,null,null,null,null,null,null,null,null,null,null,null,null,null,null,null,null,null,null,null,null,null,null,null,null,null,null,null,null,null,null,null,null,"Nie"]

{"sheet":"wykaz faktur","index":4,"n_rows":16,"n_cols":19,"rows_kept":16,"cut":false,"hidden":false,"merged":[[1,1,1,11]]}
[]
[null,"VII. WYKAZ FAKTUR LUB DOKUMENTÓW POTWIERDZAJĄCYCH REALIZACJĘ BIZNESPLANU"]
[]
[null,"Lp.","Nr\ndokumentu","Data \nwystawienia dokumentu\nrrrr-mm-dd","NIP wystawcy dokumentu","Nazwa towaru lub usługi\nlub pozycja na dokumencie","Data zapłaty\nrrrr-mm-dd","Sposób zapłaty G/P/K ","Kwota dokumentu/ pozycji z dokumentu brutto","Kwota dokumentu/ pozycji z dokumentu  netto","Numer  ewidencyjny dokumentu","Rodzaj faktury"]
[null," ",1,2,3,4,5,6,7,8,9,10]
[null,"1","Kolumna1","Kolumna2","Kolumna3","Kolumna4","Kolumna6","Kolumna7","Kolumna8","Kolumna9","Kolumna11","Kolumna12"]
[null,1,null,null,null,null,null,null,null,null,null,null,null,{"$f":"ROW(N1)","v":1},null,null,"G",null,"papierowa"]
[null,{"$f":"B7+1","v":2},null,null,null,null,null,null,null,null,null,null,null,{"$f":"ROW(N2)","v":2},null,null,"P",null,"elektroniczna"]
[null,3,null,null,null,null,null,null,null,null,null,null,null,3,null,null,"K"]
[null,4,null,null,null,null,null,null,null,null,null,null,null,4]
[null,5,null,null,null,null,null,null,null,null,null,null,null,5]
[null,6,null,null,null,null,null,null,null,null,null,null,null,6]
[null,7,null,null,null,null,null,null,null,null,null,null,null,7]
[null,8,null,null,null,null,null,null,null,null,null,null,null,8]
[null,"…"]
[null,null,null,null,null,null,null,"RAZEM",{"$f":"SUM(I6:I15)","v":0},{"$f":"SUM(J6:J15)","v":0}]

{"sheet":"zest. rzecz-finans","index":5,"n_rows":36,"n_cols":22,"rows_kept":36,"cut":false,"hidden":false,"merged":[[1,10,1,11],[1,1,1,6],[2,3,3,3],[2,1,3,2],[2,4,3,4],[2,8,2,9],[35,2,35,9],[32,2,32,7],[26,2,26,9],[31,2,31,7],[11,2,11,7],[12,2,12,9],[24,2,24,7],[19,10,19,11],[34,2,34,9],[4,1,4,2],[2,5,2,7],[2,10,2,11],[5,2,5,11]]}
[null,null,null,null,null,null,null,null,null,null,null,null,null,null,null,null,null,null,null,null,null,"wybierz"]
[null,"  VIII. ZESTAWIENIE RZECZOWO - FINANSOWE Z REALIZACJI OPERACJI 1)",null,null,null,null,null,null,null,null,null,null,null,null,null,null,null,null,null,null,null,"TAK"]
[null,"Lp",null,"Wyszczególnienie zakresu rzeczowego dla etapu \n(zgodnie z pozycjami zawartymi w biznesplanie)","Zgodność zrealizowanego zakresu rzeczowego z biznesplanem                                                                    (TAK/NIE)","Mierniki rzeczowe",null,null,"Mierniki finansowe",null,"Dokumentowanie",null,null,null,null,null,null,null,"wybierz",null,null,"NIE"]
[null,null,null,null,null,"jednostka miary","ilość wg decyzji","ilość wg \nrozliczenia","wg  decyzji","wg rozliczenia","Nr/Nazwa\ndokumentu2)","Nr ewidencyjny dokumentu3)",null,null,null,null,null,null,1]
[null,null,null,1,2,3,4,5,6,7,8,9,null,null,null,null,null,null,2]
[null,"I"," KOSZTY ŚRODKÓW TRWAŁYCH",null,null,null,null,null,null,null,null,null,null,null,null,"WYBIERZ","WYBIERZ",null,3]
[null,null,{"$f":"ROW(C1)","v":1},null,"wybierz",null,null,null,null,null,null,null,{"$f":"ROW(M1)","v":1}]
[null,null,{"$f":"ROW(C2)","v":2},null,"wybierz",null,null,null,null,null,null,null,{"$f":"ROW(M2)","v":2}]
[null,null,3,null,"wybierz",null,null,null,null,null,null,null,3]
[null,null,4,null,"wybierz",null,null,null,null,null,null,null,4]
[null,null,"….",null,"wybierz",null,null,null,null,null,null,null,null,null,null,null,null,null,9]
[null,null,"SUMA I",null,null,null,null,null,{"$f":"SUM(I7:I11)","v":0},{"$f":"SUM(J7:J11)","v":0},null,null,null,null,null,null,null,null,10]
[null,"II","KOSZTY INNYCH ŚRODKÓW ZWIĄZANYCH Z POZAROLNICZĄ DZIAŁALNOŚCIĄ GOSPODARCZĄ"]
[null,null,{"$f":"ROW(C1)","v":1},null,"wybierz",null,null,null,null,null,null,null,{"$f":"ROW(M1)","v":1}]
[null,null,{"$f":"ROW(C2)","v":2},null,"wybierz",null,null,null,null,null,null,null,{"$f":"ROW(M2)","v":2}]
[null,null,3,null,"wybierz",null,null,null,null,null,null,null,3]
[null,null,4,null,"wybierz",null,null,null,null,null,null,null,4]
[null,null,"…",null,"wybierz"]
[null,null,"SUMA II",null,null,null,null,null,{"$f":"SUM(I14:I18)","v":0},{"$f":"SUM(J14:J18)","v":0}]
[null,"III","KOSZTY SZKOLEŃ, USŁUG DORADCZYCH LUB INNYCH PRZEDSIĘWZIĘĆ WYMAGANYCH DO ROZWOJU POZROLNICZEJ DZIAŁLNOŚCI GOSPODARCZEJ"]
[null,null,1,null,"wybierz",null,null,null,null,null,null,null,{"$f":"ROW(M1)","v":1}]
[null,null,2,null,"wybierz",null,null,null,null,null,null,null,{"$f":"ROW(M2)","v":2}]
[null,null,{"$f":"+C22+1","v":3},null,"wybierz",null,null,null,null,null,null,null,3]
[null,null,"…",null,"wybierz"]
[null,null,"SUMA III",null,null,null,null,null,{"$f":"SUM(I21:I24)","v":0},{"$f":"SUM(J21:J24)","v":0}]
[]
[null,"IV","KOSZTY TOWARZYSZĄCE (niefinansowane w ramach premii)"]
[null,null,1,null,"wybierz",null,null,null,null,null,null,null,{"$f":"ROW(M1)","v":1}]
[null,null,2,null,"wybierz",null,null,null,null,null,null,null,{"$f":"ROW(M2)","v":2}]
[null,null,{"$f":"+C29+1","v":3},null,"wybierz",null,null,null,null,null,null,null,3]
[null,null,"…",null,"wybierz"]
[null,null,"SUMA IV",null,null,null,null,null,{"$f":"SUM(I28:I31)","v":0},{"$f":"SUM(J28:J31)","v":0}]
[null,null,"SUMA I + II + III + IV",null,null,null,null,null,{"$f":"+I32+I25+I19+I12","v":0},{"$f":"+J32+J25+J19+J12","v":0}]
[null,"1)","dot WoP drugiej raty wyłączenie dla poddziałania 6.2 "]
[null,"2)","Do wniosku o płatność w zakresie wypłaty drugiej raty pomocy, należy dołaczyć dokumenty potwierdzające zrealizowanie zakresu operacji (część Sprawozdanie 6.2)"]
[null,"3)","Należy wpisać nr ewidencyjny w związku z obowiązkiem opisanym we wniosku o płatność (część Oświadczenia pkt 6)"]

{"sheet":"Załączniki_6.1","index":6,"n_rows":25,"n_cols":3,"rows_kept":25,"cut":false,"hidden":false,"merged":[[1,0,1,2],[11,0,11,2],[3,2,4,2],[13,2,14,2],[24,0,24,2],[3,0,4,0],[3,1,4,1],[13,0,14,0],[13,1,14,1],[23,0,23,2],[22,0,22,2]]}
["IX. Załączniki do wniosku o płatność "]
["IX.1. Załącznik do wniosku o płatność pierwszej raty pomocy na operacje typu „Premie dla młodych rolników\" w ramach poddziałania „Pomoc w rozpoczęciu działalności gospodarczej na rzecz młodych rolników\""]
[]
["lp.","Nazwa załącznika","Ilość"]
[]
[1,"Dokument potwierdzający tytuł prawny do nieruchomości rolnych wchodzących w skład gospodarstwa - kopia."]
[2,"Dokument potwierdzający rozpoczęcie realizacji biznesplanu."]
[3,"Kopia lub wydruk strony z ewidencji przychodów i rozchodów w gospodarstwie lub księgi przychodów i rozchodów, lub księgi rachunkowej, lub ewidencji przychodów i rozchodów prowadzonej na podstawie odrębnych przepisów, zawierającej informację o zdarzeniach gospodarczych, które wystąpiły w gospodarstwie beneficjenta po dniu doręczenia decyzji o przyznaniu pomocy, lub zaświadczenie wydane przez biuro rachunkowe, o którym mowa w art. 2 pkt 5 ustawy z dnia 29 listopada 2000r. o zbieraniu i wykorzystywaniu danych rachunkowych z gospodarstw rolnych (Dz. U. z 2021 r. poz. 1215), o prowadzeniu książek rachunkowych, obejmujących zdarzenia gospodarcze, które wystąpiły w gospodarstwie beneficjenta po dniu doręczenia decyzji o przyznaniu pomocy, na potrzeby wspólnotowej sieci służącej do zbierania danych rachunkowych gospodarstw rolnych, o której mowa w rozporządzeniu Rady (WE) nr 1217/2009 z dnia 30 listopada 2009r.ustanawiającym sieć zbierania danych rachunkowych o dochodach i działalności rolniczej gospodarstw rolnych w Unii Europejskiej (Dz.Urz.UE.L328z15.12.2009, str. 27, z późn. zm.)."]
[4,"Pełnomocnictwo/upoważnienie udzielone przez beneficjenta do występowania w jego imieniu -jeżeli zostało udzielone i jest inne niż dołączone do wniosku o przyznanie pomocy - oryginał lub urzędowo poświadczony odpis."]
[5,"Inne załączniki."]
[]
["IX.2. Załącznik do wniosku o płatność drugiej raty pomocy na operacje typu „Premie dla młodych rolników\" w ramach poddziałania „Pomoc w rozpoczęciu działalności gospodarczej na rzecz młodych rolników\""]
[]
["lp.","Nazwa załącznika","Ilość"]
[]
[1,"Sprawozdanie z realizacji biznesplanu sporządzone zgodnie ze wzorem udostępnionym przez ARiMR - oryginał - załącznik nr 1a."]
[2,"Dokument potwierdzający uzupełnienie wykształcenia - kopia."]
[3,"Dokumenty potwierdzające realizację działań, o których mowa w § 6 ust. 1 pkt 5 oraz § 6 ust. 2 pkt 2 rozporządzenia1."]
[4,"Oświadczenie o prowadzeniu ewidencji przychodów i rozchodów w gospodarstwie, lub prowadzeniu księgi przychodów i rozchodów, lub prowadzeniu księgi rachunkowej, lub prowadzeniu ewidencji przychodów i rozchodów na podstawie odrębnych przepisów - oryginał."]
[5,"Plan nawozowy oraz wyniki chemicznej analizy gleby -jeżeli beneficjentowi przyznano punkty, o których mowa w § 16 ust. 2 pkt 4 lit. a rozporządzenia1 - kopia."]
[6,"Pełnomocnictwo/upoważnienie udzielone przez beneficjenta do występowania w jego imieniu -jeżeli zostało udzielone i jest inne niż dołączone do wniosku o przyznanie pomocy -oryginał lub urzędowo poświadczony odpis."]
[7,"Inne załączniki."]
[]
["UWAGA: Kopie dokumentów dołącza się w formie kopii potwierdzonych za zgodność z oryginałem przez pracownika Agencji lub podmiot, który wydał dokument, lub poświadczonych za zgodność z oryginałem przez notariusza lub przez występującego w sprawie pełnomocnika będącego radcą prawnym lub adwokatem. Podczas stanu zagrożenia epidemicznego lub stanu epidemii ogłoszonego na podstawie ustawy  o zapobieganiu oraz zwalczaniu zakażeń i chorób zakaźnych u ludzi w związku z zakażeniami wirusem SARS-CoV-2 lub stanu nadzwyczajnego wprowadzonego w związku z zakażeniami tym wirusem, kopie dokumentów wymagających potwierdzenia za zgodność z oryginałem przez pracownika ARiMR lub podmiot, który wydał dokument, albo poświadczonych  za zgodność z oryginałem przez notariusza, albo przez występującego w sprawie pełnomocnika będącego radcą prawnym albo adwokatem, można dołączyć bez wymaganego potwierdzenia lub poświadczenia za zgodność z oryginałem\n"]
["1 Rozporządzenie Ministra Rolnictwa i Rozwoju Wsi z dnia 13 lipca 2015 r. w sprawie szczegółowych warunków i trybu przyznawania, wypłaty oraz zwrotu pomocy finansowej na operacje typu „Premie dla młodych rolników” w ramach poddziałania „Pomoc w rozpoczęciu działalności gospodarczej na rzecz młodych rolników” objętego Programem Rozwoju Obszarów Wiejskich na lata 2014-2020 (Dz. U. z 2018 r. poz. 759 i 1021 oraz z 2019 r. poz. 760, z 2020 r. poz. 839 oraz z 2021 r. poz. 389)."]

{"sheet":"Załączniki_6.2","index":7,"n_rows":34,"n_cols":3,"rows_kept":34,"cut":false,"hidden":false,"merged":[[33,0,33,2],[0,0,0,2],[1,0,2,0],[1,1,2,1],[1,2,2,2],[8,0,8,2],[9,0,10,0],[9,1,10,1],[9,2,10,2],[31,0,32,2]]}
["IX.3. Załącznik do wniosku o płatność pierwszej raty pomocy na operacje typu „Premie na rozpoczęcie działalności pozarolniczej\" w ramach poddziałania 6.2 \"Pomoc na rozpoczęcie pozarolniczej działalności gospodarczej na obszarach wiejskich\""]
["lp.","Nazwa załącznika","Ilość"]
[]
[1,"Dokument potwierdzający rozpoczęcie realizacji biznesplanu."]
[2,"Kopia ostatecznej decyzji o pozwoleniu na budowę lub zgłoszenia budowy, jeżeli jest wymagane przepisami ustawy z dnia 7 lipca 1994 r. – Prawo budowlane (Dz. U. z 2021 r. poz. 1333, z późn. zm.)"]
[3,"Pełnomocnictwo – w przypadku, gdy zostało udzielone innej osobie niż podczas składania wniosku o przyznanie pomocy lub gdy zmienił się zakres poprzednio udzielonego pełnomocnictwa – oryginał lub kopia;"]
[4,"Inne załączniki"]
[]
["IX.4. Załącznik do wniosku o płatność drugiej raty pomocy na operacje typu „Premie na rozpoczęcie działalności pozarolniczej\" w ramach poddziałania 6.2 \"Pomoc na rozpoczęcie pozarolniczej działalności gospodarczej na obszarach wiejskich\""]
["lp.","Nazwa załącznika","Ilość"]
[]
[1,"Sprawozdanie z realizacji biznesplanu sporządzone zgodnie ze wzorem udostępnionym przez ARiMR - oryginał - załącznik nr 1b;"]
[2,"Dokumenty potwierdzające realizację działań, o których mowa w § 3 ust. 1 pkt 4 rozporządzenia: 1)"]
["2a.","Faktury lub dokumenty o równoważnej wartości dowodowej - kopie;"]
["2b.","Dokumenty potwierdzające płatność  (dowody zapłaty) - kopie;"]
["2c.","Decyzja ostateczna o pozwoleniu na użytkowanie obiektu budowlanego - jeżeli taki obowiązek wynika z przepisów prawa budowlanego – oryginał lub kopia;"]
["2d.","Zawiadomienie właściwego organu o zakończeniu robót budowlanych złożone co najmniej 14 dni przed zamierzonym terminem przystąpienia do użytkowania, jeżeli obowiązek taki wynika z przepisów prawa budowlanego  - oryginał lub kopia wraz z:\n- oświadczeniem Beneficjenta, że w ciągu 14 dni od dnia doręczenia zawiadomienia właściwemu organowi o zakończeniu robót budowlanych nie wniósł on sprzeciwu – oryginał, albo \n- zaświadczeniem wydanym przez właściwy organ, że nie wnosi sprzeciwu w przypadku, gdy zawiadomienie o zakończeniu robót budowlanych będzie przedkładane przed upływem 14 dni - oryginał lub kopia;"]
["2e.","Protokoły odbioru robót lub protokoły montażu lub rozruchu maszyn i urządzeń (jeżeli dotyczy) albo oświadczenie Beneficjenta o poprawnym wykonaniu robót budowlanych lub montażu lub rozruchu z udziałem środków własnych - oryginał lub kopia;"]
["2f.","Ostateczne pozwolenie wodnoprawne – jeżeli dla robót wymagana była decyzja o zatwierdzeniu projektu prac geologicznych - oryginał lub  kopia;"]
["2g.","Opinia Powiatowego Inspektora Sanitarnego, co do zgodności z warunkami sanitarnymi określonymi przepisami Unii Europejskiej w zakresie objętym operacją (w przypadku, gdy odrębne przepisy prawa określają, jakie warunki powinny być spełniane przy realizacji inwestycji objętej operacją) - kopia;"]
["2h.","Dokumenty celne (Jednolity Dokument Administracyjny SAD - zgłoszenie w formie papierowej) zawierające stosowną adnotację celników przeprowadzających odprawę, jako potwierdzenia dopuszczenia towarów do obrotu lub (Poświadczenie Zgłoszenia Celnego PZC - zgłoszenie w formie eletronicznej) zawierającą informację dopuszczenia towaru do obrotu – dotyczy maszyn i urządzeń zakupionych w krajach nienależących do Unii Europejskiej - kopia;"]
["2i.","Dowód rejestracyjny, jeżeli jest wymagany odrębnymi przepisami - dotyczy pojazdów objętych współfinansowaniem - kopia;"]
[3,"Pełnomocnictwo – w przypadku, gdy zostało udzielone innej osobie niż podczas składania wniosku o przyznanie pomocy lub gdy zmienił się zakres poprzednio udzielonego pełnomocnictwa – oryginał lub kopia;"]
[4,"Dokumenty potwierdzające spełnienie warunku dotyczącego utworzenia miejsc pracy, które były podstawą  wyboru operacji, określonych w  rozporządzeniu:"]
["4a","a) Umowy o pracę wraz z zakresami czynności (dla etatów powstałych w wyniku realizacji operacji) (nie dotyczy samozatrudnienia) - kopia;"]
["4b","b) Zgłoszenie do ubezpieczeń ZUS ZUA (dla etatów powstałych w wyniku realizacji operacji)  - kopia;"]
["4c","c) Deklaracja rozliczeniowa ZUS DRA (wraz z ZUS RCA (RCX), ZUS RSA, ZUS RZA) - kopia;"]
[5,"Zaświadczenie z Zakładu Ubezpieczeń Społecznych o okresie podlegania ubezpieczeniom społecznym, określonym w przepisach o systemie ubezpieczeń społecznych;"]
[6,"Dokumenty potwierdzające zarejestrowanie pozarolniczej działalności gospodarczej w ewidencji prowadzonej przez jednostkę samorządu terytorialnego obowiązaną do prowadzenia odpowiedniego typu szkół i placówek publicznych;"]
[7,"Kopie ostatecznych pozwoleń, zezwoleń lub innych decyzji, których uzyskanie jest wymagane przez odrębne przepisy do realizacji inwestycji objętych operacją, a także kopie innych dokumentów potwierdzających spełnienie określonych w odrębnych przepisach warunków realizacji inwestycji objętych operacją – w przypadku gdy w ramach operacji będą realizowane tego typu inwestycje;"]
[8,"Inne załączniki."]
["UWAGA: Kopie dokumentów dołącza się w formie kopii potwierdzonych za zgodność z oryginałem przez pracownika Agencji lub podmiot, który wydał dokument, lub poświadczonych za zgodność z oryginałem przez notariusza lub przez występującego w sprawie pełnomocnika będącego radcą prawnym lub adwokatem. Podczas stanu zagrożenia epidemicznego lub stanu epidemii ogłoszonego na podstawie ustawy  o zapobieganiu oraz zwalczaniu zakażeń i chorób zakaźnych u ludzi w związku z zakażeniami wirusem SARS-CoV-2 lub stanu nadzwyczajnego wprowadzonego w związku z zakażeniami tym wirusem, kopie dokumentów wymagających potwierdzenia za zgodność z oryginałem przez pracownika ARiMR lub podmiot, który wydał dokument, albo poświadczonych  za zgodność z oryginałem przez notariusza, albo przez występującego w sprawie pełnomocnika będącego radcą prawnym albo adwokatem, można dołączyć bez wymaganego potwierdzenia lub poświadczenia za zgodność z oryginałem.\n"]
[]
["1 rozporządzenie Ministra Rolnictwa i Rozwoju Wsi z dnia 25 lipca 2016 r. w sprawie szczegółowych warunków i trybu przyznawania, wypłaty oraz zwrotu pomocy finansowej na operacje typu „Premie na rozpoczęcie działalności pozarolniczej” w ramach poddziałania „Pomoc na rozpoczęcie pozarolniczej działalności gospodarczej na obszarach wiejskich” objętego Programem Rozwoju Obszarów Wiejskich na lata 2014–2020 (Dz. U. z 2016 r. poz. 1196, z 2017 r. poz. 1013, z 2018 r. poz. 1071, z 2019 r. poz. 922 oraz z 2020 r. poz.1594) "]

{"sheet":"Załączniki 6.3","index":8,"n_rows":19,"n_cols":3,"rows_kept":19,"cut":false,"hidden":false,"merged":[[18,0,18,2],[1,0,2,0],[1,1,2,1],[1,2,2,2],[0,0,0,2],[7,0,7,2],[8,0,9,0],[8,1,9,1],[8,2,9,2],[16,0,17,2]]}
["IX.5. Załącznik do wniosku o płatność pierwszej raty pomocy na operacje typu „Restrukturyzacja małych gospodarstw\"  w ramach poddziałania 6.3 \"Pomoc na rozpoczęcie  działalności gospodarczej na rzecz rozwoju małych gospodarstw\""]
["lp.","Nazwa załącznika","Ilość"]
[]
[1,"Dokument potwierdzający rozpoczęcie realizacji biznesplanu."]
[2,"Kopia lub wydruk strony z ewidencji przychodów i rozchodów w gospodarstwie lub księgi przychodów i rozchodów, lub księgi rachunkowej, lub ewidencji przychodów i rozchodów prowadzonej na podstawie odrębnych przepisów, zawierającej informację o zdarzeniach gospodarczych, które wystąpiły w gospodarstwie beneficjenta po dniu doręczenia decyzji o przyznaniu pomocy, lub zaświadczenie wydane przez biuro rachunkowe, o którym mowa w art. 2 pkt 5 ustawy z dnia 29 listopada 2000 r. o zbieraniu i wykorzystywaniu danych rachunkowych z gospodarstw rolnych (Dz. U. z 2021r. poz. 1215), o prowadzeniu książek rachunkowych, obejmujących zdarzenia gospodarcze, które wystąpiły w gospodarstwie beneficjenta po dniu doręczenia decyzji o przyznaniu pomocy, na potrzeby wspólnotowej sieci służącej do zbierania danych rachunkowych gospodarstw rolnych, o której mowa w rozporządzeniu Rady (WE) nr 1217/2009 z dnia 30 listopada 2009 r. ustanawiającym sieć zbierania danych rachunkowych o dochodach i działalności rolniczej gospodarstw rolnych w Unii Europejskiej (Dz. Urz. UE. L 328 z 15.12.2009, str. 27, z późn. zm.)."]
[3,"Pełnomocnictwo/upoważnienie udzielone przez beneficjenta do występowania w jego imieniu - jeżeli zostało udzielone i jest inne niż dołączone do wniosku o przyznanie pomocy – oryginał lub urzędowo poświadczony odpis"]
[4,"Inne załączniki"]
["IX.6. Załącznik do wniosku o płatność drugiej raty pomocy na operacje typu „Restrukturyzacja małych gospodarstw\"  w ramach poddziałania 6.3 \"Pomoc na rozpoczęcie  działalności gospodarczej na rzecz rozwoju małych gospodarstw\""]
["lp.","Nazwa załącznika","Ilość"]
[]
[1,"Sprawozdanie z realizacji biznesplanu sporządzone zgodnie ze wzorem udostępnionym przez ARiMR - oryginał - załącznik nr 1c."]
[2," Dokumenty potwierdzające realizację działań, o których mowa w § 3 ust. 1 pkt 4 oraz § 3 ust. 2 pkt 2 rozporządzenia1.\n"]
[3,"Oświadczenie o prowadzeniu ewidencji przychodów i rozchodów w gospodarstwie lub księgi przychodów i rozchodów, lub prowadzeniu księgi rachunkowej, lub ewidencji przychodów i rozchodów na podstawie odrębnych przepisów - oryginał."]
[4,"Plan nawozowy oraz wyniki analizy chemicznej gleby – jeżeli beneficjentowi przyznano punkty, o których mowa w § 12 ust. 2 pkt 4 lit. a tiret drugie rozporządzenia1 - kopie."]
[5,"Pełnomocnictwo/upoważnienie udzielone przez beneficjenta do występowania w jego imieniu-jeżeli zostało udzielone i jest inne niż dołączone do wniosku o przyznanie pomocy-oryginał lub urzędowo poświadczony odpis."]
[6,"Inne załączniki."]
["UWAGA: Kopie dokumentów dołącza się w formie kopii potwierdzonych za zgodność z oryginałem przez pracownika Agencji lub podmiot, który wydał dokument, lub poświadczonych za zgodność z oryginałem przez notariusza lub przez występującego w sprawie pełnomocnika będącego radcą prawnym lub adwokatem. Podczas stanu zagrożenia epidemicznego lub stanu epidemii ogłoszonego na podstawie ustawy  o zapobieganiu oraz zwalczaniu zakażeń i chorób zakaźnych u ludzi w związku z zakażeniami wirusem SARS-CoV-2 lub stanu nadzwyczajnego wprowadzonego w związku z zakażeniami tym wirusem, kopie dokumentów wymagających potwierdzenia za zgodność z oryginałem przez pracownika ARiMR lub podmiot, który wydał dokument, albo poświadczonych  za zgodność z oryginałem przez notariusza, albo przez występującego w sprawie pełnomocnika będącego radcą prawnym albo adwokatem, można dołączyć bez wymaganego potwierdzenia lub poświadczenia za zgodność z oryginałem.\n"]
[]
["1 Rozporządzenie Ministra Rolnictwa i Rozwoju Wsi z dnia 23 października 2015 r. w sprawie szczegółowych warunków i trybu przyznawania, wypłaty oraz zwrotu pomocy finansowej na operacje typu „Restrukturyzacja małych gospodarstw” w ramach poddziałania „Pomoc na rozpoczęcie działalności gospodarczej na rzecz rozwoju małych gospodarstw” objętego Programem Rozwoju Obszarów Wiejskich na lata 2014–2020 (Dz. U. z 2020 r. poz. 2096 oraz z 2021 r. poz. 377)."]

{"sheet":"Oświadczenia","index":9,"n_rows":30,"n_cols":40,"rows_kept":30,"cut":false,"hidden":false,"merged":[[0,1,0,33],[1,1,1,32],[2,2,2,35],[5,3,5,35],[13,3,13,35],[7,3,7,35],[6,3,6,35],[10,3,10,35],[11,3,11,35],[3,3,3,35],[4,37,4,39],[14,37,14,39],[4,3,4,35],[18,3,18,35],[12,3,12,35],[15,3,15,35],[16,3,16,35],[8,3,8,35],[9,3,9,35],[13,37,13,39],[15,37,15,39],[17,3,17,35],[14,3,14,35],[30,3,30,35],[29,3,29,35],[28,3,28,35],[27,3,27,35],[19,3,19,35],[20,3,20,35],[21,2,22,14],[21,22,22,35],[23,2,23,14],[23,22,23,35],[25,3,25,35],[26,3,26,35]]}
[null,"X. OŚWIADCZENIA BENEFICJENTA"]
[]
[null,"1.","Oświadczam, że:                                                                                                                                  "]
[null,null,"1)","wyrażam zgodę, aby od dnia wejścia w życie przepisów umożliwiających wymianę korespondencji pomiędzy ARiMR a stroną postępowania  w formie elektronicznej, wymiana korespondencji w tym doręczanie pism stronie postępowania następowała za pomocą systemu teleinformatycznego Agencji. Zgoda jest równoznaczna z żądaniem doręczania pism stronie postępowania za pomocą systemu teleinformatycznego Agencji. Doręczanie pism stronie postępowania następować będzie za pomocą systemu teleinformatycznego Agencji, zgodnie z poniższymi regułami: 1) strona składa pismo za pomocą systemu teleinformatycznego Agencji, a do złożenia tego pisma nie jest wymagany podpis elektroniczny; 2) załączniki dołączane do pisma składa się zgodnie z przepisami określającymi szczegółowe wymagania, jakie powinien spełniać formularz, o których mowa w rozporządzeniu Ministra Rolnictwa i Rozwoju Wsi z dnia 12 sierpnia 2021 r. w sprawie formularza wniosku o płatność w ramach niektórych działań i poddziałań objętych Programem Rozwoju Obszarów Wiejskich na lata 2014–2020 (Dz. U. z 2021 r. poz. 1488); 3) po wysłaniu pisma za pomocą systemu teleinformatycznego Agencji strona uzyskuje z tego systemu potwierdzenie złożenia pisma zawierające unikalny numer nadany przez ten system oraz datę złożenia pisma; 4) za datę złożenia pisma przez stronę za pomocą systemu teleinformatycznego Agencji uważa się dzień wystawienia za pomocą tego systemu potwierdzenia, o którym mowa powyżej; 5) po otrzymaniu przez stronę pisma w systemie teleinformatycznym Agencji strona uzyskuje z tego systemu zawiadomienie o otrzymaniu pisma, przesyłane na adres elektroniczny oraz potwierdzenie otrzymania pisma zawierające unikalny numer nadany przez ten system oraz datę otrzymania pisma; 6) za datę doręczenia pisma stronie za pomocą systemu teleinformatycznego Agencji uznaje się dzień: a) potwierdzenia odczytania pisma przez stronę w systemie teleinformatycznym Agencji, z tym że dostęp do treści pisma jest możliwy po dokonaniu tego potwierdzenia, b) po upływie 14 dni od dnia otrzymania pisma w systemie teleinformatycznym Agencji, jeżeli strona nie potwierdziła odczytania pisma przed upływem tego terminu5);"]
[null,null,"2)","znane mi są zasady przyznawania i wypłaty pomocy określone w przepisach rozporządzenia1), ustawach3) i 4) oraz zapoznałem sie z informacjami zawartymi we wniosku o płatność;"]
[null,null,"3)","informacje zawarte we wniosku o płatność oraz jego załącznikach są  prawdziwe i zgodne ze stanem  prawnym i faktycznym, znane mi są skutki składania fałszywych oświadczeń wynikające z art. 297 § 1 ustawy z dnia 6 czerwca 1997 r. - Kodeks karny (Dz. U. z 2020 r. poz. 1444, 1517 oraz z 2021 r. poz. 1023 ); ",null,null,null,null,null,null,null,null,null,null,null,null,null,null,null,null,null,null,null,null,null,null,null,null,null,null,null,null,null,null,null,null,null,null,null," "]
[null,null,"4)","nie podlegam/podmiot, który reprezentuję nie  podlega  zakazowi  dostępu  do  środków  publicznych,  o  których  mowa  w  art. 5 ust. 3  pkt 4  ustawy z  dnia 27 sierpnia 2009 r. o finansach publicznych (Dz. U. z 2021 r. poz. 305 i 1236), na podstawie prawomocnego orzeczenia sądu. Jednocześnie zobowiązuję się do niezwłocznego poinformowania Agencji Restrukturyzacji i Modernizacji Rolnictwa o zakazie dostępu do środków publicznych, o których mowa w art. 5 ust. 3 pkt 4 ustawy z dnia 27 sierpnia 2009 r. o finansach publicznych, na podstawie prawomocnego orzeczenia sądu, orzeczonym w stosunku do mnie/podmiotu, który reprezentuję;"]
[null,null,"5)","nie podlegam/podmiot, który reprezentuję nie podlega wykluczeniu zgodnie z art. 35 ust. 5 oraz ust. 6 rozporządzenia delegowanego Komisji  (UE) nr 640/2014 z dnia 11 marca 2014 r. uzupełniającego rozporządzenie Parlamentu Europejskiego i Rady (UE) nr 1306/2013 w odniesieniu do zintegrowanego systemu zarządzania i kontroli oraz warunków odmowy lub wycofania płatności oraz do kar administracyjnych mających zastosowanie do płatności bezpośrednich, wsparcia rozwoju obszarów wiejskich oraz zasady wzajemnej zgodności (Dz. Urz. UE L 181 z 20.06.2014, str. 48, z późn. zm.) - dotyczy poddziałania 6.2;"]
[null,null,"6)","prowadzę działalność rolniczą osobiście, na własny rachunek i we własnym imieniu oraz ponoszę koszty w związku z prowadzeniem tej działalności i czerpię korzyści z  jej prowadzenia - dotyczy poddziałań 6.1 i 6.3;"]
[null,null,"7)","znane mi są regulacje dotyczące prowadzenia oddzielnego systemu rachunkowości albo korzystania z odpowiedniego kodu rachunkowego, o których mowa w art. 66 ust. 1 lit. c pkt i rozporządzenia Parlamentu Europejskiego i Rady (UE) nr 1305/2013 z dnia 17 grudnia 2013 r. w sprawie wsparcia rozwoju obszarów wiejskich przez Europejski Fundusz Rolny na rzecz Rozwoju Obszarów Wiejskich (EFRROW) i uchylającego rozporządzenie Rady (WE) nr 1698/2005 (Dz. Urz. UE L 347 z 20.12.2013, str. 487, z późn. zm.), dla wszystkich transakcji związanych z realizacją operacji, w ramach prowadzonych ksiąg rachunkowych albo przez prowadzenie zestawienia faktur lub równoważnych dokumentów księgowych na formularzu udostępnionym przez ARiMR, gdy Beneficjent nie jest zobowiązany do prowadzenia ksiąg rachunkowych na podstawie przepisów odrębnych - dotyczy poddziałania 6.2;"]
[null,null,"8)","w ramach operacji zakupiłem oraz zakupię wyłącznie nowe maszyny, urządzenia oraz wyposażenie w ramach inwestycji, o których mowa w § 3 ust. 1 pkt 4 lit. a rozporządzenia Ministra Rolnictwa i Rozwoju Wsi z dnia 25 lipca 2016 r. w sprawie szczegółowych warunków i trybu przyznawania, wypłaty oraz zwrotu pomocy finansowej na operacje typu „Premie na rozpoczęcie działalności pozarolniczej” w ramach poddziałania „Pomoc na rozpoczęcie pozarolniczej działalności gospodarczej na obszarach wiejskich” objętego Programem Rozwoju Obszarów Wiejskich na lata 2014–2020  (Dz. U. z 2016 r. poz. 1196, z 2017 r. poz. 1013, z z 2018 r. poz. 1071, z 2019 r. poz. 922 oraz z 2020 r. poz. 1594) - dotyczy poddziałania 6.2;"]
[null,null,"9)","inwestycje związane z realizacją operacji nie zostały sfinansowane z innych środków publicznych - dotyczy  poddziałania 6.2;"]
[null,null,"10)","informuję i rozpowszechniam informacje o pomocy otrzymanej z EFRROW, zgodnie z przepisami Załącznika III do rozporządzenia wykonawczego Komisji (UE) nr 808/2014 z dnia 17 lipca 2014 r. ustanawiającego zasady stosowania rozporządzenia Parlamentu Europejskiego i Rady (UE) nr 1305/2013 w sprawie wsparcia rozwoju obszarów wiejskich przez Europejski Fundusz Rolny na rzecz Rozwoju Obszarów Wiejskich (EFRROW) (Dz. Urz. UE L 227 z 31.07.2014, str. 18, z późn. zm.) - dotyczy poddziałania 6.2;"]
[null,null,"11)","umożliwię upoważnionym podmiotom przeprowadzanie kontroli wszelkich elementów związanych z realizowaną operacją do dnia, w którym upłynie 5 lat od dnia wypłaty płatności końcowej, w szczególności wizyty w miejscu oraz kontroli na miejscu realizacji operacji i kontroli dokumentów, oraz będę obecny lub zapewnię uczestnictwo osoby reprezentującej / pełnomocnika, podczas wykonywania powyższych czynności;"]
[null,null,"12)","przyjmuję do wiadomości, iż moje dane mogą być przetwarzane przez organy audytowe i dochodzeniowe Unii Europejskiej i państw członkowskich dla zabezpieczenia interesów finansowych Unii;"]
[null,null,"13)","przyjmuję do wiadomości, iż moje dane oraz kwota wypłaty pomocy z publicznych środków finansowych, w tym wypłacona kwota z tytułu udzielonej pomocy na przedmiotową operację będzie publikowana na stronie internetowej MRiRW;"]
[null,null,"14)","niezwłocznie poinformuję na piśmie Agencję Restrukturyzacji i Modernizacji Rolnictwa o:"]
[null,null,"a)","wszystkich faktach mających wpływ na przyznanie pomocy i płatności oraz o faktach, które mają istotne znaczenie dla zwrotu nienależnie lub nadmiernie pobranych środków;"]
[null,null,"b)","każdej zmianie w zakresie danych objętych wnioskiem;"]
[null,null,"c)","wszystkich zdarzeniach, które mają istotne znaczenie dla realizacji podjętych zobowiązań na operacje typu „Premie dla młodych rolników” w  ramach poddziałania „Pomoc w rozpoczęciu działalności gospodarczej na rzecz młodych rolników” objętego Programem Rozwoju Obszarów Wiejskich  na lata 2014–2020 / \"Premie na rozpoczęcie działalności pozarolniczej” w ramach poddziałania „Pomoc na rozpoczęcie pozarolniczej działalności gospodarczej na obszarach wiejskich” objętego Programem Rozwoju Obszarów Wiejskich  na lata 2014–2020 / operacje typu „Restrukturyzacja małych   gospodarstw” w ramach poddziałania „Pomoc na rozpoczęcie działalności gospodarczej na rzecz rozwoju małych gospodarstw”objętych Programem Rozwoju Obszarów Wiejskich na lata 2014-2020;"]
[null,null,"15)","jestem świadomy obowiązku każdorazowego informowania ARiMR o wygaśnięciu decyji o przyznaniu pomocy lub uchyleniu decyzji o przyznaniu pomocy w ramach poddziałania \"Płatności na rzecz rolników kwalifikujących się do systemu dla małych gospodarstw, którzy trwale przekazali swoje gospodarstwo innemu rolnikowi\" (dotyczy wyłącznie beneficjentów tego poddziałania oraz ich małżonków) - dotyczy poddziałania 6.2."]
[null," "]
[]
[null,null,"miejscowość i data",null,null,null,null,null,null,null,null,null,null,null,null,null,null,null,null,null,null,null,"(czytelny podpis Beneficjenta/ pełnomocnika Beneficjenta)"]
[]
[null,null,"1)","Rozporządzenie wykonawcze dla danej operacji PROW 2014-2020, w ramach której została przyznana pomoc."]
[null,null,"2)","Ta część oświadczenia nie ma zastosowania do przypadków przeniesienia własności zgodnych z umową i zaakceptowanych przez Agencję."]
[null,null,"3)","Ustawa z dnia 20 lutego 2015 r. o wspieraniu rozwoju obszarów wiejskich z udziałem środków Europejskiego Funduszu Rolnego na rzecz Rozwoju Obszarów Wiejskich w ramach Programu Rozwoju Obszarów Wiejskich na lata 2014-2020 Dz. (U. z 2021 r. poz. 182 i poz. 904)."]
[null,null,"4)","Ustawa z dnia 27 lutego 2015 r. o finansowaniu wspólnej polityki rolnej (Dz. U. z 2018 r. poz. 719)."]
[null,null,"5)","Dotyczy tylko beneficjentów składających wniosek o płatność  przy wykorzystaniu systemu teleinformatycznego Agencji, w sposób określony szczegółowo w rozporządzeniu Ministra Rolnictwa i Rozwoju Wsi z dnia 12 sierpnia 2021 r. w sprawie formularza wniosku o płatność w ramach niektórych działań i poddziałań objętych Programem Rozwoju Obszarów Wiejskich na lata 2014–2020 (Dz. U. z 2021 r. poz. 1488)."]

{"sheet":"Zał 1. Oświadczenie","index":10,"n_rows":27,"n_cols":12,"rows_kept":27,"cut":false,"hidden":true,"merged":[[9,1,10,3],[9,4,10,6],[1,1,1,4],[2,0,2,7],[3,0,3,7],[5,0,5,7],[4,2,4,6],[26,4,26,6],[18,1,18,3],[18,4,18,6],[19,1,19,3],[19,4,19,6],[21,1,21,6],[23,1,25,2],[26,1,26,2],[22,5,22,6],[23,4,25,6],[17,4,17,6],[12,0,12,7],[15,1,15,3],[15,4,15,6],[13,0,13,7],[16,1,16,3],[16,4,16,6],[17,1,17,3]]}
[]
[null,"Załącznik nr 1 do wniosku o płatność",null,null,null,null,"PROW 2014-2020"]
[]
[]
[null,"Poddziałanie ",{"$f":"CONCATENATE('Strona tytuł.'!C22,\" w ramach operacji typu \",\"''\",'Strona tytuł.'!N23,\"\"\"\")","v":"wybierz z listy w ramach operacji typu ''wybierz z listy \""}]
[null,null,null,null,null,null,null,null,null,null,null,"wybierz z listy "]
[null,null,null,null,null,null,null,null,null,null,null,"4.1.1. \"Wsparcie inwestycji w gospodarstwach rolnych” na operacje typu „Inwestycje w gospodarstwach położonych na obszarach Natura 2000” "]
[]
[]
[null,"Numer umowy z ARiMR",null,null,{"$f":"'Strona tytuł.'!#REF!&'Strona tytuł.'!#REF!&'Strona tytuł.'!#REF!&'Strona tytuł.'!#REF!&'Strona tytuł.'!#REF!&'Strona tytuł.'!#REF!&'Strona tytuł.'!#REF!&'Strona tytuł.'!#REF!&'Strona tytuł.'!#REF!&'Strona tytuł.'!#REF!&'Strona tytuł.'!#REF!&'Strona tytuł.'!#REF!&'Strona tytuł.'!#REF!&'Strona tytuł.'!#REF!&'Strona tytuł.'!#REF!&'Strona tytuł.'!#REF!&'Strona tytuł.'!#REF!&'Strona tytuł.'!#REF!&'Strona tytuł.'!#REF!&'Strona tytuł.'!#REF!&'Strona tytuł.'!#REF!&'Strona tytuł.'!#REF!&'Strona tytuł.'!#REF!&'Strona tytuł.'!#REF!","v":{"$error":"#REF!"}}]
[]
[]
["OŚWIADCZENIE \nDOTYCZĄCE ODDZIELNEGO SYSTEMU RACHUNKOWOŚCI/ODPOWIEDNIEGO KODU RACHUNKOWEGO DLA WSZYSTKICH TRANSAKCJI ZWIĄZANYCH Z REALIZACJĄ OPERACJI"]
["Oświadczam, że  prowadzę oddzielny system rachunkowości albo korzystam z odpowiedniego kodu rachunkowego/ Beneficjent prowadzi oddzielny system rachunkowości albo korzysta z odpowiedniego kodu rachunkowego dla wszystkich transakcji związanych z realizacją operacji, w rozumieniu art. 66 ust. 1 lit. c pkt i Rozporządzenia Parlamentu Europejskiego i Rady (UE) nr 1305/2013 z dnia 17 grudnia 2013 r. w sprawie wsparcia rozwoju obszarów wiejskich przez Europejski Fundusz Rolny na rzecz Rozwoju Obszarów Wiejskich (EFRROW) i uchylającego rozporządzenie Radu (WE) nr 1698/2005 (Dz. Urz. UE L 347 z 20.12.2013, str. 487, z późn. zm.)."]
[]
["Lp","Numer konta księgowego zgodny z planem kont księgowych Beneficjenta, na którym dokonano księgowania transakcji związanych z operacją",null,null,"Nazwa konta księgowego, na którym dokonano księgowania transakcji związanych z operacją"]
[1]
[2]
[3]
["…"]
[]
[]
[]
[]
[]
[]
[null,"(miejscowość i data)",null,null,"(czytelny podpis Beneficjenta/osoby reprezentującej Beneficjenta/pełnomocnika Beneficjenta)"]

{"sheet":"RODO_klauzula_osoby fiz._pełnom","index":11,"n_rows":35,"n_cols":9,"rows_kept":35,"cut":false,"hidden":false,"merged":[[33,1,33,6],[33,8,33,12],[34,1,34,6],[34,8,34,12],[22,1,22,12],[24,1,24,12],[26,1,26,12],[28,1,28,12],[30,1,30,12],[31,1,31,12],[21,1,21,12],[2,1,2,12],[3,1,3,12],[5,1,5,12],[7,1,7,12],[9,1,9,12],[11,1,11,12],[13,1,13,12],[15,1,15,12],[17,1,17,12],[19,1,19,12]]}
[]
["XI.","KLAUZULE I ZGODY"]
["1."," KLAUZULA INFORMACYJNA W ZAKRESIE PRZETWARZANIA DANYCH OSOBOWYCH (dotyczy osób fizycznych w tym pełnomocników)"]
[null,"W związku z treścią art. 13 rozporządzenia Parlamentu Europejskiego i Rady (UE) 2016/679 z dnia 27 kwietnia 2016 r. w sprawie ochrony osób fizycznych w związku z przetwarzaniem danych osobowych i w sprawie swobodnego przepływu takich danych oraz uchylenia dyrektywy 95/46/WE – ogólne rozporządzenie o ochronie danych (Dz. Urz. UE L 119 z 04.05.2016, str. 1; Dz. Urz. UE L 127 z 23.05.2018, str. 2 oraz Dz. Urz. UE L 74 z 04.03.2021, str. 35), zwanego dalej: „Rozporządzenie RODO” Agencja Restrukturyzacji i Modernizacji Rolnictwa informuje, że: "]
[]
[null,"1) Administratorem Pani/Pana danych osobowych (dalej: \"Administrator\") jest Agencja Restrukturyzacji i Modernizacji Rolnictwa z siedzibą w Warszawie, Al. Jana Pawła II 70, 00-175 Warszawa;"]
[]
[null,"2) z Administratorem może Pani/Pan kontaktować się poprzez adres e-mail: info@arimr.gov.pl lub pisemnie na adres korespondencyjny Centrali Agencji Restrukturyzacji i Modernizacji Rolnictwa, ul. Poleczki 33, 02-822 Warszawa;"]
[]
[null,"3) Administrator wyznaczył inspektora ochrony danych, z którym może Pani/Pan kontaktować się w sprawach dotyczących przetwarzania danych osobowych oraz korzystania z praw związanych z przetwarzaniem danych, poprzez adres e-mail: iod@arimr.gov.pl,  lub pisemnie na adres korespondencyjny Administratora, wskazany w pkt 2;"]
[]
[null,"4) zebrane Pani/Pana dane osobowe będą przetwarzane przez Administratora na podstawie art. 6 ust. 1 lit. c Rozporządzenia RODO, gdy jest to niezbędne do wypełnienia obowiązku prawnego ciążącego na administratorze danych (dane obowiązkowe), lub art. 6 ust. 1 lit. a Rozporządzenia RODO, tj. na podstawie odrębnej zgody na przetwarzanie danych osobowych, która obejmuje zakres danych szerszy, niż to wynika z powszechnie obowiązującego prawa (dane nieobowiązkowe¹);"]
[]
[null,"5) pozyskane przez Administratora Pani/Pana dane osobowe będą przetwarzane na podstawie art. 6 ust. 1 lit. c Rozporządzenia RODO,  w celu realizacji zadań wynikających z art. 3 ust. 1 pkt 6 lit. a, b i c w związku z art. 6 ust. 2 ustawy z dnia 20 lutego 2015 r. o wspieraniu rozwoju obszarów wiejskich z udziałem środków Europejskiego Funduszu Rolnego na rzecz Rozwoju Obszarów Wiejskich w ramach Programu Rozwoju Obszarów Wiejskich na lata 2014-2020 (Dz. U. z 2021 r. poz.182 i 904)  oraz w związku z rozporządzeniem Ministra Rolnictwa i Rozwoju Wsi z dnia 13 lipca 2015 r. w sprawie szczegółowych warunków i trybu przyznawania, wypłaty oraz zwrotu pomocy finansowej na operacje typu „Premie dla młodych rolników” w ramach poddziałania „Pomoc w rozpoczęciu działalności gospodarczej na rzecz młodych rolników” objętego Programem Rozwoju Obszarów Wiejskich na lata 2014-2020 (Dz. U. z 2018 r. poz. 759 i 1021 oraz z 2019 r. poz. 760, z 2020 r. poz. 839 oraz z 2021 r. poz. 389), rozporządzeniem Ministra Rolnictwa i Rozwoju Wsi z dnia 25 lipca 2016 r. w sprawie szczegółowych warunków i trybu przyznawania, wypłaty oraz zwrotu pomocy finansowej na operacje typu „Premie na rozpoczęcie działalności pozarolniczej” w ramach poddziałania „Pomoc na rozpoczęcie pozarolniczej działalności gospodarczej na obszarach wiejskich” objętego Programem Rozwoju Obszarów Wiejskich na lata 2014–2020 (Dz. U. z 2016 r. poz. 1196, z 2017 r. poz. 1013, z 2018 r. poz. 1071, z 2019 r. poz. 922 oraz z 2020 r. poz.1594) / rozporządzeniem Ministra Rolnictwa i Rozwoju Wsi z dnia 23 października 2015 r. w sprawie szczegółowych warunków i trybu przyznawania, wypłaty oraz zwrotu pomocy finansowej na operacje typu „Restrukturyzacja małych   gospodarstw” w ramach poddziałania „Pomoc na rozpoczęcie działalności gospodarczej na rzecz rozwoju małych gospodarstw” objętego Programem Rozwoju Obszarów Wiejskich  na lata 2014–2020 (Dz. U. z 2020 r. poz. 2096 oraz z 2021 r. poz. 377) ,tj. w celu wypłaty pomocy finansowej; \n"]
[]
[null,"6) odbiorcami Pani/Pana danych osobowych mogą być:\n   1) organy  kontrolne,\n   2) osoby lub podmioty, którym Administrator danych udzieli informacji publicznej zgodnie z ustawą z dnia 6 września 2001 r. o \n       dostępie do informacji publicznej (Dz. U. z 2020 r. poz. 2176),\n   3) podmioty uprawnione do przetwarzania danych osobowych na podstawie przepisów powszechnie obowiązującego prawa,\n   4) podmioty przetwarzające w imieniu Administratora danych na mocy zawartej umowy, m. in. dostawcy IT; "]
[]
[null,"7) Pani/Pana dane osobowe będą przetwarzane przez okres realizacji zadań, o których mowa w pkt. 5, oraz okres istnienia zobowiązań. Okres przechowywania Pani/Pana danych osobowych będzie każdorazowo przedłużony o okres przedawnienia roszczeń, jeżeli przetwarzanie danych będzie niezbędne do dochodzenia roszczeń lub do obrony przed takimi roszczeniami przez Administratora. Ponadto okres przechowywania danych będzie przedłużony o okres potrzebny do przeprowadzenia archiwizacji;"]
[]
[null,"8) Pani/Pana dane osobowe zebrane na podstawie art. 6 ust. 1 lit. a Rozporządzenia RODO, tj. na podstawie odrębnej zgody na przetwarzanie danych osobowych, będą przetwarzane przez okres realizacji zadań, o których mowa w pkt. 5, oraz przez okres realizacji celów (o których mowa w części ZGODA BENEFICJENTA na przetwarzanie danych osobowych oraz ZGODA PEŁNOMOCNIKA na przetwarzanie danych osobowych oraz ZGODA WSPÓŁMAŁŻONKA na przetwarzanie danych osobowych, poniżej) lub do czasu jej wycofania;"]
[]
[null,"9) przysługuje Pani/Panu prawo dostępu do Pani/Pana danych osobowych, prawo żądania ich sprostowania, usunięcia lub ograniczenia  przetwarzania, w przypadkach określonych w Rozporządzeniu RODO. Ponadto w zakresie danych pozyskanych na podstawie art. 6 ust 1 lit. a Rozporządzenia RODO, tj. na podstawie odrębnej zgody na przetwarzanie danych osobowych, przysługuje Pani/Panu prawo do przenoszenia danych objętych zgodą oraz prawo do wycofania tej zgody w dowolnym momencie, bez wpływu na zgodność z prawem przetwarzania, którego dokonano na podstawie zgody przed jej wycofaniem;"]
[null,"10) w przypadku uznania, że przetwarzanie danych osobowych narusza przepisy Rozporządzenia RODO, przysługuje Pani/Panu prawo wniesienia skargi do Prezesa Urzędu Ochrony Danych Osobowych;"]
[]
[null,"11) podanie danych osobowych na podstawie art. 6 ust. 1 lit. c Rozporządzenia RODO w składanym wniosku o płatność wynika z obowiązku zawartego w przepisach powszechnie obowiązującego prawa, a konsekwencją niepodania tych danych osobowych będzie dwukrotne wezwanie do uzupełnienia braków we wniosku o płatność oraz rozpatrzenie wniosku o płatność w zakresie, w jakim został on wypełniony, oraz na podstawie dołączonych i poprawie sporządzonych dokumentów."]
[]
["2.","OŚWIADCZENIE O WYPEŁNIENIU OBOWIĄZKU INFORMACYJNEGO PRZEZ BENEFICJENTA  WOBEC INNYCH OSÓB⁸)"]
[]
[null,"1. Przyjmuję do wiadomości, że ARiMR staje się administratorem danych osobowych osób fizycznych7), pozyskanych od Beneficjenta, które to dane osobowe Beneficjent bezpośrednio lub pośrednio pozyskał w celu wypłaty pomocy finansowej na realizację operacji.\n2. Jako Beneficjent oświadczam, że dane osobowe, o których mowa w pkt 1, przetwarzam zgodnie z obowiązującymi w tym zakresie regulacjami prawnymi i jestem uprawniony do ich przekazania ARiMR oraz uczyniłem zadość wszelkim obowiązkom związanym z ich przekazaniem, a w szczególności poinformowałem osoby, których dane przekazuję, o fakcie i celu ich przekazania.                       \n3. Jako Beneficjent oświadczam, iż poinformowałem wszystkie osoby fizyczne, o których mowa w pkt 1, o treści klauzuli informacyjnej, ktora znajduje sie w poniższej sekcji niniejszego wniosku.\n4. Jednocześnie jako Beneficjent zobowiązuje się poinformować osoby, których dane osobowe będę przekazywał do ARiMR w celu wypłaty pomocy finansowej na realizację operacji, o treści klauzuli, znajdujacej się w ponizszej sekcji niniejszego wniosku.\n\n"]
[]
[null,"⁷ Dotyczy przypadków pozyskiwania danych osobowych osób trzecich w związku z ubieganiem się o wypłatę pomocy w ramach ww. poddziałania. "]
[null,"⁸ W przypadku, gdy Beneficjent nie przekazuje danych osobowych innych niż bezpośrednio jego dotyczących lub zachodzi wyłączenie stosowania obowiązku informacyjnego, stosownie do art. 13 ust. 4 lub art. 14 ust. 5 Rozporządzenia RODO treści ww. oświadczenia Beneficjent nie składa."]
[]
[]
[null,"miejscowość i data ",null,null,null,null,null,null,"czytelny podpis Beneficjenta/pełnomocnika Beneficjenta"]

{"sheet":"RODO_zgoda_beneficjenta","index":12,"n_rows":25,"n_cols":21,"rows_kept":25,"cut":false,"hidden":false,"merged":[[24,3,24,6],[24,8,25,12],[1,1,1,12],[3,3,6,12],[8,3,13,12],[14,1,19,12],[20,3,23,6],[20,8,23,12]]}
[]
[3,"ZGODA BENEFICJENTA  na przetwarzanie danych osobowych (aby wyrazić zgodę należy wstawić znak X)"]
[]
[null,null,null,"Wyrażam zgodę na przetwarzanie przez Agencję Restrukturyzacji i Modernizacji Rolnictwa z siedzibą w Warszawie, Al. Jana Pawła II 70, 00-175 Warszawa (adres do korespondencji: ul. Poleczki 33, 02-822 Warszawa), jako administratora danych, moich danych osobowych podanych w zakresie szerszym, niż jest to wymagane na podstawie przepisów prawa, oznaczonych w niniejszym formularzu „Wniosku o płatność” jako „dane nieobowiązkowe”, w celu ułatwienia i przyśpieszenia kontaktu ze mną  w sprawach dotyczących złożonego wniosku.",null,null,null,null,null,null,null,null,null,null,null,null,null,null,null,null,"x"]
[]
[]
[]
[]
[null,null,null,"Wyrażam zgodę na przetwarzanie przez Agencję Restrukturyzacji i Modernizacji Rolnictwa z siedzibą w Warszawie, Al. Jana Pawła II nr 70, 00-175 Warszawa (adres do korespondencji: ul. Poleczki 33, 02-822 Warszawa), jako administratora danych, moich danych osobowych w następującym zakresie: oznaczonych w niniejszym formularzu Wniosku o płatność  jako „dane nieobowiązkowe”, w celu otrzymywania treści informacyjnych lub promocyjnych o działaniach realizowanych przez Agencję, za pośrednictwem SMS/MMS na podany przeze mnie numer telefonu."]
[]
[]
[]
[]
[]
[null,"Podanie wyżej wskazanych danych jest dobrowolne, a ich niepodanie nie wpływa na proces przyjęcia i rozpatrzenia „Wniosku o płatność”. Niepodanie tych danych uniemożliwi jedynie realizację celów wskazanych w treści poszczególnych zgód. Każdą z powyższych zgód można wycofać w dowolnym momencie, poprzez przesłanie „oświadczenia o wycofaniu zgody” na adres korespondencyjny administratora danych z dopiskiem „Ochrona danych osobowych” lub na adres poczty elektronicznej (info@arimr.gov.pl, iod@arimr.gov.pl). Wycofanie zgody nie wpływa na zgodność z prawem przetwarzania, którego dokonano na podstawie zgody przed jej wycofaniem."]
[]
[]
[]
[]
[]
[]
[]
[]
[]
[null,null,null,"miejscowość i data",null,null,null,null,"(czytelny podpis Beneficjenta/pełnomocnika Beneficjenta)"]

{"sheet":"RODO_zgoda_pełnomocnika","index":13,"n_rows":27,"n_cols":18,"rows_kept":27,"cut":false,"hidden":false,"merged":[[24,4,24,7],[24,9,25,13],[1,2,1,13],[3,4,6,13],[8,4,13,13],[14,2,19,13],[21,4,23,7],[21,9,23,13]]}
[]
[null,4,"ZGODA PEŁNOMOCNIKA na przetwarzanie danych osobowych (aby wyrazić zgodę należy wstawić znak X) *",null,null,null,null,null,null,null,null,null,null,null,null,null,null,"x"]
[]
[null,null,null,null,"Wyrażam zgodę na przetwarzanie przez Agencję Restrukturyzacji i Modernizacji Rolnictwa z siedzibą w Warszawie, Al. Jana Pawła II nr 70, 00-175 Warszawa (adres do korespondencji: ul. Poleczki 33, 02-822 Warszawa), jako administratora danych, moich danych osobowych podanych w zakresie szerszym, niż jest to wymagane na podstawie przepisów powszechnie obowiązującego prawa, oznaczonych w formularzu „Wniosku o płatność\" jako „dane nieobowiązkowe”,  w celu ułatwienia i przyspieszenia kontaktu w sprawach dotyczących złożonego wniosku."]
[]
[]
[]
[]
[null,null,null,null,"Wyrażam zgodę na przetwarzanie przez Agencję Restrukturyzacji i Modernizacji Rolnictwa z siedzibą w Warszawie, Al. Jana Pawła II nr 70, 00-175 Warszawa (adres do korespondencji: ul. Poleczki 33, 02-822 Warszawa), jako administratora danych, moich danych osobowych w następującym zakresie: oznaczonych w  formularzu \"Wniosku o płatność\"  jako „dane nieobowiązkowe”, w celu otrzymywania treści informacyjnych lub promocyjnych o działaniach realizowanych przez Agencję, kierowanych do mnie za pośrednictwem SMS/MMS na podany przeze mnie numer telefonu."]
[]
[]
[]
[]
[]
[null,null,"Podanie wyżej wskazanych danych jest dobrowolne, a ich niepodanie nie wpływa na proces przyjęcia i rozpatrzenia „Wniosku o płatność”. Niepodanie tych danych uniemożliwi jedynie realizację celów wskazanych w treści poszczególnych zgód. Każdą z powyższych zgód można wycofać w dowolnym momencie, poprzez przesłanie „oświadczenia o wycofaniu zgody” na adres korespondencyjny administratora danych z dopiskiem „Ochrona danych osobowych” lub na adres poczty elektronicznej (info@arimr.gov.pl, iod@arimr.gov.pl). Wycofanie zgody nie wpływa na zgodność z prawem przetwarzania, którego dokonano na podstawie zgody przed jej wycofaniem."]
[]
[]
[]
[]
[]
[]
[]
[]
[]
[null,null,null,null,"miejscowość i data",null,null,null,null,"(czytelny podpis pełnomocnika Beneficjenta)"]
[]
[null,"* nie dotyczy eWOP"]

{"sheet":"RODO_zgoda małżonka","index":14,"n_rows":27,"n_cols":19,"rows_kept":27,"cut":false,"hidden":false,"merged":[[21,4,23,7],[21,9,23,13],[24,4,24,7],[24,9,25,13],[1,2,1,13],[3,4,6,13],[8,4,13,13],[14,2,19,13]]}
[]
[null,5,"ZGODA MAŁŻONKA BENEFICJENTA na przetwarzanie danych osobowych (aby wyrazić zgodę należy wstawić znak X) *",null,null,null,null,null,null,null,null,null,null,null,null,null,null,null,"x"]
[]
[null,null,null,null,"Wyrażam zgodę na przetwarzanie przez Agencję Restrukturyzacji i Modernizacji Rolnictwa z siedzibą w Warszawie, Al. Jana Pawła II nr 70, 00-175 Warszawa (adres do korespondencji: ul. Poleczki 33, 02-822 Warszawa), jako administratora danych, moich danych osobowych podanych w zakresie szerszym, niż jest to wymagane na podstawie przepisów powszechnie obowiązującego prawa, oznaczonych w formularzu „Wniosku o płatność\" jako „dane nieobowiązkowe”,  w celu ułatwienia i przyspieszenia kontaktu w sprawach dotyczących złożonego wniosku."]
[]
[]
[]
[]
[null,null,null,null,"Wyrażam zgodę na przetwarzanie przez Agencję Restrukturyzacji i Modernizacji Rolnictwa z siedzibą w Warszawie, Al. Jana Pawła II nr 70, 00-175 Warszawa (adres do korespondencji: ul. Poleczki 33, 02-822 Warszawa), jako administratora danych, moich danych osobowych w następującym zakresie: oznaczonych w  formularzu \"Wniosku o płatność\"  jako „dane nieobowiązkowe”, w celu otrzymywania treści informacyjnych lub promocyjnych o działaniach realizowanych przez Agencję, kierowanych do mnie za pośrednictwem SMS/MMS na podany przeze mnie numer telefonu."]
[]
[]
[]
[]
[]
[null,null,"Podanie wyżej wskazanych danych jest dobrowolne, a ich niepodanie nie wpływa na proces przyjęcia i rozpatrzenia „Wniosku o płatność”. Niepodanie tych danych uniemożliwi jedynie realizację celów wskazanych w treści poszczególnych zgód. Każdą z powyższych zgód można wycofać w dowolnym momencie, poprzez przesłanie „oświadczenia o wycofaniu zgody” na adres korespondencyjny administratora danych z dopiskiem „Ochrona danych osobowych” lub na adres poczty elektronicznej (info@arimr.gov.pl, iod@arimr.gov.pl). Wycofanie zgody nie wpływa na zgodność z prawem przetwarzania, którego dokonano na podstawie zgody przed jej wycofaniem."]
[]
[]
[]
[]
[]
[]
[]
[]
[]
[null,null,null,null,"miejscowość i data",null,null,null,null,"(czytelny podpis małżonka Beneficjenta)"]
[]
[null,"* nie dotyczy eWOP"]

{"sheet":"RODO_klauzula_beneficjenci","index":15,"n_rows":16,"n_cols":3,"rows_kept":16,"cut":false,"hidden":false,"merged":[[8,2,14,13],[15,2,15,13],[2,2,2,13],[4,2,7,13]]}
[]
[]
[null,6,"Klauzula informacyjna dotycząca przetwarzania przez Agencję Restrukturyzacji i Modernizacji Rolnictwa danych osobowych osób fizycznych, które zostaną pozyskane przez beneficjenta"]
[]
[null,null,"Zgodnie z treścią z art. 14 rozporządzenia Parlamentu Europejskiego i Rady (UE) 2016/679 z dnia 27 kwietnia 2016 r. w sprawie ochrony osób fizycznych w związku z przetwarzaniem danych osobowych i w sprawie swobodnego przepływu takich danych oraz uchylenia dyrektywy 95/46/WE (ogólne rozporządzenie o ochronie danych) (Dz. Urz. UE L 119 z 04.05.2016, str. 1 oraz Dz. Urz. UE L 127 z 23.05.2018, str. 2 oraz Dz. Urz. UE L 74 z 04.03.2021, str. 35), zwanego dalej: „Rozporządzeniem RODO”, w odniesieniu do osób fizycznych, których dane osobowe zostały pozyskane przez: ……………………………….…....................................................................\n                                                                                                                       (nazwa)\nw celu wypłaty pomocy finansowej, Agencja Restrukturyzacji i Modernizacji Rolnictwa informuje, że:"]
[]
[]
[]
[null,null,"1) Administratorem Pani/Pana danych osobowych (zwanym dalej: \"Administratorem \") w związku z realizacją zadań, o których mowa w pkt 4 poniżej, jest Agencja Restrukturyzacji i Modernizacji Rolnictwa z siedzibą w Warszawie, Al. Jana Pawła II 70, 00-175 Warszawa;\n\n2) z Administratorem danych można kontaktować się poprzez e-mail: info@arimr.gov.pl lub pisemnie na adres korespondencyjny Centrali Agencji Restrukturyzacji i Modernizacji Rolnictwa: ul. Poleczki 33, 02-822 Warszawa;\n\n3) Administrator wyznaczył inspektora ochrony danych, z którym może Pani/Pan kontaktować się w sprawach dotyczących przetwarzania Pani/Pana danych osobowych oraz korzystania z praw związanych z przetwarzaniem danych osobowych, poprzez adres e-mail: iod@arimr.gov.pl lub pisemnie na adres korespondencyjny Administratora, wskazany w pkt 2;\n\n4) Pani/Pana dane osobowe pozyskane przez Administratora  przetwarzane będą na podstawie art. 6 ust. 1 lit. c Rozporządzenia RODO, gdy jest to niezbędne do wypełnienia obowiązku prawnego ciążącego na administratorze danych (dane obowiązkowe), w celu realizacji zadań wynikających z art. 1 pkt 1 w zw. art. 3 ust. 1 pkt 6 lit. a, b i c  oraz art. 6 ust. 2 ustawy z dnia 20 lutego 2015 r. o wspieraniu rozwoju obszarów wiejskich z udziałem środków Europejskiego Funduszu Rolnego na rzecz Rozwoju Obszarów Wiejskich w ramach Programu Rozwoju Obszarów Wiejskich na lata 2014-2020 2020 (Dz. U. z 2021 r. poz. 182 i 904), w związku rozporządzeniem Ministra Rolnictwa i Rozwoju Wsi z dnia 13 lipca 2015 r. w sprawie szczegółowych warunków i trybu przyznawania, wypłaty oraz zwrotu pomocy finansowej na operacje typu „Premie dla młodych rolników” w ramach poddziałania „Pomoc w rozpoczęciu działalności gospodarczej na rzecz młodych rolników” objętego Programem Rozwoju Obszarów Wiejskich na lata 2014-2020 ((Dz. U. z 2018 r. poz. 759 i 1021 oraz z 2019 r. poz. 760, z 2020 r. poz. 839 oraz z 2021 r. poz. 389), rozporządzeniem Ministra Rolnictwa i Rozwoju Wsi z dnia 25 lipca 2016 r. w sprawie szczegółowych warunków i trybu przyznawania, wypłaty oraz zwrotu pomocy finansowej na operacje typu „Premie na rozpoczęcie działalności pozarolniczej” w ramach poddziałania „Pomoc na rozpoczęcie pozarolniczej działalności gospodarczej na obszarach wiejskich” objętego Programem Rozwoju Obszarów Wiejskich na lata 2014–2020 (Dz. U. z 2016 r. poz. 1196, z 2017 r. poz. 1013, z 2018 r. poz. 1071, z 2019 r. poz. 922 oraz z 2020 r. poz.1594) / rozporządzeniem Ministra Rolnictwa i Rozwoju Wsi z dnia 23 października 2015 r. w sprawie szczegółowych warunków i trybu przyznawania, wypłaty oraz zwrotu pomocy finansowej na operacje typu „Restrukturyzacja małych   gospodarstw” w ramach poddziałania „Pomoc na rozpoczęcie działalności gospodarczej na rzecz rozwoju małych gospodarstw” objętego Programem Rozwoju Obszarów Wiejskich  na lata 2014–2020 (Dz. U. z 2020 r. poz. 2096 oraz z 2021 r. poz. 377) ,tj. w celu wypłaty pomocy finansowej"]
[]
[]
[]
[]
[]
[]
[null,null,"5) na podstawie, o której mowa w pkt 4 Administrator  będzie przetwarzał następujące kategorie Pani/Pana danych osobowych: dane identyfikacyjne oraz dane kontaktowe;\n\n6) odbiorcami Pani/Pana danych osobowych mogą być:\n   1. organy  kontrolne,\n   2. osoby lub podmioty, którym Administrator danych udzieli informacji publicznej zgodnie z ustawą z dnia 6 września 2001 r. o   \n       dostępie do informacji publicznej (Dz. U. z 2020 r. poz. 2176),\n   3. podmioty uprawnione do przetwarzania danych osobowych na podstawie przepisów powszechnie obowiązującego prawa,\n   4. podmioty przetwarzające w imieniu Administratora danych na mocy zawartej umowy, m. in. dostawcy IT; \n\n7) Pani/Pana dane osobowe, zebrane na podstawie, o której mowa w pkt 4, będą przetwarzane przez Administratora przez okres realizacji zadań, o których mowa w pkt. 4. Okres przetwarzania Pani/Pana danych osobowych będzie każdorazowo przedłużony o okres przedawnienia roszczeń, jeżeli przetwarzanie danych będzie niezbędne do dochodzenia roszczeń lub do obrony przed takimi roszczeniami przez Administratora. Ponadto, okres przechowywania danych będzie przedłużony o okres potrzebny do przeprowadzenia archiwizacji;\n  \n8) przysługuje Pani/Panu prawo dostępu do Pani/Pana danych osobowych, prawo żądania ich sprostowania, usunięcia lub ograniczenia przetwarzania, w przypadkach określonych w Rozporządzeniu RODO;\n\n9) w przypadku uznania, że przetwarzanie Pani/Pana danych osobowych narusza przepisy Rozporządzenia, przysługuje Pani/Panu prawo wniesienia skargi do Prezesa Urzędu Ochrony Danych Osobowych;\n\n10) Pani/Pana dane Administrator uzyskał od podmiotu, o którym mowa na wstępie."]

{"sheet":"zał_1a_Sprawozdanie 6.1","index":16,"n_rows":172,"n_cols":46,"rows_kept":172,"cut":false,"hidden":false,"merged":[[175,0,175,37],[148,2,148,15],[148,16,148,19],[148,20,148,33],[148,34,148,37],[149,16,149,19],[149,20,149,33],[149,34,149,37],[127,4,127,18],[129,4,129,18],[129,19,129,24],[129,33,129,37],[128,19,128,24],[128,25,128,28],[128,29,128,32],[129,25,129,28],[129,29,129,32],[142,2,142,15],[142,16,142,19],[142,20,142,33],[160,2,160,33],[160,34,160,37],[134,19,134,24],[134,25,134,28],[126,4,126,18],[139,16,139,19],[139,20,139,33],[139,34,139,37],[140,2,140,15],[140,16,140,19],[140,20,140,33],[140,34,140,37],[131,4,131,18],[131,19,131,24],[131,25,131,28],[131,29,131,32],[131,33,131,37],[132,33,132,37],[133,19,133,24],[133,25,133,28],[133,29,133,32],[133,33,133,37],[130,19,130,24],[132,4,132,18],[132,19,132,24],[132,25,132,28],[132,29,132,32],[128,33,128,37],[124,4,124,18],[125,4,125,18],[122,4,122,18],[57,4,57,31],[57,32,57,33],[57,34,57,35],[53,4,53,31],[53,32,53,33],[53,34,53,35],[110,19,110,24],[105,19,105,24],[105,33,105,37],[84,19,84,24],[84,29,84,32],[109,4,109,18],[109,19,109,24],[106,4,106,18],[102,19,102,24],[102,29,102,32],[105,4,105,18],[102,33,102,37],[104,4,104,18],[97,19,97,24],[97,29,97,32],[122,2,122,3],[127,2,127,3],[130,4,130,18],[38,4,38,31],[1,3,1,36],[152,20,152,37],[153,2,153,19],[153,20,153,37],[146,16,146,19],[146,20,146,33],[146,34,146,37],[139,2,139,15],[142,34,142,37],[143,2,143,15],[143,16,143,19],[143,20,143,33],[143,34,143,37],[141,2,141,15],[141,16,141,19],[141,20,141,33],[141,34,141,37],[105,29,105,32],[109,29,109,32],[109,33,109,37],[113,1,114,3],[113,4,113,18],[114,4,114,18],[115,1,115,18],[116,1,116,18],[110,25,110,28],[130,25,130,28],[130,29,130,32],[130,33,130,37],[126,19,126,24],[126,25,126,28],[126,29,126,32],[126,33,126,37],[127,19,127,24],[127,25,127,28],[127,29,127,32],[127,33,127,37],[124,33,124,37],[125,19,125,24],[125,25,125,28],[125,29,125,32],[125,33,125,37],[124,25,124,28],[122,19,122,24],[89,33,89,37],[90,19,90,24],[92,29,92,32],[92,33,92,37],[83,25,89,28],[83,29,83,32],[90,29,90,32],[85,19,85,24],[85,29,85,32],[85,33,85,37],[86,19,86,24],[87,19,87,24],[87,29,87,32],[88,19,88,24],[88,29,88,32],[88,33,88,37],[89,19,89,24],[89,29,89,32],[97,33,97,37],[98,19,98,24],[98,29,98,32],[98,33,98,37],[95,33,95,37],[96,19,96,24],[96,29,96,32],[96,33,96,37],[97,25,97,28],[98,25,98,28],[95,29,95,32],[90,25,96,28],[93,33,93,37],[94,19,94,24],[94,29,94,32],[92,19,92,24],[90,33,90,37],[91,19,91,24],[91,29,91,32],[91,33,91,37],[94,33,94,37],[95,19,95,24],[93,19,93,24],[100,1,109,3],[100,4,100,18],[76,32,76,33],[76,34,76,35],[77,4,77,31],[77,32,77,33],[77,34,77,35],[82,19,82,24],[82,25,82,28],[82,29,82,32],[82,33,82,37],[79,4,79,31],[79,32,79,33],[79,34,79,35],[78,4,78,31],[78,32,78,33],[78,34,78,35],[82,1,82,18],[76,4,76,31],[101,4,101,18],[100,19,100,24],[100,29,100,32],[100,33,100,37],[99,19,99,24],[3,1,3,35],[4,1,4,14],[8,3,8,30],[8,31,8,37],[9,31,9,37],[37,34,37,35],[37,36,37,37],[12,31,12,37],[17,3,17,30],[17,31,17,37],[18,31,18,37],[21,31,21,37],[8,1,8,2],[17,1,17,2],[28,1,28,2],[20,31,20,37],[22,31,22,37],[28,3,28,30],[28,31,28,37],[11,31,11,37],[13,31,13,37],[14,31,14,37],[23,31,23,37],[24,31,24,37],[134,29,134,32],[134,33,134,37],[134,1,134,18],[147,2,147,15],[147,16,147,19],[147,20,147,33],[147,34,147,37],[144,2,144,15],[144,16,144,19],[144,20,144,33],[144,34,144,37],[145,2,145,15],[146,2,146,15],[145,16,145,19],[145,20,145,33],[145,34,145,37],[149,2,149,15],[161,2,161,33],[161,34,161,37],[162,2,162,33],[162,34,162,37],[159,2,159,33],[159,34,159,37],[158,2,158,33],[158,34,158,37],[152,2,152,19],[157,2,157,33],[157,34,157,37],[169,1,169,37],[167,1,167,37],[168,1,168,37],[163,2,163,33],[163,34,163,37],[164,2,164,33],[164,34,164,37],[165,2,165,33],[165,34,165,37],[122,29,122,32],[122,33,122,37],[123,19,123,24],[123,29,123,32],[123,33,123,37],[123,25,123,28],[124,19,124,24],[124,29,124,32],[120,33,120,37],[121,4,121,18],[121,19,121,24],[121,29,121,32],[121,33,121,37],[120,4,120,18],[118,1,118,18],[118,19,118,24],[118,25,118,28],[118,29,118,32],[118,33,118,37],[119,19,119,24],[119,29,119,32],[119,33,119,37],[119,4,119,18],[120,19,120,24],[120,25,120,28],[120,29,120,32],[99,29,99,32],[116,33,116,37],[117,19,117,24],[117,25,117,28],[117,29,117,32],[117,33,117,37],[115,19,115,24],[115,25,115,28],[115,29,115,32],[115,33,115,37],[116,19,116,24],[116,25,116,28],[116,29,116,32],[113,33,113,37],[114,19,114,24],[114,25,114,28],[114,29,114,32],[114,33,114,37],[111,19,111,24],[111,29,111,32],[111,33,111,37],[112,19,112,24],[112,25,112,28],[112,29,112,32],[112,33,112,37],[111,25,111,28],[113,19,113,24],[113,25,113,28],[113,29,113,32],[110,29,110,32],[110,33,110,37],[107,4,107,18],[107,19,107,24],[107,29,107,32],[107,33,107,37],[108,4,108,18],[108,19,108,24],[108,29,108,32],[108,33,108,37],[99,25,109,28],[106,19,106,24],[106,29,106,32],[106,33,106,37],[103,19,103,24],[103,29,103,32],[103,33,103,37],[104,19,104,24],[104,29,104,32],[104,33,104,37],[101,19,101,24],[101,29,101,32],[101,33,101,37],[99,33,99,37],[93,29,93,32],[64,3,64,31],[84,33,84,37],[73,32,73,33],[73,34,73,35],[74,32,74,36],[73,36,73,37],[71,32,71,33],[71,34,71,35],[71,36,71,37],[72,32,72,33],[72,34,72,35],[72,36,72,37],[83,33,83,37],[83,19,83,24],[84,1,89,3],[70,34,70,35],[91,1,96,3],[87,33,87,37],[63,3,63,31],[63,32,63,33],[63,34,63,35],[56,34,56,35],[86,29,86,32],[86,33,86,37],[70,36,70,37],[67,32,67,33],[70,4,70,31],[70,32,70,33],[61,36,61,37],[76,36,76,37],[77,36,77,37],[78,36,78,37],[63,36,63,37],[61,34,61,35],[171,1,172,18],[171,19,172,37],[64,32,64,33],[64,34,64,35],[64,36,64,37],[65,3,65,31],[65,32,65,33],[65,34,65,35],[65,36,65,37],[71,3,71,31],[72,3,72,31],[69,4,69,31],[69,32,69,33],[69,34,69,35],[69,36,69,37],[67,34,67,35],[67,36,67,37],[67,4,67,31],[68,4,68,31],[68,32,68,33],[170,1,170,37],[79,36,79,37],[68,34,68,35],[68,36,68,37],[173,1,174,18],[173,19,174,37],[35,1,35,2],[35,3,35,30],[35,31,35,37],[48,1,48,2],[48,3,48,30],[48,31,48,37],[40,4,40,31],[40,32,40,33],[40,34,40,35],[40,36,40,37],[41,4,41,31],[39,4,39,31],[39,32,39,33],[39,34,39,35],[39,36,39,37],[36,32,36,33],[41,32,41,33],[41,34,41,35],[41,36,41,37],[56,4,56,31],[62,34,62,35],[62,36,62,37],[31,31,31,37],[32,31,32,37],[36,34,36,35],[36,36,36,37],[37,4,37,31],[37,32,37,33],[38,32,38,33],[38,34,38,35],[38,36,38,37],[49,34,49,35],[49,36,49,37],[51,4,51,31],[62,3,62,31],[60,36,60,37],[61,3,61,31],[54,4,54,31],[54,32,54,33],[54,34,54,35],[60,32,60,33],[60,34,60,35],[61,32,61,33],[58,4,58,31],[58,32,58,33],[62,32,62,33],[25,31,25,37],[30,31,30,37],[29,31,29,37],[59,4,59,31],[59,32,59,33],[45,32,45,37],[44,3,44,31],[45,3,45,31],[42,32,42,33],[42,34,42,35],[42,36,42,37],[42,9,42,31],[43,3,43,31],[44,32,44,37],[59,34,59,35],[51,32,51,33],[51,34,51,35],[56,32,56,33],[52,4,52,31],[52,32,52,33],[52,34,52,35],[43,32,43,37],[58,34,58,35],[49,32,49,33]]}
[null,"Załącznik nr 1a do wniosku o płatność"]
[null,null,null,"SPRAWOZDANIE Z REALIZACJI BIZNESPLANU"]
[]
[null,"Poddziałanie 6.1 \"Pomoc w rozpoczęciu działalności gospodarczej na rzecz młodych rolników\""]
[null,"I.WSKAŹNIKI MONITOROWANIA"]
[null,null,"1. Dane dotyczące gospodarstwa po realizacji biznesplanu"]
[null,null,"a) wielkość ekonomiczna gospodarstwa"]
[]
[null,"Lp.",null,"Nazwa wskaźnika",null,null,null,null,null,null,null,null,null,null,null,null,null,null,null,null,null,null,null,null,null,null,null,null,null,null,null,"Wartość (w euro) "]
[null,"1.",null,"Wielkość ekonomiczna gospodarstwa w okresie wyjściowym"]
[null,"2.",null,"Wielkość ekonomiczna gospodarstwa w okresie docelowym:"]
[null,null,null,"a) zaplanowana w biznesplanie"]
[null,null,null,"b) osiągnięta"]
[null,"3.",null,"Wzrost wielkości ekonomicznej gospodarstwa (%)",null,null,null,null,null,null,null,null,null,null,null,null,null,null,null,null,null,null,null,null,null,null,null,null,null,null,null,"Wartość (w %)"]
[null,null,null,null,null,null,null,null,null,null,null,null,null,null,null,null,null,null,null,null,null,null,null,null,null,null,null,null,null,null,null,{"$f":"IF(AF10<>0,(AF13-AF10)/AF10,\"\")","v":""}]
[null,null,"b) powierzchnia gospodarstwa"]
[]
[null,"Lp.",null,"Nazwa wskaźnika",null,null,null,null,null,null,null,null,null,null,null,null,null,null,null,null,null,null,null,null,null,null,null,null,null,null,null,"Powierzchnia gospodarstwa (ha)"]
[null,"1.",null,"Powierzchnia ogólna gospodarstwa w okresie wyjściowym"]
[null,"2.",null,"Powierzchnia ogólna gospodarstwa w okresie docelowym:"]
[null,null,null,"a) zaplanowana w biznesplanie"]
[null,null,null,"b) osiągnięta"]
[null,"3.",null,"Powierzchnia użytków rolnych w okresie wyjściowym"]
[null,"4.",null,"Powierzchnia użytków rolnych w okresie docelowym:"]
[null,null,null,"a) zaplanowana w biznesplanie"]
[null,null,null,"b) osiągnięta"]
[null,null,"c) rozpoczęcie prowadzenia uproszczonej rachunkowości1 "]
[]
[null,"Lp.",null,"Nazwa wskaźnika",null,null,null,null,null,null,null,null,null,null,null,null,null,null,null,null,null,null,null,null,null,null,null,null,null,null,null,"Data\n (dzień-miesiąc-rok)\n"]
[null,"1.",null,"Rozpoczęcie prowadzenia uproszczonej rachunkowości w gospodarstwie rolnym: "]
[null,null,null,null,null,null,null,null,null,null,null,null,null,null,null,null,null,null,null,null,null,null,null,null,null,null,null,null,null,null,null,"Wartość (w zł)"]
[null,null,null,"a) przychody za ostatni pełny rok"]
[null,null,null,"b) rozchody za ostatni pełny rok"]
[null,null,"d) informacje dotyczące osiągnięcia celów końcowych"]
[]
[null,"Lp.",null,"Nazwa wskaźnika / nazwa działania",null,null,null,null,null,null,null,null,null,null,null,null,null,null,null,null,null,null,null,null,null,null,null,null,null,null,null,null,"Zrealizowane"]
[null,"1.",null,"Cele końcowe wskazane w biznesplanie:",null,null,null,null,null,null,null,null,null,null,null,null,null,null,null,null,null,null,null,null,null,null,null,null,null,null,null,null,"TAK",null,"NIE",null,"ND"]
[null,null,null,"1)","zwiększenie skali produkcji towarowej",null,null,null,null,null,null,null,null,null,null,null,null,null,null,null,null,null,null,null,null,null,null,null,null,null,null,null,null,null,null,null,null,null,null,null,null,null,null,{"$f":"IF(AND(AG38=\"x\",AI38=\"x\"),\"Błąd. Proszę wpisać x tylko w jednym z pól\",\"\")","v":""}]
[null,null,null,"2)","poprawa jakości produkcji"]
[null,null,null,"3)","zapewnienie zrównoważenia środowiskowego"]
[null,null,null,"4)","poprawa warunków utrzymania zwierząt"]
[null,null,null,"5)","poprawa warunków higieny i bezpieczeństwa pracy"]
[null,null,null,"6)","inne (wymienić jakie):"]
[null,null,null," ",null,null,null,null,null,null,null,null,null,null,null,null,null,null,null,null,null,null,null,null,null,null,null,null,null,null,null,null,"Wartość (w zł)"]
[null,null,null,"a) przychody za ostatni pełny rok"]
[null,null,null,"b) rozchody za ostatni pełny rok"]
[null,"2. Realizacja działań, z tytułu których przyznano punkty"]
[]
[null,"Lp.",null,"Nazwa wskaźnika / nazwa działania",null,null,null,null,null,null,null,null,null,null,null,null,null,null,null,null,null,null,null,null,null,null,null,null,null,null,null,null,"Zrealizowane"]
[null,null,null,null,null,null,null,null,null,null,null,null,null,null,null,null,null,null,null,null,null,null,null,null,null,null,null,null,null,null,null,null,"TAK",null,"NIE",null,"ND",null,null,null,null,null,null,null,null,"x"]
[null,"1.",null,"Udział w szkoleniach (wymienić jakich):"]
[null,null,null,{"$f":"ROW(D1)","v":1}," "]
[null,null,null,{"$f":"ROW(D2)","v":2}]
[null,null,null,{"$f":"ROW(D3)","v":3}]
[null,null,null,"…"]
[null,"2.",null,"Korzystanie z usług doradczych (wymienić jakich):"]
[null,null,null,{"$f":"ROW(D1)","v":1}]
[null,null,null,{"$f":"ROW(D2)","v":2}]
[null,null,null,3]
[null,null,null,"…"]
[null,"3.",null,"Udział w zorganizowanych formach współpracy producentów rolnych"]
[null,"4.",null,"Prowadzenie działań w zakresie przygotowania do sprzedaży produktów rolnych wytwarzanych w gospodarstwie"]
[null,"5.",null,"Prowadzenie działalności w zakresie przetwarzania produktów rolnych wytwarzanych w gospodarstwie"]
[null,"6.",null,"Uczestnictwo w unijnym, o którym mowa w art. 16 rozporządzenia nr 1305/2013 , lub krajowym systemie jakości, o którym mowa w art. 16 ust. 1 lit. b rozporządzenia nr 1305/2013 w ramach działania „Systemy jakości produktów rolnych i środków spożywczych” objętym PROW 2014-2020"]
[null,"7.",null,"Uczestnictwo w systemie rolnictwa ekologicznego, o którym mowa w rozporządzeniu Rady (WE) nr 834/2007 z dnia 28 czerwca 2007 r. w sprawie produkcji ekologicznej i znakowania produktów ekologicznych i uchylającym rozporządzenie (EWG) nr 2092/91 (Dz. Urz. UE L 189 z 20.07.2007, str. 1, z późn. zm.)"]
[null,"8.",null,"Przygotowywanie planu nawozowego, o którym mowa w załączniku nr 2 do rozporządzenia Ministra Rolnictwa i Rozwoju Wsi z dnia 18 marca 2015 r. w sprawie szczegółowych warunków i trybu przyznawania pomocy finansowej w ramach działania „Działanie rolno-środowiskowo-klimatyczne” objętego Programem Rozwoju Obszarów Wiejskich na lata 2014–2020 (Dz. U. poz. 415 i 765) oraz stosowanie tego planu, w szczególności prowadzenie wykazu działań agrotechnicznych zawierającego prace wykonywane na poszczególnych działkach rolnych w zakresie nawożenia, z podaniem nazwy i ilości zastosowanego nawozu pod poszczególne uprawy"]
[null,"9.",null,"Wprowadzenie innowacyjności w dziedzinie:"]
[null,null,null,"1)","postęp biologiczny"]
[null,null,null,"2)","organizacja produkcji"]
[null,null,null,"3)","nowoczesne technologie produkcji"]
[null,null,null,"4)","innowacyjny produkt"]
[null,"10.",null,"Produkcja roślin wysokobiałkowych wymienionych w załączniku do rozporządzenia Ministra Rolnictwa i Rozwoju Wsi z dnia 12 marca 2015 r. w sprawie szczegółowych warunków i trybu przyznawania płatności bezpośrednich i płatności niezwiązanej do tytoniu (Dz. U. poz. 351, 672 i 1536), jeżeli powierzchnia użytków rolnych, na których będą uprawiane te rośliny, wynosi co najmniej 1 ha"]
[null,"11.",null,"Inwestycja budowlana związana z działalnością rolniczą (położona na gruntach stanowiących własność beneficjenta lub przedmiot użytkowania wieczystego, lub przedmiot dzierżawy z Zasobu Własności Rolnej Skarbu Państwa lub od jednostek samorządu terytorialnego)"]
[null,"12.",null,"Udział zbóż w strukturze zasiewów na gruntach ornych, mniejszy lub równy 66%"]
[null,null,null,null,null,null,null,null,null,null,null,null,null,null,null,null,null,null,null,null,null,null,null,null,null,null,null,null,null,null,"Osiągnięty procent",null,null,null,null,null,null,"%"]
[null,"13.",null,"Realizacja inwestycji w zakresie ochrony środowiska i klimatu (wymienić jakich):"]
[null,null,null,{"$f":"ROW(D1)","v":1}]
[null,null,null,{"$f":"ROW(D2)","v":2}]
[null,null,null,{"$f":"ROW(D3)","v":3}]
[null,null,null,"…"]
[null,"3. Wskaźniki rzeczowe"]
[null,null,"a) zakres zrealizowanych działań i inwestycji"]
[null,"Nazwa wskaźnika",null,null,null,null,null,null,null,null,null,null,null,null,null,null,null,null,null,"Liczba zrealizowanych typów inwestycji \nw ramach operacji",null,null,null,null,null,"Jednostka miary",null,null,null,"Wielkość wskaźnika",null,null,null,"Całkowita wartość inwestycji (zł)"]
[null,"Powierzchnia wybudowanych budynków produkcyjnych ",null,null,null,null,null,null,null,null,null,null,null,null,null,null,null,null,null,null,null,null,null,null,null,"m2"]
[null,"w tym:",null,null,"obory"]
[null,null,null,null,"chlewnie"]
[null,null,null,null,"inne budynki przeznaczone na inwentarz żywy"]
[null,null,null,null,"szklarnie (wraz z wyposażeniem)"]
[null,null,null,null,"magazyny paszowe"]
[null,null,null,null,"pozostałe budynki gospodarcze"]
[null,"Powierzchnia zmodernizowanych budynków produkcyjnych",null,null,null,null,null,null,null,null,null,null,null,null,null,null,null,null,null,null,null,null,null,null,null,"m2"]
[null,"w tym:",null,null,"obory"]
[null,null,null,null,"chlewnie"]
[null,null,null,null,"inne budynki przeznaczone na inwentarz żywy"]
[null,null,null,null,"szklarnie (wraz z wyposażeniem)"]
[null,null,null,null,"magazyny paszowe"]
[null,null,null,null,"pozostałe budynki gospodarcze"]
[null,"Powierzchnia płyt obornikowych",null,null,null,null,null,null,null,null,null,null,null,null,null,null,null,null,null,null,null,null,null,null,null,"m2"]
[null,"Objętość zbiorników na gnojówkę i gnojowicę",null,null,null,null,null,null,null,null,null,null,null,null,null,null,null,null,null,null,null,null,null,null,null,"m3"]
[null,"Liczba zakupionego sprzętu ruchomego",null,null,null,null,null,null,null,null,null,null,null,null,null,null,null,null,null,null,null,null,null,null,null,"szt."]
[null,"w tym:",null,null,"ciągniki rolnicze"]
[null,null,null,null,"ładowarki samobieżne"]
[null,null,null,null,"kombajny zbożowe"]
[null,null,null,null,"maszyny do zbioru (wyłączając kombajny zbożowe)"]
[null,null,null,null,"przyczepy transportowe"]
[null,null,null,null,"narzędzia i maszyny do uprawy gleby"]
[null,null,null,null,"maszyny do nawożenia"]
[null,null,null,null,"maszyny i urządzenia do siewu i sadzenia"]
[null,null,null,null,"pozostałe maszyny i urządzenia"]
[null,null,null,null,"elementy wyposażenia, elementy maszyn, narzędzi, wyposażenie dodatkowe "]
[null,"Liczba zakupionego sprzętu komputerowego",null,null,null,null,null,null,null,null,null,null,null,null,null,null,null,null,null,null,null,null,null,null,null,"szt."]
[null,"Liczba zakupionego oprogramowania",null,null,null,null,null,null,null,null,null,null,null,null,null,null,null,null,null,null,null,null,null,null,null,"szt."]
[null,"Elementy infrastruktury technicznej"]
[null,"w tym:",null,null,"powierzchnia placów manewrowych",null,null,null,null,null,null,null,null,null,null,null,null,null,null,null,null,null,null,null,null,"m2"]
[null,null,null,null,"długość dróg dojazdowych",null,null,null,null,null,null,null,null,null,null,null,null,null,null,null,null,null,null,null,null,"m"]
[null,"Założone/zmodernizowane sady lub plantacje wieloletnie"]
[null,"Powierzchnia wybudowanych lub zmodernizowanych obiektów służących produkcji i sprzedaży bezpośredniej w gospodarstwach rolniczych",null,null,null,null,null,null,null,null,null,null,null,null,null,null,null,null,null,null,null,null,null,null,null,"m2"]
[null,"Powierzchnia zakupionych gruntów (użytków) rolnych",null,null,null,null,null,null,null,null,null,null,null,null,null,null,null,null,null,null,null,null,null,null,null,"ha"]
[null,"Liczba zakupionych zwierząt hodowlanych (gospodarskich), stanowiących stado podstawowe (wymienić jakie):\n(zgodnie z katalogiem nazw określonym w kalkulatorze SO, \ntj. z wykazem grup zwierząt określonym w biznesplanie)\n",null,null,null,null,null,null,null,null,null,null,null,null,null,null,null,null,null,null,null,null,null,null,null,"szt."]
[null,{"$f":"ROW(B1)","v":1}]
[null,{"$f":"ROW(B2)","v":2},null,null,null,null,null,null,null,null,null,null,null,null,null,null,null,null,null,null,null,null,null,null,null,"szt."]
[null,3]
[null,"…"]
[null,"Pozostałe inwestycje (wymienić jakie):",null,null,null,null,null,null,null,null,null,null,null,null,null,null,null,null,null,null,null,null,null,null,null,"Jednostka miary"]
[null,1]
[null,2]
[null,{"$f":"+B126+1","v":3}]
[null,"…"]
[null,"Zakup obrotowych środków produkcji (wymienić jakie):",null,null,null,null,null,null,null,null,null,null,null,null,null,null,null,null,null,null,null,null,null,null,null,"Jednostka miary"]
[null,{"$f":"ROW(B1)","v":1}]
[null,{"$f":"ROW(B2)","v":2}]
[null,3]
[null,"…"]
[null,"Suma kosztów inwestycji ",null,null,null,null,null,null,null,null,null,null,null,null,null,null,null,null,null,null,null,null,null,null,null,null,null,null,null,null,null,null,null,{"$f":"SUM(AH125:AL128)+SUM(AH120:AL123)+SUM(AH114:AL118)+SUM(AH101:AL112)+SUM(AH92:AL99)+SUM(AH85:AL90)","v":0}]
[null,"Suma wszystkich kosztów \n(inwestycje + obrotowe środki produkcji)",null,null,null,null,null,null,null,null,null,null,null,null,null,null,null,null,null,null,null,null,null,null,null,null,null,null,null,null,null,null,null,{"$f":"+AH134+SUM(AH130:AL133)","v":0}]
[]
[null,"4. Dane dotyczące prowadzonej działalności rolniczej"]
[null,null,"a) działalność produkcyjna - struktura produkcji "]
[]
[null,"Lp.","Rodzaj produkcji roślinnej",null,null,null,null,null,null,null,null,null,null,null,null,null,"Powierzchnia upraw (ha)",null,null,null,"Rodzaj produkcji zwierzęcej",null,null,null,null,null,null,null,null,null,null,null,null,null,"Średnioroczny stan zwierząt"]
[null,{"$f":"ROW(B1)","v":1}]
[null,{"$f":"ROW(B2)","v":2}]
[null,3]
[null,4]
[null,5]
[null,6]
[null,7]
[null,8]
[null,9]
[null,"…"]
[null,null,"b) wiodąca nazwa działalności"]
[]
[null,"Lp.","Typ rolniczy",null,null,null,null,null,null,null,null,null,null,null,null,null,null,null,null,null,"Kierunek produkcji"]
[null,"1."]
[]
[null,"5. Informacje dotyczące kwalifikacji zawodowych beneficjenta3 "]
[]
[null,"Lp.","Kwalifikacje zawodowe beneficjenta oraz wykształcenie",null,null,null,null,null,null,null,null,null,null,null,null,null,null,null,null,null,null,null,null,null,null,null,null,null,null,null,null,null,null,null,"Właściwe zaznaczyć znakiem „X”"]
[null,"1.","Stopień naukowy doktora lub ukończone studia trzeciego stopnia z dziedziny nauk rolniczych lub z dziedziny nauk weterynaryjnych"]
[null,"2.","Ukończone studia pierwszego stopnia lub studia drugiego stopnia, lub jednolite studia magisterskie, lub studia magisterskie, na kierunku:\n   1) rolnictwo,\n   2) ogrodnictwo,\n   3) weterynaria – w przypadku, gdy w gospodarstwie prowadzone są chów i hodowla zwierząt,\n   4) technika rolnicza i leśna,\n   5) zootechnika\nlub na kierunkach studiów, w ramach których zakres kształcenia, program albo standardy kształcenia obejmują treści związane \nz działalnością rolniczą, w wymiarze łącznym co najmniej 200 godzin lub co najmniej 30 punktów uzyskanych w ramach Europejskiego Systemu Transferu i Akumulacji Punktów (European Credit Transfer and Accumulation System)\n",null,null,null,null,null,null,null,null,null,null,null,null,null,null,null,null,null,null,null,null,null,null,null,null,null,null,null,null,null,null,null,null,null,null,null,null,null,null,null,"x"]
[null,"3.","Ukończone studia pierwszego stopnia lub studia drugiego stopnia, lub jednolite studia magisterskie, lub studia magisterskie, na kierunku innym niż:\n   1)  rolnictwo,\n   2) ogrodnictwo,\n   3) weterynaria – w przypadku, gdy w gospodarstwie prowadzone są chów lub hodowla zwierząt,\n   4) technika rolnicza i leśna,\n   5) zootechnika\noraz co najmniej 3-letni staż pracy w rolnictwie, lub ukończone studia podyplomowe w zakresie związanym z działalnością rolniczą\n\n"]
[null,"4.","Kwalifikacje w zawodzie technika:\n1) technik rolnik;\n2) technik ogrodnik;\n3) technik architektury krajobrazu;\n4) technik hodowca koni;\n5) technik pszczelarz;\n6) technik weterynarii – w przypadku gdy w gospodarstwie są prowadzone chów lub hodowla zwierząt;\n7) technik agrobiznesu;\n8) technik mechanizacji rolnictwa;\n9) technik mechanizacji rolnictwa i agrotroniki\n10) technik turystyki wiejskiej\n11) technik turystyki na obszarach wiejskich "]
[null,"5.","Kwalifikacje na poziomie zasadniczej szkoły zawodowej lub branżowej szkoły I stopnia \nw zawodzie:\n   1) rolnik;\n   2) ogrodnik;\n   3) pszczelarz;\n   4) mechanik operator pojazdów i maszyn rolniczych\n"]
[null,"6.","Wykształcenie średnie oraz co najmniej 4-letni staż pracy w rolnictwie\n"]
[null,"7.","Tytuł wykwalifikowanego robotnika lub tytuł mistrza, lub tytuł zawodowy lub tytuł zawodowy mistrza, w zawodzie wymienionym w ust. 3 załącznika nr 1 do rozporządzenia, uzyskany w formach pozaszkolnych, oraz co najmniej 3-letni staż pracy w rolnictwie\n"]
[null,"8.","Deklaracja uzupełnienia kwalifikacji zawodowych w terminie 36 miesięcy od dnia doręczenia decyzji o przyznaniu pomocy\n"]
[]
[null,"1 rozpoczęcie prowadzenia ewidencji przychodów i rozchodów w gospodarstwie, najpóźniej w dniu rozpoczęcia realizacji biznesplanu, chyba że beneficjent jest zobowiązany do prowadzenia księgi przychodów i rozchodów lub księgi rachunkowej, lub ewidencji przychodów i rozchodów prowadzonej na podstawie odrębnych przepisów."]
[null,"2 rozporządzenie Parlamentu Europejskiego i Rady (UE) nr 1305/2013 z dnia 17 grudnia 2013 r. w sprawie wsparcia rozwoju obszarów wiejskich przez Europejski Fundusz Rolny na rzecz Rozwoju Obszarów Wiejskich (EFRROW) i uchylającym rozporządzenie Rady (WE) nr 1698/2005 \n(Dz. Urz. UE L 347 z 20.12.2013, str. 487, z późn. zm.), zwane dalej „rozporządzeniem 1305/2013”"]
[null,"3 dotyczy beneficjentów, którzy zobowiązali się uzupełnić kwalifikacje w okresie 36 miesięcy od dnia doręczenia decyzji o przyznaniu pomocy"]
[null,"II. DATA SPORZĄDZENIA SPRAWOZDANIA Z REALIZACJI BIZNESPLANU I PODPIS BENEFICJENTA\n"]
[null,"Data",null,null,null,null,null,null,null,null,null,null,null,null,null,null,null,null,null,"Czytelny podpis Beneficjenta/pełnomocnika Beneficjenta"]

{"sheet":"zał_1b_Sprawozdanie 6.2","index":17,"n_rows":196,"n_cols":45,"rows_kept":196,"cut":false,"hidden":false,"merged":[[1,1,1,34],[69,1,69,23],[69,24,69,29],[69,30,69,35],[67,3,67,13],[67,14,67,16],[67,17,67,18],[67,24,67,29],[67,30,67,35],[68,1,68,23],[68,24,68,29],[68,30,68,35],[65,14,65,16],[65,17,65,18],[65,24,65,29],[65,30,65,35],[66,3,66,13],[66,14,66,16],[66,17,66,18],[66,24,66,29],[66,30,66,35],[62,1,62,13],[62,14,62,16],[62,17,62,18],[62,19,62,23],[62,24,62,29],[62,30,62,35],[63,1,63,35],[64,1,67,2],[64,3,64,13],[64,14,64,16],[64,17,64,18],[64,19,67,23],[64,24,64,29],[64,30,64,35],[65,3,65,13],[55,24,55,29],[59,17,59,18],[59,24,59,29],[59,30,59,35],[60,3,60,13],[60,14,60,16],[60,17,60,18],[60,24,60,29],[60,30,60,35],[57,1,57,35],[58,1,61,2],[58,3,58,13],[58,14,58,16],[58,17,58,18],[58,19,61,23],[58,24,58,29],[58,30,58,35],[59,3,59,13],[59,14,59,16],[61,3,61,13],[61,14,61,16],[61,17,61,18],[61,24,61,29],[61,30,61,35],[54,30,54,35],[52,1,52,35],[53,1,56,2],[53,3,53,13],[53,14,53,16],[53,17,53,18],[53,19,53,21],[53,22,53,23],[53,24,53,29],[53,30,53,35],[54,3,54,13],[55,30,55,35],[56,3,56,13],[56,14,56,16],[56,17,56,18],[56,19,56,21],[56,22,56,23],[56,24,56,29],[56,30,56,35],[55,3,55,13],[55,14,55,16],[55,17,55,18],[55,19,55,21],[55,22,55,23],[50,3,50,13],[50,14,50,16],[50,17,50,18],[50,19,50,21],[50,22,50,23],[50,24,50,29],[54,14,54,16],[54,17,54,18],[54,19,54,21],[54,22,54,23],[54,24,54,29],[49,14,49,16],[49,17,49,18],[49,19,49,21],[49,22,49,23],[49,24,49,29],[49,30,49,35],[47,1,47,35],[48,1,51,2],[48,3,48,13],[48,14,48,16],[48,17,48,18],[48,19,48,21],[48,22,48,23],[48,24,48,29],[48,30,48,35],[49,3,49,13],[50,30,50,35],[51,3,51,13],[51,14,51,16],[51,17,51,18],[51,19,51,21],[51,22,51,23],[51,24,51,29],[51,30,51,35],[33,26,33,32],[45,1,45,13],[45,14,45,18],[45,19,45,23],[45,24,45,29],[45,30,45,35],[46,1,46,35],[38,26,38,28],[38,30,38,32],[40,1,40,24],[40,26,40,32],[42,1,42,34],[44,1,44,13],[44,14,44,18],[44,19,44,23],[44,24,44,29],[44,30,44,35],[4,1,4,37],[5,1,5,7],[5,12,5,28],[6,1,6,34],[8,1,8,23],[8,25,8,31],[8,33,8,34],[24,3,24,12],[24,13,24,18],[24,19,24,34],[18,1,18,20],[18,27,18,34],[20,1,20,20],[20,27,20,34],[22,1,22,34],[23,3,23,12],[23,13,23,18],[23,19,23,34],[15,30,15,31],[76,1,77,37],[72,19,73,35],[71,1,71,35],[74,19,75,35],[72,1,73,18],[74,1,75,18],[10,1,10,23],[10,25,10,31],[11,25,11,31],[13,1,13,10],[13,12,13,34],[15,1,15,20],[15,33,15,34],[35,1,35,24],[35,26,35,28],[35,30,35,32],[36,26,36,28],[36,30,36,32],[37,1,37,24],[37,26,37,28],[37,30,37,32],[28,1,28,34],[30,26,30,32],[33,1,33,24],[26,3,26,12],[26,13,26,18],[26,19,26,34],[25,3,25,12],[25,13,25,18],[25,19,25,34],[31,26,31,32],[29,1,29,24],[29,26,29,32]]}
[null,"Załącznik nr 1b do wniosku o płatność"]
[null,"SPRAWOZDANIE Z REALIZACJI BIZNESPLANU"]
[]
[]
[null,"Poddziałanie 6.2 \"Pomoc na rozpoczęcie pozarolniczej działalności gospodarczej na obszarach wiejskich\""]
[null,"Numer decyzji ARiMR"]
[null,"I. Cele dotyczące operacji"]
[]
[null,"1. Utworzono i utrzymano przedsiębiorstwo",null,null,null,null,null,null,null,null,null,null,null,null,null,null,null,null,null,null,null,null,null,null,null,"(wybierz z listy)"]
[]
[null,"1 a rozpoczęcia prowadzenia działalności gospodarczej"]
[null,null,null,null,null,null,null,null,null,null,null,null,null,null,null,null,null,null,null,null,null,null,null,null,null,"(dd-mm-rrrr)"]
[]
[null,"2. Inne cele (należy wypełnić o ile zostały \n    określone w Biznesplanie)"]
[]
[null,"3. Liczba utworzonych i utrzymanych miejsc pracy w przeliczeniu na pełne etaty",null,null,null,null,null,null,null,null,null,null,null,null,null,null,null,null,null,null,null,null,null,null,null,null,null,null,null,null,null,null,","]
[]
[]
[null,"4. Czy w Biznesplanie zawarto cel innowacyjność",null,null,null,null,null,null,null,null,null,null,null,null,null,null,null,null,null,null,null,null,null,null,null,null,null,"(wybierz z listy)"]
[]
[null,"5.Czy zrealizowano cel innowacyjność (wybrać o ile w pkt. 4 zaznaczono TAK)",null,null,null,null,null,null,null,null,null,null,null,null,null,null,null,null,null,null,null,null,null,null,null,null,null,"(wybierz z listy)"]
[]
[null,"Jeżeli w punkcie 4 zaznaczono TAK należy uzupełnić"]
[null,"L.p.",null,"Nazwa zadania",null,null,null,null,null,null,null,null,null,"rodzaj innowacji",null,null,null,null,null,"uzasadnienie"]
[null,{"$f":"ROW(B1)","v":1},null,null,null,null,null,null,null,null,null,null,null,"(wybierz z listy)"]
[null,{"$f":"ROW(B2)","v":2},null,null,null,null,null,null,null,null,null,null,null,"(wybierz z listy)"]
[null,"….",null,null,null,null,null,null,null,null,null,null,null,"(wybierz z listy)"]
[]
[null,"II. Dane ogólne operacji"]
[null,"Zrealizowany zakres operacji - kod PKD",null,null,null,null,null,null,null,null,null,null,null,null,null,null,null,null,null,null,null,null,null,null,null,null,null,null,null,null,null,null,null,null,null,null,null,null,{"$f":"ROW(AM1)","v":1}]
[null,null,null,null,null,null,null,null,null,null,null,null,null,null,null,null,null,null,null,null,null,null,null,null,null,null,null,null,null,null,null,null,null,null,null,null,null,null,{"$f":"ROW(AM2)","v":2}]
[]
[]
[null,"Samozatrudnienie",null,null,null,null,null,null,null,null,null,null,null,null,null,null,null,null,null,null,null,null,null,null,null,null,"(wybierz z listy)"]
[]
[null,"Przeciętne zatrudnienie pracowników najemnych - liczba osób"]
[null,null,null,null,null,null,null,null,null,null,null,null,null,null,null,null,null,null,null,null,null,null,null,null,null,null,"kobiety",null,null,null,"mężczyźni"]
[null,"Przeciętne zatrudnienie pracowników najemnych - liczba etatów"]
[null,null,null,null,null,null,null,null,null,null,null,null,null,null,null,null,null,null,null,null,null,null,null,null,null,null,"kobiety",null,null,null,"mężczyźni'"]
[]
[null,"Wartość dodana brutto ze wspieranej działalności pozarolniczej w zł."]
[]
[null,"III. Realizacja zakresu określonego w Biznesplanie"]
[]
[null,"Nazwa wskaźnika",null,null,null,null,null,null,null,null,null,null,null,null,"Ilość ",null,null,null,null,"Powierzchnia/\nObjętość",null,null,null,null,"Całkowite Koszty operacji",null,null,null,null,null,"Koszty operacji"]
[null,1,null,null,null,null,null,null,null,null,null,null,null,null,2,null,null,null,null,3,null,null,null,null,4,null,null,null,null,null,5]
[null,"1. Zrealizowane inwestycje w środki trwałe"]
[null,"1.1. Powierzchnia wybudowanych budynków/budowli"]
[null,"w tym:",null,"produkcyjnych",null,null,null,null,null,null,null,null,null,null,null,null,null,"szt",null,null,null,null,"m2"]
[null,null,null,"usługowych",null,null,null,null,null,null,null,null,null,null,null,null,null,"szt",null,null,null,null,"m2"]
[null,null,null,"handlowych",null,null,null,null,null,null,null,null,null,null,null,null,null,"szt",null,null,null,null,"m2"]
[null,null,null,"pozostałych",null,null,null,null,null,null,null,null,null,null,null,null,null,"szt",null,null,null,null,"m2"]
[null,"1.2. Powierzchnia zmodernizowanych budynków/budowli"]
[null,"w tym:",null,"produkcyjnych",null,null,null,null,null,null,null,null,null,null,null,null,null,"szt",null,null,null,null,"m2"]
[null,null,null,"usługowych",null,null,null,null,null,null,null,null,null,null,null,null,null,"szt",null,null,null,null,"m2"]
[null,null,null,"handlowych",null,null,null,null,null,null,null,null,null,null,null,null,null,"szt",null,null,null,null,"m2"]
[null,null,null,"pozostałych",null,null,null,null,null,null,null,null,null,null,null,null,null,"szt",null,null,null,null,"m2"]
[null,"1.3. Liczba zakupionego sprzętu ruchomego"]
[null,"w tym:",null,"pojazdy",null,null,null,null,null,null,null,null,null,null,null,null,null,"szt"]
[null,null,null,"maszyny i urządzenia  ",null,null,null,null,null,null,null,null,null,null,null,null,null,"szt"]
[null,null,null,"elementy wyposażenia, elementy maszyn, narzędzi, wyposażenie dodatkowe",null,null,null,null,null,null,null,null,null,null,null,null,null,"szt"]
[null,null,null,"pozostałe",null,null,null,null,null,null,null,null,null,null,null,null,null,"szt"]
[null,"1.4. Sprzęt komputerowy",null,null,null,null,null,null,null,null,null,null,null,null,null,null,null,"szt"]
[null,"2. Zrealizowane inwestycje w inne środki związane z pozarolniczą działalnością gospodarczą (np. środki obrotowe) oraz pozostałe działania (szkolenia, usługi doradcze, inne przedsięwzięcia wymagane do rozwoju działalności)",null,null,null,null,null,null,null,null,null,null,null,null,null,null,null,"szt"]
[null,"w tym:",null,"koszty na środki obrotowe",null,null,null,null,null,null,null,null,null,null,null,null,null,"szt"]
[null,null,null," koszty szkoleń",null,null,null,null,null,null,null,null,null,null,null,null,null,"szt"]
[null,null,null,"koszty usług  doradczych",null,null,null,null,null,null,null,null,null,null,null,null,null,"szt"]
[null,null,null," koszty innych przedsięwzięć wymaganych do rozwoju działalności",null,null,null,null,null,null,null,null,null,null,null,null,null,"szt"]
[null,"3. Koszty towarzyszące (niefinansowane w ramach premii)"]
[null,"4. Suma kosztów",null,null,null,null,null,null,null,null,null,null,null,null,null,null,null,null,null,null,null,null,null,null,{"$f":"SUM(Y49:AD52,Y54:AD57,Y59:AD63,Y65:AD69)","v":0},null,null,null,null,null,{"$f":"SUM(AE49:AJ52,AE54:AJ57,AE59:AJ63,AE65:AJ69)","v":0}]
[]
[null,"IV. DATA SPORZĄDZENIA SPRAWOZDANIA Z REALIZACJI BIZNESPLANU I PODPIS BENEFICJENTA\n"]
[null,"Data",null,null,null,null,null,null,null,null,null,null,null,null,null,null,null,null,null,"Czytelny podpis Beneficjenta/pełnomocnika Beneficjenta"]
[]
[]
[]
[]
[]
[]
[]
[]
[]
[]
[]
[]
[]
[]
[]
[]
[]
[]
[]
[]
[]
[]
[]
[]
[]
[]
[]
[]
[]
[]
[]
[]
[]
[]
[]
[]
[]
[]
[]
[]
[]
[]
[]
[]
[]
[]
[]
[]
[]
[]
[]
[]
[]
[]
[]
[]
[]
[]
[]
[]
[]
[]
[]
[]
[]
[]
[]
[]
[]
[]
[]
[]
[]
[]
[]
[]
[]
[]
[]
[]
[]
[]
[]
[]
[]
[]
[]
[]
[]
[]
[]
[]
[]
[]
[]
[]
[]
[]
[]
[]
[]
[]
[]
[]
[]
[]
[]
[]
[]
[]
[]
[]
[]
[]
[null,null,null,null,null,null,null,null,null,null,null,null,null,null,null,null,null,null,null,null,null,null,null,null,null,null,null,null,null,null,null,null,null,null,null,null,null,null,null,null,null,null,null,null,"(wybierz z listy)"]
[null,null,null,null,null,null,null,null,null,null,null,null,null,null,null,null,null,null,null,null,null,null,null,null,null,null,null,null,null,null,null,null,null,null,null,null,null,null,null,null,null,null,null,null,"Tak"]
[null,null,null,null,null,null,null,null,null,null,null,null,null,null,null,null,null,null,null,null,null,null,null,null,null,null,null,null,null,null,null,null,null,null,null,null,null,null,null,null,null,null,null,null,"Nie"]
[]
[null,null,null,null,null,null,null,null,null,null,null,null,null,null,null,null,null,null,null,null,null,null,null,null,null,null,null,null,null,null,null,null,null,null,null,null,null,null,null,null,null,null,null,null,"(wybierz z listy)"]
[null,null,null,null,null,null,null,null,null,null,null,null,null,null,null,null,null,null,null,null,null,null,null,null,null,null,null,null,null,null,null,null,null,null,null,null,null,null,null,null,null,null,null,null,"produktowa"]
[null,null,null,null,null,null,null,null,null,null,null,null,null,null,null,null,null,null,null,null,null,null,null,null,null,null,null,null,null,null,null,null,null,null,null,null,null,null,null,null,null,null,null,null,"procesowa"]
[null,null,null,null,null,null,null,null,null,null,null,null,null,null,null,null,null,null,null,null,null,null,null,null,null,null,null,null,null,null,null,null,null,null,null,null,null,null,null,null,null,null,null,null,"marketingowa"]
[null,null,null,null,null,null,null,null,null,null,null,null,null,null,null,null,null,null,null,null,null,null,null,null,null,null,null,null,null,null,null,null,null,null,null,null,null,null,null,null,null,null,null,null,"organizacyjna"]

{"sheet":"zał_1c_Sprawozdanie 6.3","index":18,"n_rows":155,"n_cols":42,"rows_kept":155,"cut":false,"hidden":false,"merged":[[1,1,1,34],[147,2,147,19],[147,20,147,37],[148,2,148,19],[148,20,148,37],[138,2,138,15],[138,16,138,19],[138,20,138,33],[138,34,138,37],[139,2,139,15],[139,16,139,19],[139,20,139,33],[139,34,139,37],[136,2,136,15],[136,16,136,19],[136,20,136,33],[136,34,136,37],[137,2,137,15],[137,16,137,19],[140,2,140,15],[140,16,140,19],[140,20,140,33],[140,34,140,37],[141,2,141,15],[141,16,141,19],[141,20,141,33],[141,34,141,37],[114,2,114,3],[115,2,115,3],[118,1,118,3],[119,2,119,3],[120,2,120,3],[151,1,151,37],[142,2,142,15],[142,16,142,19],[142,20,142,33],[142,34,142,37],[143,2,143,15],[143,16,143,19],[143,20,143,33],[143,34,143,37],[150,1,150,37],[137,20,137,33],[137,34,137,37],[134,2,134,15],[134,16,134,19],[134,20,134,33],[134,34,134,37],[135,2,135,15],[135,16,135,19],[135,20,135,33],[135,34,135,37],[128,1,128,18],[128,19,128,24],[128,25,128,28],[128,29,128,32],[128,33,128,37],[133,2,133,15],[133,16,133,19],[133,20,133,33],[133,34,133,37],[126,4,126,18],[126,19,126,24],[126,25,126,28],[126,29,126,32],[126,33,126,37],[127,19,127,24],[127,25,127,28],[127,29,127,32],[127,33,127,37],[124,4,124,18],[124,19,124,24],[124,25,124,28],[124,29,124,32],[124,33,124,37],[125,4,125,18],[125,19,125,24],[125,25,125,28],[125,29,125,32],[125,33,125,37],[122,19,122,24],[122,25,122,28],[122,29,122,32],[122,33,122,37],[123,4,123,18],[123,19,123,24],[123,25,123,28],[123,29,123,32],[123,33,123,37],[120,4,120,18],[120,19,120,24],[120,25,120,28],[120,29,120,32],[120,33,120,37],[121,4,121,18],[121,19,121,24],[121,25,121,28],[121,29,121,32],[121,33,121,37],[118,4,118,18],[118,19,118,24],[118,25,118,28],[118,29,118,32],[118,33,118,37],[119,4,119,18],[119,19,119,24],[119,25,119,28],[119,29,119,32],[119,33,119,37],[116,4,116,18],[116,19,116,24],[116,29,116,32],[116,33,116,37],[117,19,117,24],[117,25,117,28],[117,29,117,32],[117,33,117,37],[114,4,114,18],[114,19,114,24],[114,25,114,28],[114,29,114,32],[114,33,114,37],[115,4,115,18],[115,19,115,24],[115,29,115,32],[115,33,115,37],[112,1,112,18],[112,19,112,24],[112,25,112,28],[112,29,112,32],[112,33,112,37],[113,4,113,18],[113,19,113,24],[113,29,113,32],[113,33,113,37],[113,2,113,3],[110,1,110,18],[110,19,110,24],[110,25,110,28],[110,29,110,32],[110,33,110,37],[111,19,111,24],[111,25,111,28],[111,29,111,32],[111,33,111,37],[108,33,108,37],[109,1,109,18],[109,19,109,24],[109,25,109,28],[109,29,109,32],[109,33,109,37],[107,1,108,3],[107,4,107,18],[107,19,107,24],[107,25,107,28],[107,29,107,32],[107,33,107,37],[108,4,108,18],[108,19,108,24],[108,25,108,28],[108,29,108,32],[105,19,105,24],[105,25,105,28],[105,29,105,32],[105,33,105,37],[106,19,106,24],[106,25,106,28],[106,29,106,32],[106,33,106,37],[103,4,103,18],[103,19,103,24],[103,29,103,32],[103,33,103,37],[104,19,104,24],[104,25,104,28],[104,29,104,32],[104,33,104,37],[101,4,101,18],[101,19,101,24],[101,29,101,32],[101,33,101,37],[102,4,102,18],[102,19,102,24],[102,29,102,32],[102,33,102,37],[99,4,99,18],[99,19,99,24],[99,29,99,32],[99,33,99,37],[100,4,100,18],[100,19,100,24],[100,29,100,32],[100,33,100,37],[98,4,98,18],[98,19,98,24],[98,29,98,32],[98,33,98,37],[95,19,95,24],[95,29,95,32],[95,33,95,37],[96,19,96,24],[96,29,96,32],[96,33,96,37],[92,33,92,37],[89,19,89,24],[89,29,89,32],[89,33,89,37],[90,19,90,24],[90,29,90,32],[90,33,90,37],[93,19,93,24],[93,25,103,28],[93,29,93,32],[93,33,93,37],[94,19,94,24],[94,29,94,32],[94,33,94,37],[97,19,97,24],[97,29,97,32],[97,33,97,37],[88,19,88,24],[88,29,88,32],[88,33,88,37],[84,19,84,24],[84,25,90,28],[84,29,84,32],[84,33,84,37],[91,19,91,24],[91,25,91,28],[91,29,91,32],[91,33,91,37],[85,33,85,37],[86,19,86,24],[86,29,86,32],[86,33,86,37],[79,33,79,37],[80,19,80,24],[80,29,80,32],[80,33,80,37],[81,19,81,24],[81,29,81,32],[81,33,81,37],[87,33,87,37],[77,19,77,24],[77,25,83,28],[77,29,77,32],[77,33,77,37],[78,19,78,24],[78,29,78,32],[78,33,78,37],[79,19,79,24],[79,29,79,32],[82,19,82,24],[82,29,82,32],[82,33,82,37],[83,19,83,24],[83,29,83,32],[83,33,83,37],[71,32,71,33],[71,34,71,35],[71,36,71,37],[76,19,76,24],[76,25,76,28],[76,29,76,32],[76,33,76,37],[69,4,69,31],[69,32,69,33],[69,34,69,35],[70,4,70,31],[70,32,70,33],[70,34,70,35],[69,36,69,37],[70,36,70,37],[65,32,65,36],[67,4,67,31],[67,32,67,33],[67,34,67,35],[68,4,68,31],[68,32,68,33],[68,34,68,35],[56,32,56,33],[56,34,56,35],[56,36,56,37],[58,4,58,31],[58,32,58,33],[58,34,58,35],[58,36,58,37],[67,36,67,37],[68,36,68,37],[63,32,63,33],[63,34,63,35],[63,36,63,37],[64,32,64,33],[64,34,64,35],[64,36,64,37],[61,4,61,31],[61,32,61,33],[61,34,61,35],[61,36,61,37],[62,3,62,31],[62,32,62,33],[62,34,62,35],[62,36,62,37],[55,32,55,33],[55,34,55,35],[55,36,55,37],[39,1,40,2],[40,32,40,33],[40,34,40,35],[40,36,40,37],[51,32,51,33],[42,36,42,37],[43,36,43,37],[44,36,44,37],[45,4,45,31],[42,4,42,31],[42,32,42,33],[42,34,42,35],[45,36,45,37],[49,4,49,31],[49,32,49,33],[49,34,49,35],[48,4,48,31],[48,32,48,33],[45,32,45,33],[45,34,45,35],[48,34,48,35],[47,36,47,37],[48,36,48,37],[49,36,49,37],[4,1,4,37],[11,3,11,30],[11,31,11,37],[12,31,12,37],[14,31,14,37],[15,31,15,37],[11,1,11,2],[21,1,21,2],[33,31,33,37],[25,31,25,37],[26,31,26,37],[27,31,27,37],[28,31,28,37],[29,31,29,37],[32,3,32,30],[32,31,32,37],[156,1,157,18],[156,19,157,37],[32,1,32,2],[16,31,16,37],[17,31,17,37],[21,3,21,30],[21,31,21,37],[22,31,22,37],[24,31,24,37],[34,31,34,37],[35,31,35,37],[36,31,36,37],[39,3,39,31],[39,32,39,37],[43,4,43,31],[43,32,43,33],[43,34,43,35],[44,4,44,31],[44,32,44,33],[44,34,44,35],[153,1,153,37],[154,1,155,18],[154,19,155,37],[53,36,53,37],[51,34,51,35],[51,36,51,37],[59,32,59,33],[59,34,59,35],[59,36,59,37],[60,4,60,31],[60,32,60,33],[60,34,60,35],[60,36,60,37],[56,3,56,31],[52,3,52,31],[52,32,52,33],[52,34,52,35],[52,36,52,37],[54,3,54,31],[54,32,54,33],[54,34,54,35],[54,36,54,37],[55,3,55,31],[53,3,53,31],[53,32,53,33],[53,34,53,35],[50,36,50,37],[50,1,50,2],[49,1,49,2],[47,1,47,2],[48,1,48,2],[50,4,50,31],[50,32,50,33],[50,34,50,35],[47,4,47,31],[47,32,47,33],[47,34,47,35],[158,0,158,37],[116,2,116,3],[121,2,121,3],[123,2,123,3],[126,2,126,3],[115,25,115,28],[45,1,45,2],[42,1,42,2],[43,1,43,2],[44,1,44,2],[59,4,59,31],[63,3,63,31],[85,1,90,3],[85,19,85,24],[85,29,85,32],[78,1,83,3],[87,19,87,24],[87,29,87,32],[92,19,92,24],[92,25,92,28],[92,29,92,32],[94,1,103,3],[94,4,94,18],[95,4,95,18]]}
[null,"Załącznik nr 1c do wniosku o płatność"]
[null,"SPRAWOZDANIE Z REALIZACJI BIZNESPLANU"]
[]
[]
[null,"Poddziałanie 6.3  „Pomoc na rozpoczęcie działalności gospodarczej na rzecz rozwoju małych gospodarstw”"]
[]
[]
[null,"I.WSKAŹNIKI MONITOROWANIA"]
[null,null,"1. Dane dotyczące gospodarstwa po realizacji biznesplanu"]
[null,null,"a) wielkość ekonomiczna gospodarstwa"]
[]
[null,"Lp.",null,"Nazwa wskaźnika",null,null,null,null,null,null,null,null,null,null,null,null,null,null,null,null,null,null,null,null,null,null,null,null,null,null,null,"Wartość (w euro) "]
[null,"1.",null,"Wielkość ekonomiczna gospodarstwa w okresie wyjściowym"]
[null,"2.",null,"Wielkość ekonomiczna gospodarstwa w okresie docelowym:"]
[null,null,null,"a) zaplanowana w biznesplanie"]
[null,null,null,"b) osiągnięta"]
[null,"3.",null,"Wzrost wielkości ekonomicznej gospodarstwa (%)",null,null,null,null,null,null,null,null,null,null,null,null,null,null,null,null,null,null,null,null,null,null,null,null,null,null,null,"Wartość (w %)"]
[null,null,null,null,null,null,null,null,null,null,null,null,null,null,null,null,null,null,null,null,null,null,null,null,null,null,null,null,null,null,null,{"$f":"IF(AF13<>0,(AF16-AF13)/AF13,\"\")","v":""}]
[]
[null,null,"b) powierzchnia gospodarstwa"]
[]
[null,"Lp.",null,"Nazwa wskaźnika",null,null,null,null,null,null,null,null,null,null,null,null,null,null,null,null,null,null,null,null,null,null,null,null,null,null,null,"Powierzchnia gospodarstwa (ha)"]
[null,"1.",null,"Powierzchnia ogólna gospodarstwa w okresie wyjściowym"]
[null,"2.",null,"Powierzchnia ogólna gospodarstwa w okresie docelowym:"]
[null,null,null,"a) zaplanowana w biznesplanie"]
[null,null,null,"b) osiągnięta"]
[null,"3.",null,"Powierzchnia użytków rolnych w okresie wyjściowym"]
[null,"4.",null,"Powierzchnia użytków rolnych w okresie docelowym:"]
[null,null,null,"a) zaplanowana w biznesplanie"]
[null,null,null,"b) osiągnięta"]
[null,null,"c) rozpoczęcie prowadzenia uproszczonej rachunkowości1 "]
[]
[null,"Lp.",null,"Nazwa wskaźnika",null,null,null,null,null,null,null,null,null,null,null,null,null,null,null,null,null,null,null,null,null,null,null,null,null,null,null,"Data\n (dzień-miesiąc-rok)\n"]
[null,"1.",null,"Rozpoczęcie prowadzenia uproszczonej rachunkowości w gospodarstwie rolnym: "]
[null,null,null,null,null,null,null,null,null,null,null,null,null,null,null,null,null,null,null,null,null,null,null,null,null,null,null,null,null,null,null,"Wartość (w zł)"]
[null,null,null,"a) przychody za ostatni pełny rok"]
[null,null,null,"b) rozchody za ostatni pełny rok"]
[null,"2. Realizacja działań dotyczących restrukturyzacji gospodarstwa, z tytułu których przyznano punkty"]
[]
[null,"Lp.",null,"Nazwa wskaźnika / nazwa działania",null,null,null,null,null,null,null,null,null,null,null,null,null,null,null,null,null,null,null,null,null,null,null,null,null,null,null,null,"Zrealizowane"]
[null,null,null,null,null,null,null,null,null,null,null,null,null,null,null,null,null,null,null,null,null,null,null,null,null,null,null,null,null,null,null,null,"TAK",null,"NIE",null,"ND"]
[null,"1.",null,"Udział w szkoleniach (wymienić jakich):"]
[null,null,null,{"$f":"ROW(D1)","v":1}]
[null,null,null,{"$f":"ROW(D2)","v":2},null,null,null,null,null,null,null,null,null,null,null,null,null,null,null,null,null,null,null,null,null,null,null,null,null,null,null,null,null,null,null,null,null,null,null,null,null,"x"]
[null,null,null,3,null,null,null,null,null,null,null,null,null,null,null,null,null,null,null,null,null,null,null,null,null,null,null,null,null,null,null,null,null,null,null,null,null,null,null,null,null,"x"]
[null,null,null,"…"]
[null,"2.",null,"Korzystanie z usług doradczych (wymienić jakich):"]
[null,null,null,{"$f":"ROW(D1)","v":1}]
[null,null,null,{"$f":"ROW(D2)","v":2}]
[null,null,null,{"$f":"ROW(D3)","v":3}]
[null,null,null,"…"]
[null,"3.",null,"Udział w zorganizowanych formach współpracy producentów rolnych"]
[null,"4.",null,"Prowadzenie działań w zakresie przygotowania do sprzedaży produktów rolnych wytwarzanych w gospodarstwie"]
[null,"5.",null,"Prowadzenie działalności w zakresie przetwarzania produktów rolnych wytwarzanych w gospodarstwie"]
[null,"6.",null,"Uczestnictwo w unijnym, o którym mowa w art. 16 rozporządzenia nr 1305/2013 , lub krajowym systemie jakości, o którym mowa w art. 16 ust. 1 lit. b rozporządzenia nr 1305/2013 w ramach działania „Systemy jakości produktów rolnych i środków spożywczych” objętym PROW 2014-2020"]
[null,"7.",null,"Uczestnictwo w systemie rolnictwa ekologicznego, o którym mowa w rozporządzeniu Rady (WE) nr 834/2007 z dnia 28 czerwca 2007 r. w sprawie produkcji ekologicznej i znakowania produktów ekologicznych i uchylającym rozporządzenie (EWG) nr 2092/91 (Dz. Urz. UE L 189 z 20.07.2007, str. 1, z późn. zm.)"]
[null,"8.",null,"Przygotowywanie planu nawozowego, o którym mowa w załączniku nr 2 do rozporządzenia Ministra Rolnictwa i Rozwoju Wsi z dnia 18 marca 2015 r. w sprawie szczegółowych warunków i trybu przyznawania pomocy finansowej w ramach działania „Działanie rolno-środowiskowo-klimatyczne” objętego Programem Rozwoju Obszarów Wiejskich na lata 2014–2020 (Dz. U. poz. 415 i 765) oraz stosowanie tego planu, w szczególności prowadzenie wykazu działań agrotechnicznych zawierającego prace wykonywane na poszczególnych działkach rolnych w zakresie nawożenia, z podaniem nazwy i ilości zastosowanego nawozu pod poszczególne uprawy"]
[null,"9.",null,"Wprowadzenie innowacyjności w dziedzinie:"]
[null,null,null,"1)","postęp biologiczny"]
[null,null,null,"2)","organizacja produkcji"]
[null,null,null,"3)","nowoczesne technologie produkcji"]
[null,null,null,"4)","innowacyjny produkt"]
[null,"10.",null,"Produkcja roślin wysokobiałkowych wymienionych w załączniku do rozporządzenia Ministra Rolnictwa i Rozwoju Wsi z dnia 12 marca 2015 r. w sprawie szczegółowych warunków i trybu przyznawania płatności bezpośrednich i płatności niezwiązanej do tytoniu (Dz. U. poz. 351, 672 i 1536), jeżeli powierzchnia użytków rolnych, na których będą uprawiane te rośliny, wynosi co najmniej 1 ha"]
[null,"11.",null,"Inwestycja budowlana związana z działalnością rolniczą (położona na gruntach stanowiących własność beneficjenta lub przedmiot użytkowania wieczystego, lub przedmiot dzierżawy z Zasobu Własności Rolnej Skarbu Państwa lub od jednostek samorządu terytorialnego)"]
[null,"12.",null,"Udział zbóż w strukturze zasiewów na gruntach ornych, mniejszy lub równy 66%"]
[null,null,null,null,null,null,null,null,null,null,null,null,null,null,null,null,null,null,null,null,null,null,null,null,null,null,null,null,null,null,"Osiągnięty procent",null,null,null,null,null,null,"%"]
[null,"13.",null,"Realizacja inwestycji w zakresie ochrony środowiska i klimatu (wymienić jakich):"]
[null,null,null,{"$f":"ROW(D1)","v":1}]
[null,null,null,{"$f":"ROW(D2)","v":2}]
[null,null,null,{"$f":"ROW(D3)","v":3}]
[null,null,null,"…"]
[null,"14.",null,"Zmiana kierunku produkcji (obowiązuje od naboru przeprowadzonego w roku 2018) "]
[]
[null,"3. Wskaźniki rzeczowe"]
[null,null,"a) zakres zrealizowanych działań i inwestycji"]
[]
[null,"Nazwa wskaźnika",null,null,null,null,null,null,null,null,null,null,null,null,null,null,null,null,null,"Liczba zrealizowanych typów inwestycji \nw ramach operacji",null,null,null,null,null,"Jednostka miary",null,null,null,"Wielkość wskaźnika",null,null,null,"Całkowita wartość inwestycji (zł)"]
[null,"Powierzchnia wybudowanych budynków produkcyjnych ",null,null,null,null,null,null,null,null,null,null,null,null,null,null,null,null,null,null,null,null,null,null,null,"m2"]
[null,"w tym:",null,null,"obory"]
[null,null,null,null,"chlewnie"]
[null,null,null,null,"inne budynki przeznaczone na inwentarz żywy"]
[null,null,null,null,"szklarnie (wraz z wyposażeniem)"]
[null,null,null,null,"magazyny paszowe"]
[null,null,null,null,"pozostałe budynki gospodarcze"]
[null,"Powierzchnia zmodernizowanych budynków produkcyjnych",null,null,null,null,null,null,null,null,null,null,null,null,null,null,null,null,null,null,null,null,null,null,null,"m2"]
[null,"w tym:",null,null,"obory"]
[null,null,null,null,"chlewnie"]
[null,null,null,null,"inne budynki przeznaczone na inwentarz żywy"]
[null,null,null,null,"szklarnie (wraz z wyposażeniem)"]
[null,null,null,null,"magazyny paszowe"]
[null,null,null,null,"pozostałe budynki gospodarcze"]
[null,"Powierzchnia płyt obornikowych",null,null,null,null,null,null,null,null,null,null,null,null,null,null,null,null,null,null,null,null,null,null,null,"m2"]
[null,"Objętość zbiorników na gnojówkę i gnojowicę",null,null,null,null,null,null,null,null,null,null,null,null,null,null,null,null,null,null,null,null,null,null,null,"m3"]
[null,"Liczba zakupionego sprzętu ruchomego",null,null,null,null,null,null,null,null,null,null,null,null,null,null,null,null,null,null,null,null,null,null,null,"szt."]
[null,"w tym:",null,null,"ciągniki rolnicze"]
[null,null,null,null,"ładowarki samobieżne"]
[null,null,null,null,"kombajny zbożowe"]
[null,null,null,null,"maszyny do zbioru (wyłączając kombajny zbożowe)"]
[null,null,null,null,"przyczepy transportowe"]
[null,null,null,null,"narzędzia i maszyny do uprawy gleby"]
[null,null,null,null,"maszyny do nawożenia"]
[null,null,null,null,"maszyny i urządzenia do siewu i sadzenia"]
[null,null,null,null,"pozostałe maszyny i urządzenia"]
[null,null,null,null,"elementy wyposażenia, elementy maszyn, narzędzi, wyposażenie dodatkowe "]
[null,"Liczba zakupionego sprzętu komputerowego",null,null,null,null,null,null,null,null,null,null,null,null,null,null,null,null,null,null,null,null,null,null,null,"szt."]
[null,"Liczba zakupionego oprogramowania",null,null,null,null,null,null,null,null,null,null,null,null,null,null,null,null,null,null,null,null,null,null,null,"szt."]
[null,"Elementy infrastruktury technicznej"]
[null,"w tym:",null,null,"powierzchnia placów manewrowych",null,null,null,null,null,null,null,null,null,null,null,null,null,null,null,null,null,null,null,null,"m2"]
[null,null,null,null,"długość dróg dojazdowych",null,null,null,null,null,null,null,null,null,null,null,null,null,null,null,null,null,null,null,null,"m"]
[null,"Powierzchnia założonych sadów lub plantacji wieloletnich, gatunków owocujących efektywnie dłużej niż 5 lat",null,null,null,null,null,null,null,null,null,null,null,null,null,null,null,null,null,null,null,null,null,null,null,"ha"]
[null,"Powierzchnia wybudowanych lub zmodernizowanych obiektów służących produkcji i sprzedaży bezpośredniej w gospodarstwach rolniczych",null,null,null,null,null,null,null,null,null,null,null,null,null,null,null,null,null,null,null,null,null,null,null,"m2"]
[null,"Powierzchnia zakupionych gruntów (użytków) rolnych",null,null,null,null,null,null,null,null,null,null,null,null,null,null,null,null,null,null,null,null,null,null,null,"ha"]
[null,"Liczba zakupionych zwierząt hodowlanych (gospodarskich), stanowiących stado podstawowe (wymienić jakie):\n(zgodnie z katalogiem nazw określonym w kalkulatorze SO, \ntj. z wykazem grup zwierząt określonym w biznesplanie)\n",null,null,null,null,null,null,null,null,null,null,null,null,null,null,null,null,null,null,null,null,null,null,null,"szt."]
[null,{"$f":"ROW(B1)","v":1}]
[null,{"$f":"ROW(B2)","v":2},null,null,null,null,null,null,null,null,null,null,null,null,null,null,null,null,null,null,null,null,null,null,null,"szt."]
[null,3,null,null,null,null,null,null,null,null,null,null,null,null,null,null,null,null,null,null,null,null,null,null,null,"szt."]
[null,"…"]
[null,"Pozostałe inwestycje (wymienić jakie):",null,null,null,null,null,null,null,null,null,null,null,null,null,null,null,null,null,null,null,null,null,null,null,"Jednostka miary"]
[null,{"$f":"ROW(B1)","v":1}]
[null,{"$f":"ROW(B2)","v":2}]
[null,3]
[null,"…"]
[null,"Zakup obrotowych środków produkcji (wymienić jakie):",null,null,null,null,null,null,null,null,null,null,null,null,null,null,null,null,null,null,null,null,null,null,null,"Jednostka miary"]
[null,{"$f":"ROW(B1)","v":1}]
[null,{"$f":"ROW(B2)","v":2}]
[null,{"$f":"ROW(B3)","v":3}]
[null,"…"]
[null,"Suma kosztów inwestycji ",null,null,null,null,null,null,null,null,null,null,null,null,null,null,null,null,null,null,null,null,null,null,null,null,null,null,null,null,null,null,null,{"$f":"SUM(AH79:AL122)","v":0}]
[null,"Suma wszystkich kosztów \n(inwestycje + obrotowe środki produkcji)",null,null,null,null,null,null,null,null,null,null,null,null,null,null,null,null,null,null,null,null,null,null,null,null,null,null,null,null,null,null,null,{"$f":"+AH128+SUM(AH124:AL127)","v":0}]
[]
[null,"4. Dane dotyczące prowadzonej działalności rolniczej"]
[null,null,"a) działalność produkcyjna - struktura produkcji "]
[]
[null,"Lp.","Rodzaj produkcji roślinnej",null,null,null,null,null,null,null,null,null,null,null,null,null,"Powierzchnia upraw (ha)",null,null,null,"Rodzaj produkcji zwierzęcej",null,null,null,null,null,null,null,null,null,null,null,null,null,"Średnioroczny stan zwierząt"]
[null,{"$f":"ROW(B1)","v":1}]
[null,{"$f":"ROW(B2)","v":2}]
[null,3]
[null,4]
[null,5]
[null,6]
[null,7]
[null,8]
[null,9]
[null,"…"]
[]
[null,null,"b) profil prowadzonej działalności"]
[]
[null,"Lp.","Typ rolniczy",null,null,null,null,null,null,null,null,null,null,null,null,null,null,null,null,null,"Kierunek produkcji"]
[null,"1."]
[]
[null,"1 rozpoczęcie prowadzenia ewidencji przychodów i rozchodów w gospodarstwie, w sposób i zgodnie z wzorem określonym załączniku nr 3 do rozporządzenia Ministra Rolnictwa i Rozwoju Wsi z dnia 13 lipca 2015 r. w sprawie szczegółowych warunków i trybu przyznawania, wypłaty oraz zwrotu pomocy na operacje typu „Premie dla młodych rolników” w ramach poddziałania „Pomoc w rozpoczęciu działalności gospodarczej na rzecz młodych rolników” objętego Programem Rozwoju Obszarów Wiejskich na lata 2014–2020 (Dz. U. poz. 982), najpóźniej w dniu rozpoczęcia realizacji biznesplanu, chyba że beneficjent jest zobowiązany do prowadzenia księgi przychodów i rozchodów lub księgi rachunkowej, lub ewidencji przychodów i rozchodów prowadzonej na podstawie odrębnych przepisów."]
[null,"2 rozporządzenie Parlamentu Europejskiego i Rady (UE) nr 1305/2013 z dnia 17 grudnia 2013 r. w sprawie wsparcia rozwoju obszarów wiejskich przez Europejski Fundusz Rolny na rzecz Rozwoju Obszarów Wiejskich (EFRROW) i uchylającym rozporządzenie Rady (WE) nr 1698/2005 \n(Dz. Urz. UE L 347 z 20.12.2013, str. 487, z późn. zm.), zwane dalej „rozporządzeniem 1305/2013”"]
[]
[null,"II. DATA SPORZĄDZENIA SPRAWOZDANIA Z REALIZACJI BIZNESPLANU I PODPIS BENEFICJENTA\n"]
[null,"Data",null,null,null,null,null,null,null,null,null,null,null,null,null,null,null,null,null,"Czytelny podpis Beneficjenta/pełnomocnika Beneficjenta"]

{"sheet":"zał_2_Parametry","index":19,"n_rows":34,"n_cols":15,"rows_kept":34,"cut":false,"hidden":false,"merged":[[33,6,33,7],[33,9,33,13],[34,6,35,7],[34,9,35,13],[32,2,32,4],[31,2,31,4],[30,2,30,12],[13,12,14,12],[13,2,14,2],[13,9,14,9],[13,10,14,10],[13,11,14,11],[15,7,15,8],[13,6,14,6],[1,2,1,9],[2,3,2,9],[1,11,1,12],[7,2,10,14],[13,13,14,13],[13,3,14,3],[13,4,14,4],[13,7,14,8],[13,14,14,14],[13,5,14,5],[5,2,5,3],[5,4,5,7],[12,6,12,7]]}
[]
[null,null,"Załącznik nr 2 do wniosku o płatność",null,null,null,null,null,null,null,null,"PROW_2014-2020"]
[]
[]
[]
[null,null,"Numer decyzji o przyznaniu pomocy"]
[]
[null,null,"Informacje dotyczące parametrów zakupionych maszyn/urządzeń                                                                "]
[]
[]
[]
[]
[]
[null,null,"Nr pozycji z wykazu dokumentów potwierdzających realizację biznesplanu ","Nr faktury ","Nazwa towaru","Nazwa producenta","Nazwa dostawcy","NIP dostawcy",null,"Rok produkcji","Model","Numer seryjny ","  Parametry      (np. moc, szerokość, długość, ładowność, pojemność, ilość osi i inne*)","Cena brutto w zł","Cena netto zł"]
[]
[null,null,1,2,3,4,null,5,null,6,7,8,9,10,11]
[null,null,"Kolumna1","Kolumna2","Kolumna3","Kolumna4","Kolumna5","Kolumna6","Kolumna7","Kolumna8","Kolumna9","Kolumna10","Kolumna11","Kolumna12","Kolumna13"]
[]
[]
[]
[]
[]
[]
[]
[]
[]
[]
[]
[]
[]
[]
[]
[null,null,"* Wpisać właściwe parametry dla zakupionej maszyny."]
[null,null,null,null,null,null,"Data",null,null,"Czytelny podpis Beneficjenta/pełnomocnika Beneficjenta"]

{"sheet":"zał_3_Oświadczenie przych_rozch","index":20,"n_rows":50,"n_cols":38,"rows_kept":50,"cut":false,"hidden":false,"merged":[[2,1,3,16],[2,23,4,31],[29,3,33,31],[34,1,34,31],[23,1,23,12],[14,1,14,10],[15,1,15,12],[8,1,8,5],[8,9,9,31],[10,9,12,31],[46,2,46,12],[47,19,47,30],[47,3,47,12],[18,1,20,31],[22,1,22,31],[24,3,28,31],[46,19,46,31]]}
[]
[null,"Załącznik nr 3 do wniosku o płatność"]
[null,null,null,null,null,null,null,null,null,null,null,null,null,null,null,null,null,null,null,null,null,null,null,"PROW 2014-2020"]
[]
[]
[]
[]
[]
[null,"Poddziałanie",null,null,null,null,null,null,null,"„Pomoc w rozpoczęciu działalności gospodarczej na rzecz młodych rolników” na operacje typu „Premie dla młodych rolników”"]
[null,null,null,null,null,null,null,null,null,null,null,null,null,null,null,null,null,null,null,null,null,null,null,null,null,null,null,null,null,null,null,null,null,null,null,null,null,"x"]
[null,null,null,null,null,null,null,null,null,"\"Pomoc na rozpoczęcie działalności gospodarczej na rzecz rozwoju małych gospodarstw” na opercje typu „Restrukturyzacja małych gospodarstw\""]
[]
[]
[]
[null,"Numer identyfikacyjny "]
[null,null,null,null,null,null,null,null,null,null,null,null,null,null,null,null,null,null,null,null,null,null,null,null,null,null,null,null,null,null,null,null,null,{"$f":"IF(AND(B16>0,AI16<>8),\"Błąd!Nr beneficjenta powinien zawierać 9 cyfr bez spacji, w tym cyfrę 0 na początku\",\"\")","v":""},{"$f":"LEN(B16)","v":0}]
[]
[]
[null,"Oświadczenie o prowadzeniu ewidencji przychodów i rozchodów w gospodarstwie lub księgi przychodów i rozchodów, lub księgi rachunkowej, lub ewidencji przychodów i rozchodów na podstawie odrębnych przepisów"]
[]
[]
[]
[null,"Ja, niżej podpisany/podpisana*,\n \n\n\n\n\n\n\n\n\n"]
[null,"(właściwe należy zaznaczyć X)"]
[null,null,null,"w ślad za § 15 ust. 2 pkt 2, § 18 pkt 3, § 19 ust. 4 pkt 2 oraz § 21 rozporządzenia Ministra Rolnictwa i Rozwoju Wsi z dnia 23 października 2015 r. w sprawie szczegółowych warunków i trybu przyznawania, wypłaty oraz zwrotu pomocy finansowej na operacje typu „Restrukturyzacja małych gospodarstw” w ramach poddziałania ,,Pomoc na rozpoczęcie działalności gospodarczej na rzecz rozwoju małych gospodarstw” objętego Programem Rozwoju Obszarów Wiejskich na lata 2014-2020 (Dz. U. z 2020 r. poz. 2096 oraz z 2021 r. poz. 377)"]
[]
[]
[]
[]
[null,null,null,"w ślad za § 23 ust. 4 pkt 2 rozporządzenia Ministra Rolnictwa i Rozwoju Wsi z dnia 13 lipca 2015 r. w sprawie szczegółowych warunków i trybu przyznawania, wypłaty oraz zwrotu pomocy finansowej na operacje typu „Premie dla młodych rolników” w ramach poddziałania „Pomoc w rozpoczęciu działalności gospodarczej na rzecz młodych rolników” objętego Programem Rozwoju Obszarów Wiejskich na lata 2014-2020 (Dz. U. z 2018 r. poz. 759 i 1021 oraz z 2019 r. poz.760, z 2020 r. poz. 839, z 2019 r. poz. 922, z 2020 r. poz.1594 oraz z 2021 poz. 389)."]
[]
[]
[]
[]
[null,"oświadczam, że prowadzę w swoim gospodarstwie (właściwe należy zaznaczyć X)\n"]
[]
[null,"1) ewidencję przychodów i rozchodów,"]
[]
[null,"2) księgę przychodów i rozchodów,"]
[]
[null,"3) księgę rachunkową, "]
[]
[null,"4) ewidencję przychodów i rozchodów na podstawie odrębnych przepisów."]
[]
[]
[]
[]
[null,null,null,"miejscowość i data",null,null,null,null,null,null,null,null,null,null,null,null,null,null,null,"(czytelny podpis Beneficjenta)"]
[]
[null,"* niepotrzebne skreślić"]